Workbook

Sheet Inicio EGC
A23: Descargue la versión Kindle
K32: Miguel Cervantes Jiménez

Sheet Caja EGC (hidden)
B2: CAJA DE EDGEWORTH
C9: Individuo A | D9: Individuo B | E9: Total
B10: Dotación bien 1 | C10: 30.0 | D10: 30.0 | E10: ='Oculto EG'!F43 -> 60.0
B11: Dotación bien 2 | C11: 20.0 | D11: 20.0 | E11: ='Oculto EG'!F44 -> 40.0
B12: Utilidad | C12: ='Oculto EG'!D45 -> 24.49 | D12: ='Oculto EG'!E45 -> 24.49
B13: RMgS | C13: ='Oculto EG'!G43 -> 0.67 | D13: ='Oculto EG'!G44 -> 0.67
B15: Demanda bruta bien 1 | C15: ='Oculto EG'!D46 -> 30.0 | D15: ='Oculto EG'!E46 -> 30.0 | E15: ='Oculto EG'!F46 -> 60.0
B16: Demanda bruta bien 2 | C16: ='Oculto EG'!D47 -> 20.0 | D16: ='Oculto EG'!E47 -> 20.0 | E16: ='Oculto EG'!F47 -> 40.0
B17: Utilidad | C17: ='Oculto EG'!D48 -> 24.49 | D17: ='Oculto EG'!E48 -> 24.49
B18: RMgS | C18: ='Oculto EG'!G46 -> 0.67 | D18: ='Oculto EG'!G47 -> 0.67
B20: Demanda neta bien 1 | C20: ='Oculto EG'!D49 -> 0.00 | D20: ='Oculto EG'!D50 -> 0.00
B21: Demanda neta bien 2 | C21: ='Oculto EG'!E49 -> 0.00 | D21: ='Oculto EG'!E50 -> 0.00
B22: Mejora en la utilidad | C22: =C17-C12 -> 0 | D22: =D17-D12 -> 0
B24: a | C24: 0.5
B25: 1-a | C25: ='Oculto EG'!D53 -> 0.5
B26: b | D26: 0.5
B27: 1-b | D27: ='Oculto EG'!E55 -> 0.5
B29: P1/P2 | E29: ='Oculto EG'!E58 -> 0.67
B30: P2/P1 | E30: ='Oculto EG'!E57 -> 1.50
B33: Títulos
B34: Resultados
B35: Insertar datos
B36: Valores de equilibrio

Sheet Optimo Pareto EGC (hidden)
B2: ÓPTIMO DE PARETO
C9: Individuo A | D9: Individuo B | E9: Total
B10: Dotación bien 1 | C10: 30.0 | D10: 30.0 | E10: ='Oculto EG'!F97 -> 60.00
B11: Dotación bien 2 | C11: 10.0 | D11: 10.0 | E11: ='Oculto EG'!F98 -> 20.00
B12: Utilidad | C12: ='Oculto EG'!D99 -> 17.32 | D12: ='Oculto EG'!E99 -> 17.32
B13: RMgS | C13: ='Oculto EG'!G97 -> 0.33 | D13: ='Oculto EG'!G98 -> 0.33
B15: Demanda bruta bien 1 | C15: ='Oculto EG'!D100 -> 30.0 | D15: ='Oculto EG'!E100 -> 30.0 | E15: ='Oculto EG'!F100 -> 60.0
B16: Demanda bruta bien 2 | C16: ='Oculto EG'!D101 -> 10.0 | D16: ='Oculto EG'!E101 -> 10.0 | E16: ='Oculto EG'!F101 -> 20.0
B17: Utilidad | C17: ='Oculto EG'!D102 -> 17.32 | D17: ='Oculto EG'!E102 -> 17.32
B18: RMgS | C18: ='Oculto EG'!G100 -> 0.33 | D18: ='Oculto EG'!G101 -> 0.33
B20: Demanda neta bien 1 | C20: ='Oculto EG'!D103 -> 0.00 | D20: ='Oculto EG'!D104 -> 0.00
B21: Demanda neta bien 2 | C21: ='Oculto EG'!E103 -> 0.00 | D21: ='Oculto EG'!E104 -> 0.00
B22: Mejora en la utilidad | C22: =C17-C12 -> 0 | D22: =D17-D12 -> 0
B24: a | C24: 0.5
B25: 1-a | C25: ='Oculto EG'!D107 -> 0.5
B26: b | D26: 0.5
B27: 1-b | D27: ='Oculto EG'!E109 -> 0.5
B29: P1/P2 | E29: ='Oculto EG'!E112 -> 0.33
B30: P2/P1 | E30: ='Oculto EG'!E111 -> 3.00
B34: Títulos
B35: Resultados
B36: Insertar datos
B37: Valores de equilibrio

Sheet OptimoPareto (hidden)
A2: INTERCAMBIO
A4: ÓPTIMO DE PARETO
B9: Individuo A | C9: Individuo B | D9: Total
A10: Dotación bien 1 | B10: 30.0 | C10: 30.0 | D10: ='Oculto EG'!E97 -> 30.00
A11: Dotación bien 2 | B11: 10.0 | C11: 10.0 | D11: ='Oculto EG'!E98 -> 10.00
A12: Utilidad | B12: ='Oculto EG'!C99 -> 0 | C12: ='Oculto EG'!D99 -> 17.32
A13: RMgS | B13: ='Oculto EG'!F97 -> 60.00 | C13: ='Oculto EG'!F98 -> 20.00
A15: Demanda bruta bien 1 | B15: ='Oculto EG'!C100 -> Demanda Bruta Bien 1 | C15: ='Oculto EG'!D100 -> 30.0 | D15: ='Oculto EG'!E100 -> 30.0
A16: Demanda bruta bien 2 | B16: ='Oculto EG'!C101 -> Demanda Bruta Bien 2 | C16: ='Oculto EG'!D101 -> 10.0 | D16: ='Oculto EG'!E101 -> 10.0
A17: Utilidad | B17: ='Oculto EG'!C102 -> 0 | C17: ='Oculto EG'!D102 -> 17.32
A18: RMgS | B18: ='Oculto EG'!F100 -> 60.00 | C18: ='Oculto EG'!F101 -> 20.00
A20: Demanda neta bien 1 | B20: ='Oculto EG'!C103 -> Demanda Neta Bien 1 | C20: ='Oculto EG'!C104 -> Demanda Neta Bien 2
A21: Demanda neta bien 2 | B21: ='Oculto EG'!D103 -> 0.00 | C21: ='Oculto EG'!D104 -> 0.00
A22: Mejora en la utilidad | B22: =B17-B12 -> 0 | C22: =C17-C12 -> 0
A24: a | B24: 0.5
A25: 1-a | B25: ='Oculto EG'!C107 -> 1-a
A26: b | C26: 0.5
A27: 1-b | C27: ='Oculto EG'!D109 -> 0
A29: P1/P2 | D29: ='Oculto EG'!D112 -> 0
A30: P2/P1 | D30: ='Oculto EG'!D111 -> 0
A34: Títulos
A35: Resultados
A36: Insertar datos
A37: Cantidad de equilibrio

Sheet Demandas Netas EGC (hidden)
B2: DEMANDA BRUTA Y NETA
C9: Individuo A | D9: Individuo B | E9: Total
B10: Dotación bien 1 | C10: 60.0 | D10: 60.0 | E10: ='Oculto EG'!F151 -> 120.00
B11: Dotación bien 2 | C11: 50.0 | D11: 50.0 | E11: ='Oculto EG'!F152 -> 100.00
B12: Utilidad | C12: ='Oculto EG'!D153 -> 54.77 | D12: ='Oculto EG'!E153 -> 54.77
B13: RMgS | C13: ='Oculto EG'!G151 -> 0.83 | D13: ='Oculto EG'!G152 -> 0.83
B15: Demanda bruta bien 1 | C15: ='Oculto EG'!D154 -> 60.0 | D15: ='Oculto EG'!E154 -> 60.0 | E15: ='Oculto EG'!F154 -> 120.0
B16: Demanda bruta bien 2 | C16: ='Oculto EG'!D155 -> 50.0 | D16: ='Oculto EG'!E155 -> 50.0 | E16: ='Oculto EG'!F155 -> 100.0
B17: Utilidad | C17: ='Oculto EG'!D156 -> 54.77 | D17: ='Oculto EG'!E156 -> 54.77
B18: RMgS | C18: ='Oculto EG'!G154 -> 0.83 | D18: ='Oculto EG'!G155 -> 0.83
B20: Demanda neta bien 1 | C20: ='Oculto EG'!D157 -> 0.00 | D20: ='Oculto EG'!E157 -> 0.00
B21: Demanda neta bien 2 | C21: ='Oculto EG'!D158 -> 0.00 | D21: ='Oculto EG'!E158 -> 0.00
B22: Mejora en la utilidad | C22: =C17-C12 -> 0 | D22: =D17-D12 -> 0
B24: a | C24: 0.5
B25: 1-a | C25: ='Oculto EG'!D161 -> 0.5
B26: b | D26: 0.5
B27: 1-b | D27: ='Oculto EG'!E163 -> 0.5
B29: P1/P2 | E29: ='Oculto EG'!E166 -> 0.83
B30: P2/P1 | E30: ='Oculto EG'!E165 -> 1.20
B34: Títulos
B35: Resultados
B36: Insertar datos
B37: Valores de equilibrio

Sheet FPU (hidden)
B2: CAJA DE EDGEWORTH Y
B3: FRONTERA DE POSIBILIDADES DE UTILIDAD
C6: Individuo A | D6: Individuo B | E6: Total
B7: Dotación bien 1 | C7: 25.0 | D7: 25.0 | E7: ='Oculto EG'!F43 -> 60.0
B8: Dotación bien 2 | C8: 75.0 | D8: 75.0 | E8: ='Oculto EG'!F44 -> 40.0
B9: Utilidad | C9: ='Oculto EG'!D229 -> 43.30 | D9: ='Oculto EG'!E229 -> 43.30
B10: RMgS | C10: ='Oculto EG'!G227 -> 3.00 | D10: ='Oculto EG'!G228 -> 3.00
B12: Demanda bruta bien 1 | C12: ='Oculto EG'!D230 -> 25.0 | D12: ='Oculto EG'!E230 -> 25.0 | E12: ='Oculto EG'!F230 -> 50.0
B13: Demanda bruta bien 2 | C13: ='Oculto EG'!D47 -> 20.0 | D13: ='Oculto EG'!E47 -> 20.0 | E13: ='Oculto EG'!F47 -> 40.0
B14: Utilidad | C14: ='Oculto EG'!D232 -> 43.30 | D14: ='Oculto EG'!E232 -> 43.30
B15: RMgS | C15: ='Oculto EG'!G230 -> 3.00 | D15: ='Oculto EG'!G231 -> 3.00
B17: Demanda neta bien 1 | C17: ='Oculto EG'!D233 -> 0.00 | D17: ='Oculto EG'!D234 -> 0.00
B18: Demanda neta bien 2 | C18: ='Oculto EG'!E233 -> 0.00 | D18: ='Oculto EG'!E234 -> 0.00
B19: Mejora en la utilidad | C19: =C14-C9 -> 0 | D19: =D14-D9 -> 0
B21: a | C21: 0.5
B22: 1-a | C22: ='Oculto EG'!D237 -> 0.5
B23: b | D23: 0.5
B24: 1-b | D24: ='Oculto EG'!E239 -> 0.5
B26: P1/P2 | E26: ='Oculto EG'!E242 -> 3.00
B27: P2/P1 | E27: ='Oculto EG'!E241 -> 0.33
B30: Títulos
B31: Resultados
B32: Insertar datos
B33: Valores de equilibrio

Sheet Oculto EG (hidden)
C1: CAJA DE EDGEWORTH | CC1: DEMANDAS INDIVIDUALES | CI1: DEMANDAS AGREGADAS
G2: =POWER((F58/(F44^D53)),1/D52) -> 15 | H2: =($F$58/($G2^($D$52)))^(1/$D$53) -> 40 | I2: =POWER((K50/(K44^D53)),1/D52) -> 3.75 | J2: =($K$50/($I2^($D$52)))^(1/$D$53) -> 40 | K2: =POWER((K61/(K55^D53)),1/D52) -> 9.6 | L2: =($K$61/($K2^($D$52)))^(1/$D$53) -> 40 | M2: =POWER((Q50/(Q44^D53)),1/D52) -> 25.35 | N2: =($Q$50/($M2^($D$52)))^(1/$D$53) -> 40 | O2: =POWER((Q61/(Q55^D53)),1/D52) -> 40.8375 | P2: =($Q$61/($O2^($D$52)))^(1/$D$53) -> 40 | Q2: =POWER((D45/(F44^D53)),1/D52) -> 15 | R2: =($D$45/($Q2^($D$52)))^(1/$D$53) -> 40 | AA2: ORIGINAL | AH2: MENOS 2 | AO2: MENOS 1 | AW2: MAS 1 | BD2: MAS 2 | BK2: DOTACIÓN | CA2: Unidades | CB2: ponderador | CC2: Q | CD2: P1 | CE2: P2 | CF2: P3 | CG2: P4 | CH2: P5 | CI2: (P1+P2) | CJ2: (P1+P2)+P3 | CK2: (P1+P2+P3)+P4 | CL2: (P1+P2+P3+P4)+P5 | CM2: DEMANDA | CN2: Pline | CO2: Pline | CP2: c1line | CQ2: c2line | CR2: c3line | CS2: c4line | CT2: c5line | CU2: cTODOSline | CV2: cTODOSline | CW2: CM | CX2: Q | CY2: CM
A3: Original | B3: Original | F3: Original | H3: Original | I3: menos 2 | J3: menos 2 | K3: menos 1 | L3: menos 1 | M3: mas 1 | N3: mas 1 | O3: masn2 | P3: masn2 | T3: DOTACIÓN | X3: OPTIMO | AB3: CAJA | AF3: ORIGINAL | AG3: ORIGINAL | AH3: NEGATIVO | AI3: NEGATIVO | AJ3: TRANSFORMADA | AM3: ORIGINAL | AN3: ORIGINAL | AO3: NEGATIVO | AP3: NEGATIVO | AQ3: TRANSFORMADA | AT3: ORIGINAL | AU3: ORIGINAL | AV3: NEGATIVO | AW3: NEGATIVO | AX3: TRANSFORMADA | BB3: ORIGINAL | BC3: ORIGINAL | BD3: NEGATIVO | BE3: NEGATIVO | BF3: TRANSFORMADA | BI3: ORIGINAL | BJ3: ORIGINAL | BK3: NEGATIVO | BL3: NEGATIVO | BM3: TRANSFORMADA | BP3: ORIGINAL | BQ3: ORIGINAL | BR3: NEGATIVO | BS3: NEGATIVO | BT3: TRANSFORMADA | CA3: 1 | CB3: 0 | CC3: =(MAX($CH$26:$CH$30))*CB3 -> 0 | CD3: =$CF$26+($CG$26)*CC3 -> 80.00 | CE3: =$CF$27+($CG$27)*CC3 -> 70.00 | CF3: =$CF$28+($CG$28)*CC3 -> 60.00 | CG3: =$CF$29+($CG$29)*CC3 -> 50.00 | CH3: =$CF$30+($CG$30)*CC3 -> 40.00 | CI3: =CD3+CE3 -> 150.00 | CJ3: =CI3+CF3 -> 210.00 | CK3: =CJ3+CG3 -> 260.00 | CL3: =CK3+CH3 -> 300.00 | CM3: =MAX(CI3:CL3) -> 300.00 | CN3: =$CG$34 -> 6.67 | CO3: =$CD$34*CB3 -> 0 | CP3: =$CG$34*CB3 -> 0 | CQ3: =$CD$34 -> 133.33 | CR3: =$D$28 -> 1.15 | CS3: =$D$29 -> 1.20 | CT3: =$D$30 -> 1.25 | CU3: =SUM(CP3:CT3)*CB3 -> 0 | CV3: =SUM(CP3:CT3) -> 136.93 | CW3: =IF($CW$24>(MAX($CD$3:$CH$23)),(MAX($CD$3:$CH$23)*CB3),($CE$34+$CF$34*CC3)) -> 0 | CX3: =IF(CW3<($CF$31*1.2),((MAX($CH$26:$CH$30))*CB3),CX2) -> 0 | CY3: =$CE$34+$CF$34*CX3 -> 0
A4: x1 | B4: x2 | C4: Unidades | D4: ponderador | F4: x1 | G4: x1 | H4: x2 | I4: x1 | J4: x2 | K4: x1 | L4: x2 | M4: x1 | N4: x2 | O4: x1 | P4: x2 | Q4: DOTA | R4: DOTA | T4: x1linedotación | V4: x2line | X4: x1linedotación | Z4: x2line | AF4: x1 | AG4: x2 | AH4: MENOS X1 | AI4: MENOS X2 | AJ4: x1 | AK4: x2 | AM4: x1 | AN4: x2 | AO4: MENOS X1 | AP4: MENOS X2 | AQ4: x1 | AR4: x2 | AT4: x1 | AU4: x2 | AV4: MENOS X1 | AW4: MENOS X2 | AX4: x1 | AY4: x2 | BB4: x1 | BC4: x2 | BD4: MENOS X1 | BE4: MENOS X2 | BF4: x1 | BG4: x2 | BI4: x1 | BJ4: x2 | BK4: MENOS X1 | BL4: MENOS X2 | BM4: x1 | BN4: x2 | BP4: x1 | BQ4: x2 | BR4: MENOS X1 | BS4: MENOS X2 | BT4: x1 | BU4: x2 | CA4: 2 | CB4: 0.05 | CC4: =(MAX($CH$26:$CH$30))*CB4 -> 0.80 | CD4: =$CF$26+($CG$26)*CC4 -> 76.00 | CE4: =$CF$27+($CG$27)*CC4 -> 66.00 | CF4: =$CF$28+($CG$28)*CC4 -> 56.00 | CG4: =$CF$29+($CG$29)*CC4 -> 46.00 | CH4: =$CF$30+($CG$30)*CC4 -> 36.00 | CI4: =CD4+CE4 -> 142.00 | CJ4: =CI4+CF4 -> 198.00 | CK4: 244.00 | CL4: 280.00 | CM4: =MAX(CI4:CL4) -> 280.00 | CN4: =$CG$34 -> 6.67 | CO4: =$CD$34*CB4 -> 6.67 | CP4: =$CG$34*CB4 -> 0.33 | CQ4: =$CD$34 -> 133.33 | CR4: =$D$28 -> 1.15 | CS4: =$D$29 -> 1.20 | CT4: =$D$30 -> 1.25 | CU4: =SUM(CP4:CT4)*CB4 -> 6.86 | CV4: =SUM(CP4:CT4) -> 137.27 | CW4: =$CE$34+$CF$34*CC4 -> 16.00 | CX4: =IF(CW4<($CF$31*1.2),((MAX($CH$26:$CH$30))*CB4),CX3) -> 0.80 | CY4: =$CE$34+$CF$34*CX4 -> 16.00
A5: =$D$46*E5 -> 0.30 | B5: =($F$58/($A5^($D$52)))^(1/$D$53) -> 2,000.00 | C5: 1 | D5: 0 | E5: 0.01 | F5: =IF($D$46*E5>$F$43,$F$43,$D$46*E5) -> 0.30 | G5: =IF(($F$58/($F5^($D$52)))^(1/$D$53)>$F$44,$G$2,$F5) -> 15.00 | H5: =($F$58/($G5^($D$52)))^(1/$D$53) -> 40.00 | I5: =IF(($K$50/($F5^($D$52)))^(1/$D$53)>$F$44,$I$2,F5) -> 3.75 | J5: =($K$50/($I5^($D$52)))^(1/$D$53) -> 40.00 | K5: =IF(($K$61/($F5^($D$52)))^(1/$D$53)>$F$44,$K$2,F5) -> 9.60 | L5: =($K$61/($K5^($D$52)))^(1/$D$53) -> 40.00 | M5: =IF(($Q$50/($F5^($D$52)))^(1/$D$53)>$F$44,$M$2,F5) -> 25.35 | N5: =($Q$50/(M5^($D$52)))^(1/$D$53) -> 40.00 | O5: =IF(($Q$61/($F5^($D$52)))^(1/$D$53)>$F$44,$O$2,F5) -> 40.84 | P5: =($Q$61/($O5^($D$52)))^(1/$D$53) -> 40.00 | Q5: =IF(($D$45/($F5^($D$52)))^(1/$D$53)>$F$44,$Q$2,F5) -> 15 | R5: =($D$45/($Q5^($D$52)))^(1/$D$53) -> 40.00 | S5: =IF(B5>$F$44,1,0) -> 1 | T5: =D5*$F$43 -> 0 | U5: =$D$44 -> 20.00 | V5: =$D$43 -> 30.00 | W5: =$F$44*D5 -> 0 | X5: =$D$47 -> 20.00 | Y5: =$D$46 -> 30.00 | Z5: =$D$43 -> 30.00 | AA5: =$F$44*J5 -> 1,600.00 | AB5: =$F$43 -> 60.00 | AC5: =$F$44 -> 40.00 | AD5: 0 | AF5: =$E5*$E$46 -> 0.30 | AG5: =(($E$48)/(AF5^($E$54)))^(1/$E$55) -> 2,000.00 | AH5: =AF5*-1 -> (0.30) | AI5: =AG5*-1 -> (2,000.00) | AJ5: =AH5+($AF$15*2)+($D$46-$E$46) -> 59.70 | AK5: =AI5+($E$47*2)+($D$47-$E$47) -> (1,960.00) | AM5: =$E5*$AM$48 -> 0.45 | AN5: =(($AM$50)/(AM5^($E$54)))^(1/$E$55) -> 3,000.00 | AO5: =AM5*-1 -> (0.45) | AP5: =AN5*-1 -> (3,000.00) | AQ5: =AO5+($AM$15*2)+($AL$48-$AM$48) -> 59.55 | AR5: =AP5+($AN$15*2)+($AL$49-$AM$49) -> (2,960.00) | AT5: =$E5*$AM$59 -> 0.36 | AU5: =(($AM$61)/(AT5^($E$54)))^(1/$E$55) -> 2,400.00 | AV5: =AT5*-1 -> (0.36) | AW5: =AU5*-1 -> (2,400.00) | AX5: =AV5+($AT$15*2)+($AL$59-$AM$59) -> 59.64 | AY5: =AW5+($AU$15*2)+($AL$60-$AM$60) -> (2,360.00) | BB5: =$E5*$BC$48 -> 0.21 | BC5: =(($BC$50)/(BB5^($E$54)))^(1/$E$55) -> 1,400.00 | BD5: =BB5*-1 -> (0.21) | BE5: =BC5*-1 -> (1,400.00) | BF5: =BD5+($BB$15*2)+($BB$48-$BC$48) -> 59.79 | BG5: =BE5+($BC$15*2)+($BB$49-$BC$49) -> (1,360.00) | BI5: =$E5*$BC$59 -> 0.11 | BJ5: =(($BC$61)/(BI5^($E$54)))^(1/$E$55) -> 700.00 | BK5: =BI5*-1 -> (0.11) | BL5: =BJ5*-1 -> (700.00) | BM5: =BK5+($BI$15*2)+($BB$59-$BC$59) -> 59.90 | BN5: =BL5+($BJ$15*2)+($BB$60-$BC$60) -> (660.00) | BP5: =E5*BL46 -> 0.30 | BQ5: =(($BL$48)/(BP5^($E$54)))^(1/$E$55) -> 2,000.00 | BR5: =BP5*-1 -> (0.30) | BS5: =BQ5*-1 -> (2,000.00) | BT5: =BR5+($BP$15*2)+($BK$46-$BL$46) -> 59.70 | BU5: =BS5+($BQ$15*2)+($BK$47-$BL$47) -> (1,960.00) | CA5: 3 | CB5: 0.10 | CC5: 1.60 | CD5: 72.00 | CE5: 62.00 | CF5: 52.00 | CG5: 42.00 | CH5: 32.00 | CI5: 134.00 | CJ5: 186.00 | CK5: 228.00 | CL5: 260.00 | CM5: 260.00 | CN5: 6.67 | CO5: 13.33 | CP5: 0.67 | CQ5: 133.33 | CR5: 1.15 | CS5: 1.20 | CT5: 1.25 | CU5: 13.76 | CV5: 137.60 | CW5: 32.00 | CX5: 1.60 | CY5: 32.00
A6: 3.00 | B6: 200.00 | C6: 2 | D6: 0.01 | E6: 0.10 | F6: 3.00 | G6: 15.00 | H6: 40.00 | I6: =IF(($K$50/($F6^($D$52)))^(1/$D$53)>$F$44,$I$2,F6) -> 3.75 | J6: 40.00 | K6: =IF(($K$61/($F6^($D$52)))^(1/$D$53)>$F$44,$K$2,F6) -> 9.60 | L6: 40.00 | M6: =IF(($Q$50/($F6^($D$52)))^(1/$D$53)>$F$44,$M$2,F6) -> 25.35 | N6: 40.00 | O6: =IF(($Q$61/($F6^($D$52)))^(1/$D$53)>$F$44,$O$2,F6) -> 40.84 | P6: 40.00 | Q6: =IF(($D$45/($F6^($D$52)))^(1/$D$53)>$F$44,$Q$2,F6) -> 15 | R6: 40.00 | S6: 1 | T6: 0.60 | U6: 20.00 | V6: 30.00 | W6: 0.40 | X6: =$D$47 -> 20.00 | Y6: 30.00 | Z6: 30.00 | AA6: 1,600.00 | AB6: 60.00 | AC6: 40.00 | AD6: 0 | AF6: 3.00 | AG6: 200.00 | AH6: (3.00) | AI6: (200.00) | AJ6: 57.00 | AK6: (160.00) | AM6: 4.50 | AN6: 300.00 | AO6: (4.50) | AP6: (300.00) | AQ6: 55.50 | AR6: (260.00) | AT6: 3.60 | AU6: 240.00 | AV6: (3.60) | AW6: (240.00) | AX6: 56.40 | AY6: (200.00) | BB6: 2.10 | BC6: 140.00 | BD6: (2.10) | BE6: (140.00) | BF6: 57.90 | BG6: (100.00) | BI6: 1.05 | BJ6: 70.00 | BK6: (1.05) | BL6: (70.00) | BM6: 58.95 | BN6: (30.00) | BP6: =E6*$BL$46 -> 3.00 | BQ6: 200.00 | BR6: (3.00) | BS6: (200.00) | BT6: 57.00 | BU6: (160.00) | CA6: 4 | CB6: 0.15 | CC6: 2.40 | CD6: 68.00 | CE6: 58.00 | CF6: 48.00 | CG6: 38.00 | CH6: 28.00 | CI6: 126.00 | CJ6: 174.00 | CK6: 212.00 | CL6: 240.00 | CM6: 240.00 | CN6: 6.67 | CO6: 20.00 | CP6: 1.00 | CQ6: 133.33 | CR6: 1.15 | CS6: 1.20 | CT6: 1.25 | CU6: 20.69 | CV6: 137.93 | CW6: 48.00 | CX6: 2.40 | CY6: 48.00
A7: 6.00 | B7: 100.00 | C7: 3 | D7: 0.10 | E7: 0.20 | F7: 6.00 | G7: 15.00 | H7: 40.00 | I7: 6.00 | J7: 25.00 | K7: 9.60 | L7: 40.00 | M7: 25.35 | N7: 40.00 | O7: 40.84 | P7: 40.00 | Q7: 15 | R7: 40.00 | S7: 1 | T7: 6.00 | U7: 20.00 | V7: 30.00 | W7: 4.00 | X7: 20.00 | Y7: 30.00 | Z7: 30.00 | AA7: 1,000.00 | AB7: 60.00 | AC7: 40.00 | AD7: 0 | AF7: 6.00 | AG7: 100.00 | AH7: (6.00) | AI7: (100.00) | AJ7: 54.00 | AK7: (60.00) | AM7: 9.00 | AN7: 150.00 | AO7: (9.00) | AP7: (150.00) | AQ7: 51.00 | AR7: (110.00) | AT7: 7.20 | AU7: 120.00 | AV7: (7.20) | AW7: (120.00) | AX7: 52.80 | AY7: (80.00) | BB7: 4.20 | BC7: 70.00 | BD7: (4.20) | BE7: (70.00) | BF7: 55.80 | BG7: (30.00) | BI7: 2.10 | BJ7: 35.00 | BK7: (2.10) | BL7: (35.00) | BM7: 57.90 | BN7: 5.00 | BP7: 6.00 | BQ7: 100.00 | BR7: (6.00) | BS7: (100.00) | BT7: 54.00 | BU7: (60.00) | CA7: 5 | CB7: 0.20 | CC7: 3.20 | CD7: 64.00 | CE7: 54.00 | CF7: 44.00 | CG7: 34.00 | CH7: 24.00 | CI7: 118.00 | CJ7: 162.00 | CK7: 196.00 | CL7: 220.00 | CM7: 220.00 | CN7: 6.67 | CO7: 26.67 | CP7: 1.33 | CQ7: 133.33 | CR7: 1.15 | CS7: 1.20 | CT7: 1.25 | CU7: 27.65 | CV7: 138.27 | CW7: 64.00 | CX7: 3.20 | CY7: 64.00
A8: 9.00 | B8: 66.67 | C8: 4 | D8: 0.15 | E8: 0.30 | F8: 9.00 | G8: 15.00 | H8: 40.00 | I8: 9.00 | J8: 16.67 | K8: 9.60 | L8: 40.00 | M8: 25.35 | N8: 40.00 | O8: 40.84 | P8: 40.00 | Q8: 15 | R8: 40.00 | S8: 1 | T8: 9.00 | U8: 20.00 | V8: 30.00 | W8: 6.00 | X8: 20.00 | Y8: 30.00 | Z8: 30.00 | AA8: 666.67 | AB8: 60.00 | AC8: 40.00 | AD8: 0 | AF8: 9.00 | AG8: 66.67 | AH8: (9.00) | AI8: (66.67) | AJ8: 51.00 | AK8: (26.67) | AM8: 13.50 | AN8: 100.00 | AO8: (13.50) | AP8: (100.00) | AQ8: 46.50 | AR8: (60.00) | AT8: 10.80 | AU8: 80.00 | AV8: (10.80) | AW8: (80.00) | AX8: 49.20 | AY8: (40.00) | BB8: 6.30 | BC8: 46.67 | BD8: (6.30) | BE8: (46.67) | BF8: 53.70 | BG8: (6.67) | BI8: 3.15 | BJ8: 23.33 | BK8: (3.15) | BL8: (23.33) | BM8: 56.85 | BN8: 16.67 | BP8: 9.00 | BQ8: 66.67 | BR8: (9.00) | BS8: (66.67) | BT8: 51.00 | BU8: (26.67) | CA8: 6 | CB8: 0.25 | CC8: 4.00 | CD8: 60.00 | CE8: 50.00 | CF8: 40.00 | CG8: 30.00 | CH8: 20.00 | CI8: 110.00 | CJ8: 150.00 | CK8: 180.00 | CL8: 200.00 | CM8: 200.00 | CN8: 6.67 | CO8: 33.33 | CP8: 1.67 | CQ8: 133.33 | CR8: 1.15 | CS8: 1.20 | CT8: 1.25 | CU8: 34.65 | CV8: 138.60 | CW8: 80.00 | CX8: 4.00 | CY8: 80.00
A9: 12.00 | B9: 50.00 | C9: 5 | D9: 0.20 | E9: 0.40 | F9: 12.00 | G9: 15.00 | H9: 40.00 | I9: 12.00 | J9: 12.50 | K9: 12.00 | L9: 32.00 | M9: 25.35 | N9: 40.00 | O9: 40.84 | P9: 40.00 | Q9: 15 | R9: 40.00 | S9: 1 | T9: 12.00 | U9: 20.00 | V9: 30.00 | W9: 8.00 | X9: 20.00 | Y9: 30.00 | Z9: 30.00 | AA9: 500.00 | AB9: 60.00 | AC9: 40.00 | AD9: 0 | AF9: 12.00 | AG9: 50.00 | AH9: (12.00) | AI9: (50.00) | AJ9: 48.00 | AK9: (10.00) | AM9: 18.00 | AN9: 75.00 | AO9: (18.00) | AP9: (75.00) | AQ9: 42.00 | AR9: (35.00) | AT9: 14.40 | AU9: 60.00 | AV9: (14.40) | AW9: (60.00) | AX9: 45.60 | AY9: (20.00) | BB9: 8.40 | BC9: 35.00 | BD9: (8.40) | BE9: (35.00) | BF9: 51.60 | BG9: 5.00 | BI9: 4.20 | BJ9: 17.50 | BK9: (4.20) | BL9: (17.50) | BM9: 55.80 | BN9: 22.50 | BP9: 12.00 | BQ9: 50.00 | BR9: (12.00) | BS9: (50.00) | BT9: 48.00 | BU9: (10.00) | CA9: 7 | CB9: 0.30 | CC9: 4.80 | CD9: 56.00 | CE9: 46.00 | CF9: 36.00 | CG9: 26.00 | CH9: 16.00 | CI9: 102.00 | CJ9: 138.00 | CK9: 164.00 | CL9: 180.00 | CM9: 180.00 | CN9: 6.67 | CO9: 40.00 | CP9: 2.00 | CQ9: 133.33 | CR9: 1.15 | CS9: 1.20 | CT9: 1.25 | CU9: 41.68 | CV9: 138.93 | CW9: 96.00 | CX9: 4.80 | CY9: 96.00
A10: 15.00 | B10: 40.00 | C10: 6 | D10: 0.25 | E10: 0.50 | F10: 15.00 | G10: 15.00 | H10: 40.00 | I10: 15.00 | J10: 10.00 | K10: 15.00 | L10: 25.60 | M10: 25.35 | N10: 40.00 | O10: 40.84 | P10: 40.00 | Q10: 15 | R10: 40.00 | S10: 0 | T10: 15.00 | U10: 20.00 | V10: 30.00 | W10: 10.00 | X10: 20.00 | Y10: 30.00 | Z10: 30.00 | AA10: 400.00 | AB10: 60.00 | AC10: 40.00 | AD10: 0 | AF10: 15.00 | AG10: 40.00 | AH10: (15.00) | AI10: (40.00) | AJ10: 45.00 | AK10: (0.00) | AM10: 22.50 | AN10: 60.00 | AO10: (22.50) | AP10: (60.00) | AQ10: 37.50 | AR10: (20.00) | AT10: 18.00 | AU10: 48.00 | AV10: (18.00) | AW10: (48.00) | AX10: 42.00 | AY10: (8.00) | BB10: 10.50 | BC10: 28.00 | BD10: (10.50) | BE10: (28.00) | BF10: 49.50 | BG10: 12.00 | BI10: 5.25 | BJ10: 14.00 | BK10: (5.25) | BL10: (14.00) | BM10: 54.75 | BN10: 26.00 | BP10: 15.00 | BQ10: 40.00 | BR10: (15.00) | BS10: (40.00) | BT10: 45.00 | BU10: 0 | CA10: 8 | CB10: 0.35 | CC10: 5.60 | CD10: 52.00 | CE10: 42.00 | CF10: 32.00 | CG10: 22.00 | CH10: 12.00 | CI10: 94.00 | CJ10: 126.00 | CK10: 148.00 | CL10: 160.00 | CM10: 160.00 | CN10: 6.67 | CO10: 46.67 | CP10: 2.33 | CQ10: 133.33 | CR10: 1.15 | CS10: 1.20 | CT10: 1.25 | CU10: 48.74 | CV10: 139.27 | CW10: 112.00 | CX10: 5.60 | CY10: 112.00
A11: 18.00 | B11: 33.33 | C11: 7 | D11: 0.30 | E11: 0.60 | F11: 18.00 | G11: 18.00 | H11: 33.33 | I11: 18.00 | J11: 8.33 | K11: 18.00 | L11: 21.33 | M11: 25.35 | N11: 40.00 | O11: 40.84 | P11: 40.00 | Q11: 18 | R11: 33.33 | S11: 0 | T11: 18.00 | U11: 20.00 | V11: 30.00 | W11: 12.00 | X11: 20.00 | Y11: 30.00 | Z11: 30.00 | AA11: 333.33 | AB11: 60.00 | AC11: 40.00 | AD11: 0 | AF11: 18.00 | AG11: 33.33 | AH11: (18.00) | AI11: (33.33) | AJ11: 42.00 | AK11: 6.67 | AM11: 27.00 | AN11: 50.00 | AO11: (27.00) | AP11: (50.00) | AQ11: 33.00 | AR11: (10.00) | AT11: 21.60 | AU11: 40.00 | AV11: (21.60) | AW11: (40.00) | AX11: 38.40 | AY11: 0 | BB11: 12.60 | BC11: 23.33 | BD11: (12.60) | BE11: (23.33) | BF11: 47.40 | BG11: 16.67 | BI11: 6.30 | BJ11: 11.67 | BK11: (6.30) | BL11: (11.67) | BM11: 53.70 | BN11: 28.33 | BP11: 18.00 | BQ11: 33.33 | BR11: (18.00) | BS11: (33.33) | BT11: 42.00 | BU11: 6.67 | CA11: 9 | CB11: 0.40 | CC11: 6.40 | CD11: 48.00 | CE11: 38.00 | CF11: 28.00 | CG11: 18.00 | CH11: 8.00 | CI11: 86.00 | CJ11: 114.00 | CK11: 132.00 | CL11: 140.00 | CM11: 140.00 | CN11: 6.67 | CO11: 53.33 | CP11: 2.67 | CQ11: 133.33 | CR11: 1.15 | CS11: 1.20 | CT11: 1.25 | CU11: 55.84 | CV11: 139.60 | CW11: 128.00 | CX11: 6.40 | CY11: 128.00
A12: 21.00 | B12: 28.57 | C12: 8 | D12: 0.35 | E12: 0.70 | F12: 21.00 | G12: 21.00 | H12: 28.57 | I12: 21.00 | J12: 7.14 | K12: 21.00 | L12: 18.29 | M12: 25.35 | N12: 40.00 | O12: 40.84 | P12: 40.00 | Q12: 21 | R12: 28.57 | S12: 0 | T12: 21.00 | U12: 20.00 | V12: 30.00 | W12: 14.00 | X12: 20.00 | Y12: 30.00 | Z12: 30.00 | AA12: 285.71 | AB12: 60.00 | AC12: 40.00 | AD12: 0 | AF12: 21.00 | AG12: 28.57 | AH12: (21.00) | AI12: (28.57) | AJ12: 39.00 | AK12: 11.43 | AM12: 31.50 | AN12: 42.86 | AO12: (31.50) | AP12: (42.86) | AQ12: 28.50 | AR12: (2.86) | AT12: 25.20 | AU12: 34.29 | AV12: (25.20) | AW12: (34.29) | AX12: 34.80 | AY12: 5.71 | BB12: 14.70 | BC12: 20.00 | BD12: (14.70) | BE12: (20.00) | BF12: 45.30 | BG12: 20.00 | BI12: 7.35 | BJ12: 10.00 | BK12: (7.35) | BL12: (10.00) | BM12: 52.65 | BN12: 30.00 | BP12: 21.00 | BQ12: 28.57 | BR12: (21.00) | BS12: (28.57) | BT12: 39.00 | BU12: 11.43 | CA12: 10 | CB12: 0.45 | CC12: 7.20 | CD12: 44.00 | CE12: 34.00 | CF12: 24.00 | CG12: 14.00 | CH12: 4.00 | CI12: 78.00 | CJ12: 102.00 | CK12: 116.00 | CL12: 120.00 | CM12: 120.00 | CN12: 6.67 | CO12: 60.00 | CP12: 3.00 | CQ12: 133.33 | CR12: 1.15 | CS12: 1.20 | CT12: 1.25 | CU12: 62.97 | CV12: 139.93 | CW12: 144.00 | CX12: 7.20 | CY12: 144.00
A13: 24.00 | B13: 25.00 | C13: 9 | D13: 0.40 | E13: 0.80 | F13: 24.00 | G13: 24.00 | H13: 25.00 | I13: 24.00 | J13: 6.25 | K13: 24.00 | L13: 16.00 | M13: 25.35 | N13: 40.00 | O13: 40.84 | P13: 40.00 | Q13: 24 | R13: 25.00 | S13: 0 | T13: 24.00 | U13: 20.00 | V13: 30.00 | W13: 16.00 | X13: 20.00 | Y13: 30.00 | Z13: 30.00 | AA13: 250.00 | AB13: 60.00 | AC13: 40.00 | AD13: 0 | AF13: 24.00 | AG13: 25.00 | AH13: (24.00) | AI13: (25.00) | AJ13: 36.00 | AK13: 15.00 | AM13: 36.00 | AN13: 37.50 | AO13: (36.00) | AP13: (37.50) | AQ13: 24.00 | AR13: 2.50 | AT13: 28.80 | AU13: 30.00 | AV13: (28.80) | AW13: (30.00) | AX13: 31.20 | AY13: 10.00 | BB13: 16.80 | BC13: 17.50 | BD13: (16.80) | BE13: (17.50) | BF13: 43.20 | BG13: 22.50 | BI13: 8.40 | BJ13: 8.75 | BK13: (8.40) | BL13: (8.75) | BM13: 51.60 | BN13: 31.25 | BP13: 24.00 | BQ13: 25.00 | BR13: (24.00) | BS13: (25.00) | BT13: 36.00 | BU13: 15.00 | CA13: 11 | CB13: 0.50 | CC13: 8.00 | CD13: 40.00 | CE13: 30.00 | CF13: 20.00 | CG13: 10.00 | CH13: 0 | CI13: 70.00 | CJ13: 90.00 | CK13: 100.00 | CL13: 100.00 | CM13: 100.00 | CN13: 6.67 | CO13: 66.67 | CP13: 3.33 | CQ13: 133.33 | CR13: 1.15 | CS13: 1.20 | CT13: 1.25 | CU13: 70.13 | CV13: 140.27 | CW13: 160.00 | CX13: 8.00 | CY13: 160.00
A14: 27.00 | B14: =($F$58/($A14^($D$52)))^(1/$D$53) -> 22.22 | C14: 10 | D14: 0.45 | E14: 0.90 | F14: 27.00 | G14: 27.00 | H14: 22.22 | I14: 27.00 | J14: 5.56 | K14: 27.00 | L14: 14.22 | M14: 27.00 | N14: 37.56 | O14: 40.84 | P14: 40.00 | Q14: 27 | R14: 22.22 | S14: =IF(B14>$F$44,1,0) -> 0 | T14: 27.00 | U14: 20.00 | V14: 30.00 | W14: 18.00 | X14: 20.00 | Y14: 30.00 | Z14: 30.00 | AA14: 222.22 | AB14: 60.00 | AC14: 40.00 | AD14: 0 | AF14: 27.00 | AG14: 22.22 | AH14: (27.00) | AI14: (22.22) | AJ14: 33.00 | AK14: 17.78 | AM14: 40.50 | AN14: 33.33 | AO14: (40.50) | AP14: (33.33) | AQ14: 19.50 | AR14: 6.67 | AT14: 32.40 | AU14: 26.67 | AV14: (32.40) | AW14: (26.67) | AX14: 27.60 | AY14: 13.33 | BB14: 18.90 | BC14: 15.56 | BD14: (18.90) | BE14: (15.56) | BF14: 41.10 | BG14: 24.44 | BI14: 9.45 | BJ14: 7.78 | BK14: (9.45) | BL14: (7.78) | BM14: 50.55 | BN14: 32.22 | BP14: 27.00 | BQ14: 22.22 | BR14: (27.00) | BS14: (22.22) | BT14: 33.00 | BU14: 17.78 | CA14: 12 | CB14: 0.55 | CC14: 8.80 | CD14: 36.00 | CE14: 26.00 | CF14: 16.00 | CG14: 6.00 | CH14: -4.00 | CI14: 62.00 | CJ14: 78.00 | CK14: 84.00 | CL14: 80.00 | CM14: 84.00 | CN14: 6.67 | CO14: 73.33 | CP14: 3.67 | CQ14: 133.33 | CR14: 1.15 | CS14: 1.20 | CT14: 1.25 | CU14: 77.33 | CV14: 140.60 | CW14: 176.00 | CX14: 8.80 | CY14: 176.00
A15: 30.00 | B15: =($F$58/($F15^($D$52)))^(1/$D$53) -> 20.00 | C15: 11 | D15: 0.50 | E15: 1.00 | F15: 30.00 | G15: 30.00 | H15: 20.00 | I15: 30.00 | J15: 5.00 | K15: 30.00 | L15: 12.80 | M15: 30.00 | N15: 33.80 | O15: 40.84 | P15: 40.00 | Q15: 30 | R15: 20.00 | T15: 30.00 | U15: 20.00 | V15: 30.00 | W15: 20.00 | X15: 20.00 | Y15: 30.00 | Z15: 30.00 | AA15: 200.00 | AB15: 60.00 | AC15: 40.00 | AD15: 0 | AF15: =$E15*$E$46 -> 30.00 | AG15: =(($E$48)/(AF15^($E$54)))^(1/$E$55) -> 20.00 | AH15: =AF15*-1 -> (30.00) | AI15: =AG15*-1 -> (20.00) | AJ15: 30.00 | AK15: =AI15+($E$47*2)+($D$47-$E$47) -> 20.00 | AM15: 45.00 | AN15: 30.00 | AO15: =AM15*-1 -> (45.00) | AP15: =AN15*-1 -> (30.00) | AQ15: 15.00 | AR15: 10.00 | AT15: 36.00 | AU15: 24.00 | AV15: =AT15*-1 -> (36.00) | AW15: =AU15*-1 -> (24.00) | AX15: 24.00 | AY15: 16.00 | BB15: 21.00 | BC15: 14.00 | BD15: =BB15*-1 -> (21.00) | BE15: =BC15*-1 -> (14.00) | BF15: 39.00 | BG15: 26.00 | BI15: 10.50 | BJ15: 7.00 | BK15: =BI15*-1 -> (10.50) | BL15: =BJ15*-1 -> (7.00) | BM15: 49.50 | BN15: 33.00 | BP15: 30.00 | BQ15: 20.00 | BR15: =BP15*-1 -> (30.00) | BS15: =BQ15*-1 -> (20.00) | BT15: 30.00 | BU15: 20.00 | CA15: 13 | CB15: 0.60 | CC15: 9.60 | CD15: 32.00 | CE15: 22.00 | CF15: 12.00 | CG15: 2.00 | CH15: -8.00 | CI15: 54.00 | CJ15: 66.00 | CK15: 68.00 | CL15: 60.00 | CM15: 68.00 | CN15: 6.67 | CO15: 80.00 | CP15: 4.00 | CQ15: 133.33 | CR15: 1.15 | CS15: 1.20 | CT15: 1.25 | CU15: 84.56 | CV15: 140.93 | CW15: 192.00 | CX15: 9.60 | CY15: 192.00
A16: 33.00 | B16: 18.18 | C16: 12 | D16: 0.55 | E16: 1.10 | F16: 33.00 | G16: 33.00 | H16: 18.18 | I16: 33.00 | J16: 4.55 | K16: 33.00 | L16: 11.64 | M16: 33.00 | N16: 30.73 | O16: 40.84 | P16: 40.00 | Q16: 33 | R16: 18.18 | T16: 33.00 | U16: 20.00 | V16: 30.00 | W16: 22.00 | X16: 20.00 | Y16: 30.00 | Z16: 30.00 | AA16: 181.82 | AB16: 60.00 | AC16: 40.00 | AD16: 0 | AF16: =$E16*$E$46 -> 33.00 | AG16: =(($E$48)/(AF16^($E$54)))^(1/$E$55) -> 18.18 | AH16: =AF16*-1 -> (33.00) | AI16: =AG16*-1 -> (18.18) | AJ16: 27.00 | AK16: =AI16+($E$47*2)+($D$47-$E$47) -> 21.82 | AM16: 49.50 | AN16: 27.27 | AO16: =AM16*-1 -> (49.50) | AP16: =AN16*-1 -> (27.27) | AQ16: 10.50 | AR16: 12.73 | AT16: 39.60 | AU16: 21.82 | AV16: =AT16*-1 -> (39.60) | AW16: =AU16*-1 -> (21.82) | AX16: 20.40 | AY16: 18.18 | BB16: 23.10 | BC16: 12.73 | BD16: =BB16*-1 -> (23.10) | BE16: =BC16*-1 -> (12.73) | BF16: 36.90 | BG16: 27.27 | BI16: 11.55 | BJ16: 6.36 | BK16: =BI16*-1 -> (11.55) | BL16: =BJ16*-1 -> (6.36) | BM16: 48.45 | BN16: 33.64 | BP16: 33.00 | BQ16: 18.18 | BR16: =BP16*-1 -> (33.00) | BS16: =BQ16*-1 -> (18.18) | BT16: 27.00 | BU16: 21.82 | CA16: 14 | CB16: 0.65 | CC16: 10.40 | CD16: 28.00 | CE16: 18.00 | CF16: 8.00 | CG16: -2.00 | CH16: -12.00 | CI16: 46.00 | CJ16: 54.00 | CK16: 52.00 | CL16: 40.00 | CM16: 54.00 | CN16: 6.67 | CO16: 86.67 | CP16: 4.33 | CQ16: 133.33 | CR16: 1.15 | CS16: 1.20 | CT16: 1.25 | CU16: 91.82 | CV16: 141.27 | CW16: 208.00 | CX16: 10.40 | CY16: 208.00
A17: 36.00 | B17: 16.67 | C17: 13 | D17: 0.60 | E17: 1.20 | F17: =IF($D$46*E17>$F$43,$F$43,$D$46*E17) -> 36.00 | G17: 36.00 | H17: 16.67 | I17: 36.00 | J17: 4.17 | K17: 36.00 | L17: 10.67 | M17: 36.00 | N17: 28.17 | O17: 40.84 | P17: 40.00 | Q17: 36 | R17: 16.67 | T17: 36.00 | U17: 20.00 | V17: 30.00 | W17: 24.00 | X17: 20.00 | Y17: 30.00 | Z17: 30.00 | AA17: 166.67 | AB17: 60.00 | AC17: 40.00 | AD17: 0 | AF17: 36.00 | AG17: 16.67 | AH17: (36.00) | AI17: (16.67) | AJ17: 24.00 | AK17: 23.33 | AM17: 54.00 | AN17: 25.00 | AO17: (54.00) | AP17: (25.00) | AQ17: 6.00 | AR17: 15.00 | AT17: 43.20 | AU17: 20.00 | AV17: (43.20) | AW17: (20.00) | AX17: 16.80 | AY17: 20.00 | BB17: 25.20 | BC17: 11.67 | BD17: (25.20) | BE17: (11.67) | BF17: 34.80 | BG17: 28.33 | BI17: 12.60 | BJ17: 5.83 | BK17: (12.60) | BL17: (5.83) | BM17: 47.40 | BN17: 34.17 | BP17: 36.00 | BQ17: 16.67 | BR17: (36.00) | BS17: (16.67) | BT17: 24.00 | BU17: 23.33 | CA17: 15 | CB17: 0.70 | CC17: 11.20 | CD17: 24.00 | CE17: 14.00 | CF17: 4.00 | CG17: -6.00 | CH17: -16.00 | CI17: 38.00 | CJ17: 42.00 | CK17: 36.00 | CL17: 20.00 | CM17: 42.00 | CN17: 6.67 | CO17: 93.33 | CP17: 4.67 | CQ17: 133.33 | CR17: 1.15 | CS17: 1.20 | CT17: 1.25 | CU17: 99.12 | CV17: 141.60 | CW17: 224.00 | CX17: 11.20 | CY17: 224.00
A18: 39.00 | B18: 15.38 | C18: 14 | D18: 0.65 | E18: 1.30 | F18: 39.00 | G18: 39.00 | H18: 15.38 | I18: 39.00 | J18: 3.85 | K18: 39.00 | L18: 9.85 | M18: 39.00 | N18: 26.00 | O18: 40.84 | P18: 40.00 | Q18: 39 | R18: 15.38 | T18: 39.00 | U18: 20.00 | V18: 30.00 | W18: 26.00 | X18: 20.00 | Y18: 30.00 | Z18: 30.00 | AA18: 153.85 | AB18: 60.00 | AC18: 40.00 | AD18: 0 | AF18: 39.00 | AG18: 15.38 | AH18: (39.00) | AI18: (15.38) | AJ18: 21.00 | AK18: 24.62 | AM18: 58.50 | AN18: 23.08 | AO18: (58.50) | AP18: (23.08) | AQ18: 1.50 | AR18: 16.92 | AT18: 46.80 | AU18: 18.46 | AV18: (46.80) | AW18: (18.46) | AX18: 13.20 | AY18: 21.54 | BB18: 27.30 | BC18: 10.77 | BD18: (27.30) | BE18: (10.77) | BF18: 32.70 | BG18: 29.23 | BI18: 13.65 | BJ18: 5.38 | BK18: (13.65) | BL18: (5.38) | BM18: 46.35 | BN18: 34.62 | BP18: 39.00 | BQ18: 15.38 | BR18: (39.00) | BS18: (15.38) | BT18: 21.00 | BU18: 24.62 | CA18: 16 | CB18: 0.75 | CC18: 12.00 | CD18: 20.00 | CE18: 10.00 | CF18: 0 | CG18: -10.00 | CH18: -20.00 | CI18: 30.00 | CJ18: 30.00 | CK18: 20.00 | CL18: 0 | CM18: 30.00 | CN18: 6.67 | CO18: 100.00 | CP18: 5.00 | CQ18: 133.33 | CR18: 1.15 | CS18: 1.20 | CT18: 1.25 | CU18: 106.45 | CV18: 141.93 | CW18: 240.00 | CX18: 12.00 | CY18: 240.00
A19: 42.00 | B19: 14.29 | C19: 15 | D19: 0.70 | E19: 1.40 | F19: 42.00 | G19: 42.00 | H19: 14.29 | I19: 42.00 | J19: 3.57 | K19: 42.00 | L19: 9.14 | M19: 42.00 | N19: 24.14 | O19: 42.00 | P19: 38.89 | Q19: 42 | R19: 14.29 | T19: 42.00 | U19: 20.00 | V19: 30.00 | W19: 28.00 | X19: 20.00 | Y19: 30.00 | Z19: 30.00 | AA19: 142.86 | AB19: 60.00 | AC19: 40.00 | AD19: 0 | AF19: 42.00 | AG19: 14.29 | AH19: (42.00) | AI19: (14.29) | AJ19: 18.00 | AK19: 25.71 | AM19: 63.00 | AN19: 21.43 | AO19: (63.00) | AP19: (21.43) | AQ19: (3.00) | AR19: 18.57 | AT19: 50.40 | AU19: 17.14 | AV19: (50.40) | AW19: (17.14) | AX19: 9.60 | AY19: 22.86 | BB19: 29.40 | BC19: 10.00 | BD19: (29.40) | BE19: (10.00) | BF19: 30.60 | BG19: 30.00 | BI19: 14.70 | BJ19: 5.00 | BK19: (14.70) | BL19: (5.00) | BM19: 45.30 | BN19: 35.00 | BP19: 42.00 | BQ19: 14.29 | BR19: (42.00) | BS19: (14.29) | BT19: 18.00 | BU19: 25.71 | CA19: 17 | CB19: 0.80 | CC19: 12.80 | CD19: 16.00 | CE19: 6.00 | CF19: -4.00 | CG19: -14.00 | CH19: -24.00 | CI19: 22.00 | CJ19: 18.00 | CK19: 4.00 | CL19: -20.00 | CM19: 22.00 | CN19: 6.67 | CO19: 106.67 | CP19: 5.33 | CQ19: 133.33 | CR19: 1.15 | CS19: 1.20 | CT19: 1.25 | CU19: 113.81 | CV19: 142.27 | CW19: 256.00 | CX19: 12.80 | CY19: 256.00
A20: 45.00 | B20: 13.33 | C20: 16 | D20: 0.75 | E20: 1.50 | F20: 45.00 | G20: 45.00 | H20: 13.33 | I20: 45.00 | J20: 3.33 | K20: 45.00 | L20: 8.53 | M20: 45.00 | N20: 22.53 | O20: 45.00 | P20: 36.30 | Q20: 45 | R20: 13.33 | T20: 45.00 | U20: 20.00 | V20: 30.00 | W20: 30.00 | X20: 20.00 | Y20: 30.00 | Z20: 30.00 | AA20: 133.33 | AB20: 60.00 | AC20: 40.00 | AD20: 0 | AF20: 45.00 | AG20: 13.33 | AH20: (45.00) | AI20: (13.33) | AJ20: 15.00 | AK20: 26.67 | AM20: 67.50 | AN20: 20.00 | AO20: (67.50) | AP20: (20.00) | AQ20: (7.50) | AR20: 20.00 | AT20: 54.00 | AU20: 16.00 | AV20: (54.00) | AW20: (16.00) | AX20: 6.00 | AY20: 24.00 | BB20: 31.50 | BC20: 9.33 | BD20: (31.50) | BE20: (9.33) | BF20: 28.50 | BG20: 30.67 | BI20: 15.75 | BJ20: 4.67 | BK20: (15.75) | BL20: (4.67) | BM20: 44.25 | BN20: 35.33 | BP20: 45.00 | BQ20: 13.33 | BR20: (45.00) | BS20: (13.33) | BT20: 15.00 | BU20: 26.67 | CA20: 18 | CB20: 0.85 | CC20: 13.60 | CD20: 12.00 | CE20: 2.00 | CF20: -8.00 | CG20: -18.00 | CH20: -28.00 | CI20: 14.00 | CJ20: 6.00 | CK20: -12.00 | CL20: -40.00 | CM20: 14.00 | CN20: 6.67 | CO20: 113.33 | CP20: 5.67 | CQ20: 133.33 | CR20: 1.15 | CS20: 1.20 | CT20: 1.25 | CU20: 121.21 | CV20: 142.60 | CW20: 272.00 | CX20: 13.60 | CY20: 272.00
A21: 48.00 | B21: 12.50 | C21: 17 | D21: 0.80 | E21: 1.60 | F21: 48.00 | G21: 48.00 | H21: 12.50 | I21: 48.00 | J21: 3.13 | K21: 48.00 | L21: 8.00 | M21: 48.00 | N21: 21.13 | O21: 48.00 | P21: 34.03 | Q21: 48 | R21: 12.50 | T21: 48.00 | U21: 20.00 | V21: 30.00 | W21: 32.00 | X21: 20.00 | Y21: 30.00 | Z21: 30.00 | AA21: 125.00 | AB21: 60.00 | AC21: 40.00 | AD21: 0 | AF21: 48.00 | AG21: 12.50 | AH21: (48.00) | AI21: (12.50) | AJ21: 12.00 | AK21: 27.50 | AM21: 72.00 | AN21: 18.75 | AO21: (72.00) | AP21: (18.75) | AQ21: (12.00) | AR21: 21.25 | AT21: 57.60 | AU21: 15.00 | AV21: (57.60) | AW21: (15.00) | AX21: 2.40 | AY21: 25.00 | BB21: 33.60 | BC21: 8.75 | BD21: (33.60) | BE21: (8.75) | BF21: 26.40 | BG21: 31.25 | BI21: 16.80 | BJ21: 4.38 | BK21: (16.80) | BL21: (4.38) | BM21: 43.20 | BN21: 35.63 | BP21: 48.00 | BQ21: 12.50 | BR21: (48.00) | BS21: (12.50) | BT21: 12.00 | BU21: 27.50 | CA21: 19 | CB21: 0.90 | CC21: 14.40 | CD21: 8.00 | CE21: -2.00 | CF21: -12.00 | CG21: -22.00 | CH21: -32.00 | CI21: 6.00 | CJ21: -6.00 | CK21: -28.00 | CL21: -60.00 | CM21: 6.00 | CN21: 6.67 | CO21: 120.00 | CP21: 6.00 | CQ21: 133.33 | CR21: 1.15 | CS21: 1.20 | CT21: 1.25 | CU21: 128.64 | CV21: 142.93 | CW21: 288.00 | CX21: 14.40 | CY21: 288.00
A22: 51.00 | B22: 11.76 | C22: 18 | D22: 0.85 | E22: 1.70 | F22: 51.00 | G22: 51.00 | H22: 11.76 | I22: 51.00 | J22: 2.94 | K22: 51.00 | L22: 7.53 | M22: 51.00 | N22: 19.88 | O22: 51.00 | P22: 32.03 | Q22: 51 | R22: 11.76 | T22: 51.00 | U22: 20.00 | V22: 30.00 | W22: 34.00 | X22: 20.00 | Y22: 30.00 | Z22: 30.00 | AA22: 117.65 | AB22: 60.00 | AC22: 40.00 | AD22: 0 | AF22: 51.00 | AG22: 11.76 | AH22: (51.00) | AI22: (11.76) | AJ22: 9.00 | AK22: 28.24 | AM22: 76.50 | AN22: 17.65 | AO22: (76.50) | AP22: (17.65) | AQ22: (16.50) | AR22: 22.35 | AT22: 61.20 | AU22: 14.12 | AV22: (61.20) | AW22: (14.12) | AX22: (1.20) | AY22: 25.88 | BB22: 35.70 | BC22: 8.24 | BD22: (35.70) | BE22: (8.24) | BF22: 24.30 | BG22: 31.76 | BI22: 17.85 | BJ22: 4.12 | BK22: (17.85) | BL22: (4.12) | BM22: 42.15 | BN22: 35.88 | BP22: 51.00 | BQ22: 11.76 | BR22: (51.00) | BS22: (11.76) | BT22: 9.00 | BU22: 28.24 | CA22: 20 | CB22: 0.95 | CC22: 15.20 | CD22: 4.00 | CE22: -6.00 | CF22: -16.00 | CG22: -26.00 | CH22: -36.00 | CI22: -2.00 | CJ22: -18.00 | CK22: -44.00 | CL22: -80.00 | CM22: (2.00) | CN22: 6.67 | CO22: 126.67 | CP22: 6.33 | CQ22: 133.33 | CR22: 1.15 | CS22: 1.20 | CT22: 1.25 | CU22: 136.10 | CV22: 143.27 | CW22: 304.00 | CX22: 15.20 | CY22: 304.00
A23: 54.00 | B23: 11.11 | C23: 19 | D23: 0.90 | E23: 1.80 | F23: 54.00 | G23: 54.00 | H23: 11.11 | I23: 54.00 | J23: 2.78 | K23: 54.00 | L23: 7.11 | M23: 54.00 | N23: 18.78 | O23: 54.00 | P23: 30.25 | Q23: 54 | R23: 11.11 | T23: 54.00 | U23: 20.00 | V23: 30.00 | W23: 36.00 | X23: 20.00 | Y23: 30.00 | Z23: 30.00 | AA23: 111.11 | AB23: 60.00 | AC23: 40.00 | AD23: 0 | AF23: 54.00 | AG23: 11.11 | AH23: (54.00) | AI23: (11.11) | AJ23: 6.00 | AK23: 28.89 | AM23: 81.00 | AN23: 16.67 | AO23: (81.00) | AP23: (16.67) | AQ23: (21.00) | AR23: 23.33 | AT23: 64.80 | AU23: 13.33 | AV23: (64.80) | AW23: (13.33) | AX23: (4.80) | AY23: 26.67 | BB23: 37.80 | BC23: 7.78 | BD23: (37.80) | BE23: (7.78) | BF23: 22.20 | BG23: 32.22 | BI23: 18.90 | BJ23: 3.89 | BK23: (18.90) | BL23: (3.89) | BM23: 41.10 | BN23: 36.11 | BP23: 54.00 | BQ23: 11.11 | BR23: (54.00) | BS23: (11.11) | BT23: 6.00 | BU23: 28.89 | CA23: 21 | CB23: 1.00 | CC23: 16.00 | CD23: 0 | CE23: -10.00 | CF23: -20.00 | CG23: -30.00 | CH23: -40.00 | CI23: -10.00 | CJ23: -30.00 | CK23: -60.00 | CL23: -100.00 | CM23: (10.00) | CN23: 6.67 | CO23: 133.33 | CP23: 6.67 | CQ23: 133.33 | CR23: 1.15 | CS23: 1.20 | CT23: 1.25 | CU23: 143.60 | CV23: 143.60 | CW23: 320.00 | CX23: 16.00 | CY23: 320.00
A24: 57.00 | B24: 10.53 | C24: 20 | D24: 0.95 | E24: 1.90 | F24: 57.00 | G24: 57.00 | H24: 10.53 | I24: 57.00 | J24: 2.63 | K24: 57.00 | L24: 6.74 | M24: 57.00 | N24: 17.79 | O24: 57.00 | P24: 28.66 | Q24: 57 | R24: 10.53 | T24: 57.00 | U24: 20.00 | V24: 30.00 | W24: 38.00 | X24: 20.00 | Y24: 30.00 | Z24: 30.00 | AA24: 105.26 | AB24: 60.00 | AC24: 40.00 | AD24: 0 | AF24: 57.00 | AG24: 10.53 | AH24: (57.00) | AI24: (10.53) | AJ24: 3.00 | AK24: 29.47 | AM24: 85.50 | AN24: 15.79 | AO24: (85.50) | AP24: (15.79) | AQ24: (25.50) | AR24: 24.21 | AT24: 68.40 | AU24: 12.63 | AV24: (68.40) | AW24: (12.63) | AX24: (8.40) | AY24: 27.37 | BB24: 39.90 | BC24: 7.37 | BD24: (39.90) | BE24: (7.37) | BF24: 20.10 | BG24: 32.63 | BI24: 19.95 | BJ24: 3.68 | BK24: (19.95) | BL24: (3.68) | BM24: 40.05 | BN24: 36.32 | BP24: 57.00 | BQ24: 10.53 | BR24: (57.00) | BS24: (10.53) | BT24: 3.00 | BU24: 29.47
A25: 60.00 | B25: 10.00 | C25: 21 | D25: 1.00 | E25: 2.00 | F25: 60.00 | G25: 60.00 | H25: 10.00 | I25: 60.00 | J25: 2.50 | K25: 60.00 | L25: 6.40 | M25: 60.00 | N25: 16.90 | O25: 60.00 | P25: 27.23 | Q25: 60 | R25: 10.00 | T25: 60.00 | U25: 20.00 | V25: 30.00 | W25: 40.00 | X25: 20.00 | Y25: 30.00 | Z25: 30.00 | AA25: 100.00 | AB25: 60.00 | AC25: 40.00 | AD25: 0 | AF25: 60.00 | AG25: 10.00 | AH25: (60.00) | AI25: (10.00) | AJ25: 0 | AK25: 30.00 | AM25: 90.00 | AN25: 15.00 | AO25: (90.00) | AP25: (15.00) | AQ25: (30.00) | AR25: 25.00 | AT25: 72.00 | AU25: 12.00 | AV25: (72.00) | AW25: (12.00) | AX25: (12.00) | AY25: 28.00 | BB25: 42.00 | BC25: 7.00 | BD25: (42.00) | BE25: (7.00) | BF25: 18.00 | BG25: 33.00 | BI25: 21.00 | BJ25: 3.50 | BK25: (21.00) | BL25: (3.50) | BM25: 39.00 | BN25: 36.50 | BP25: 60.00 | BQ25: 10.00 | BR25: (60.00) | BS25: (10.00) | BT25: 0 | BU25: 30.00 | CD25: filtro | CE25: pi | CF25: a0 | CG25: b1 | CH25: max Q | CI25: BP
A26: 63.00 | B26: 10.00 | C26: 22 | D26: 1.05 | E26: 2.10 | F26: 60.00 | G26: 60.00 | H26: 10.00 | I26: 60.00 | J26: 2.50 | K26: 60.00 | L26: 6.40 | M26: 60.00 | N26: 16.90 | O26: 60.00 | P26: 27.23 | Q26: 60 | R26: 10.00 | T26: =D26*$F$43 -> 63.00 | U26: 20.00 | V26: 30.00 | W26: =$F$44*D26 -> 42.00 | X26: 20.00 | Y26: 30.00 | Z26: 30.00 | AA26: =$F$44*J26 -> 100.00 | AB26: 60.00 | AC26: 40.00 | AD26: 0 | AF26: 63.00 | AG26: 9.52 | AH26: =AF26*-1 -> (63.00) | AI26: =AG26*-1 -> (9.52) | AJ26: (3.00) | AK26: =AI26+($E$47*2)+($D$47-$E$47) -> 30.48 | AM26: 94.50 | AN26: 14.29 | AO26: =AM26*-1 -> (94.50) | AP26: =AN26*-1 -> (14.29) | AQ26: (34.50) | AR26: 25.71 | AT26: 75.60 | AU26: 11.43 | AV26: =AT26*-1 -> (75.60) | AW26: =AU26*-1 -> (11.43) | AX26: (15.60) | AY26: 28.57 | BB26: 44.10 | BC26: 6.67 | BD26: =BB26*-1 -> (44.10) | BE26: =BC26*-1 -> (6.67) | BF26: 15.90 | BG26: 33.33 | BI26: 22.05 | BJ26: 3.33 | BK26: =BI26*-1 -> (22.05) | BL26: =BJ26*-1 -> (3.33) | BM26: 37.95 | BN26: 36.67 | BP26: 63.00 | BQ26: 9.52 | BR26: =BP26*-1 -> (63.00) | BS26: =BQ26*-1 -> (9.52) | BT26: (3.00) | BU26: 30.48 | CC26: Consumidor 1 | CD26: =IF(CE26>0,CE26,0) -> 46.7 | CE26: =CF26+(CG26*CI26) -> 46.7 | CF26: =BPub!D10 -> 80.0 | CG26: =BPub!E10 -> -5.0 | CH26: =CF26/CG26*-1 -> 16.0 | CI26: =CG34 -> 6.7
A27: 66.00 | B27: 10.00 | C27: 23 | D27: 1.10 | E27: 2.20 | F27: 60.00 | G27: 60.00 | H27: 10.00 | I27: 60.00 | J27: 2.50 | K27: 60.00 | L27: 6.40 | M27: 60.00 | N27: 16.90 | O27: 60.00 | P27: 27.23 | Q27: 60 | R27: 10.00 | T27: 66.00 | U27: 20.00 | V27: 30.00 | W27: 44.00 | X27: 20.00 | Y27: 30.00 | Z27: 30.00 | AA27: 100.00 | AB27: 60.00 | AC27: 40.00 | AD27: 0 | AF27: 66.00 | AG27: 9.09 | AH27: (66.00) | AI27: (9.09) | AJ27: (6.00) | AK27: 30.91 | AM27: 99.00 | AN27: 13.64 | AO27: (99.00) | AP27: (13.64) | AQ27: (39.00) | AR27: 26.36 | AT27: 79.20 | AU27: 10.91 | AV27: (79.20) | AW27: (10.91) | AX27: (19.20) | AY27: 29.09 | BB27: 46.20 | BC27: 6.36 | BD27: (46.20) | BE27: (6.36) | BF27: 13.80 | BG27: 33.64 | BI27: 23.10 | BJ27: 3.18 | BK27: (23.10) | BL27: (3.18) | BM27: 36.90 | BN27: 36.82 | BP27: 66.00 | BQ27: 9.09 | BR27: (66.00) | BS27: (9.09) | BT27: (6.00) | BU27: 30.91 | CC27: Consumidor 2 | CD27: 36.7 | CE27: 36.7 | CF27: =BPub!D11 -> 70.0 | CG27: =BPub!E11 -> -5.0 | CH27: 14.0 | CI27: =CI26 -> 6.7
A28: 69.00 | B28: 10.00 | C28: 24 | D28: 1.15 | E28: 2.30 | F28: 60.00 | G28: 60.00 | H28: 10.00 | I28: 60.00 | J28: 2.50 | K28: 60.00 | L28: 6.40 | M28: 60.00 | N28: 16.90 | O28: 60.00 | P28: 27.23 | Q28: 60 | R28: 10.00 | T28: 69.00 | U28: 20.00 | V28: 30.00 | W28: 46.00 | X28: 20.00 | Y28: 30.00 | Z28: 30.00 | AA28: 100.00 | AB28: 60.00 | AC28: 40.00 | AD28: 0 | AF28: 69.00 | AG28: 8.70 | AH28: (69.00) | AI28: (8.70) | AJ28: (9.00) | AK28: 31.30 | AM28: 103.50 | AN28: 13.04 | AO28: (103.50) | AP28: (13.04) | AQ28: (43.50) | AR28: 26.96 | AT28: 82.80 | AU28: 10.43 | AV28: (82.80) | AW28: (10.43) | AX28: (22.80) | AY28: 29.57 | BB28: 48.30 | BC28: 6.09 | BD28: (48.30) | BE28: (6.09) | BF28: 11.70 | BG28: 33.91 | BI28: 24.15 | BJ28: 3.04 | BK28: (24.15) | BL28: (3.04) | BM28: 35.85 | BN28: 36.96 | BP28: 69.00 | BQ28: 8.70 | BR28: (69.00) | BS28: (8.70) | BT28: (9.00) | BU28: 31.30 | CC28: Consumidor 3 | CD28: 26.7 | CE28: 26.7 | CF28: =BPub!D12 -> 60.0 | CG28: =BPub!E12 -> -5.0 | CH28: 12.0 | CI28: =CI27 -> 6.7
A29: 72.00 | B29: =($F$58/($F29^($D$52)))^(1/$D$53) -> 10.00 | C29: 25 | D29: 1.20 | E29: 2.40 | F29: =IF($D$46*E29>$F$43,$F$43,$D$46*E29) -> 60.00 | G29: 60.00 | H29: 10.00 | I29: 60.00 | J29: 2.50 | K29: 60.00 | L29: 6.40 | M29: 60.00 | N29: 16.90 | O29: 60.00 | P29: 27.23 | Q29: 60 | R29: 10.00 | T29: 72.00 | U29: 20.00 | V29: 30.00 | W29: 48.00 | X29: 20.00 | Y29: 30.00 | Z29: 30.00 | AA29: 100.00 | AB29: 60.00 | AC29: 40.00 | AD29: 0 | AF29: 72.00 | AG29: 8.33 | AH29: (72.00) | AI29: (8.33) | AJ29: (12.00) | AK29: 31.67 | AM29: 108.00 | AN29: 12.50 | AO29: (108.00) | AP29: (12.50) | AQ29: (48.00) | AR29: 27.50 | AT29: 86.40 | AU29: 10.00 | AV29: (86.40) | AW29: (10.00) | AX29: (26.40) | AY29: 30.00 | BB29: 50.40 | BC29: 5.83 | BD29: (50.40) | BE29: (5.83) | BF29: 9.60 | BG29: 34.17 | BI29: 25.20 | BJ29: 2.92 | BK29: (25.20) | BL29: (2.92) | BM29: 34.80 | BN29: 37.08 | BP29: 72.00 | BQ29: 8.33 | BR29: (72.00) | BS29: (8.33) | BT29: (12.00) | BU29: 31.67 | CC29: Consumidor 4 | CD29: 16.7 | CE29: 16.7 | CF29: =BPub!D13 -> 50.0 | CG29: =BPub!E13 -> -5.0 | CH29: 10.0 | CI29: =CI28 -> 6.7
A30: 75.00 | B30: 10.00 | C30: 26 | D30: 1.25 | E30: 2.50 | F30: 60.00 | G30: 60.00 | H30: 10.00 | I30: 60.00 | J30: 2.50 | K30: 60.00 | L30: 6.40 | M30: 60.00 | N30: 16.90 | O30: 60.00 | P30: 27.23 | Q30: 60 | R30: 10.00 | T30: 75.00 | U30: 20.00 | V30: 30.00 | W30: 50.00 | X30: 20.00 | Y30: 30.00 | Z30: 30.00 | AA30: 100.00 | AB30: 60.00 | AC30: 40.00 | AD30: 0 | AF30: 75.00 | AG30: 8.00 | AH30: (75.00) | AI30: (8.00) | AJ30: (15.00) | AK30: 32.00 | AM30: 112.50 | AN30: 12.00 | AO30: (112.50) | AP30: (12.00) | AQ30: (52.50) | AR30: 28.00 | AT30: 90.00 | AU30: 9.60 | AV30: (90.00) | AW30: (9.60) | AX30: (30.00) | AY30: 30.40 | BB30: 52.50 | BC30: 5.60 | BD30: (52.50) | BE30: (5.60) | BF30: 7.50 | BG30: 34.40 | BI30: 26.25 | BJ30: 2.80 | BK30: (26.25) | BL30: (2.80) | BM30: 33.75 | BN30: 37.20 | BP30: 75.00 | BQ30: 8.00 | BR30: (75.00) | BS30: (8.00) | BT30: (15.00) | BU30: 32.00 | CC30: Consumidor 5 | CD30: 6.7 | CE30: 6.7 | CF30: =BPub!D14 -> 40.0 | CG30: =BPub!E14 -> -5.0 | CH30: 8.0 | CI30: =CI29 -> 6.7
A31: 78.00 | B31: 10.00 | C31: 27 | D31: 1.30 | E31: 2.60 | F31: 60.00 | G31: 60.00 | H31: 10.00 | I31: 60.00 | J31: 2.50 | K31: 60.00 | L31: 6.40 | M31: 60.00 | N31: 16.90 | O31: 60.00 | P31: 27.23 | Q31: 60 | R31: 10.00 | T31: 78.00 | U31: 20.00 | V31: 30.00 | W31: 52.00 | X31: 20.00 | Y31: 30.00 | Z31: 30.00 | AA31: 100.00 | AB31: 60.00 | AC31: 40.00 | AD31: 0 | AF31: 78.00 | AG31: 7.69 | AH31: (78.00) | AI31: (7.69) | AJ31: (18.00) | AK31: 32.31 | AM31: 117.00 | AN31: 11.54 | AO31: (117.00) | AP31: (11.54) | AQ31: (57.00) | AR31: 28.46 | AT31: 93.60 | AU31: 9.23 | AV31: (93.60) | AW31: (9.23) | AX31: (33.60) | AY31: 30.77 | BB31: 54.60 | BC31: 5.38 | BD31: (54.60) | BE31: (5.38) | BF31: 5.40 | BG31: 34.62 | BI31: 27.30 | BJ31: 2.69 | BK31: (27.30) | BL31: (2.69) | BM31: 32.70 | BN31: 37.31 | BP31: 78.00 | BQ31: 7.69 | BR31: (78.00) | BS31: (7.69) | BT31: (18.00) | BU31: 32.31 | CC31: Total | CD31: 133.3 | CE31: 133.3 | CF31: =SUM(CF26:CF30) -> 300.0 | CG31: =SUM(CG26:CG30) -> -25.0 | CH31: 12.0 | CI31: =CI30 -> 6.7
A32: 81.00 | B32: 10.00 | C32: 28 | D32: 1.35 | E32: 2.70 | F32: 60.00 | G32: 60.00 | H32: 10.00 | I32: 60.00 | J32: 2.50 | K32: 60.00 | L32: 6.40 | M32: 60.00 | N32: 16.90 | O32: 60.00 | P32: 27.23 | Q32: 60 | R32: 10.00 | T32: 81.00 | U32: 20.00 | V32: 30.00 | W32: 54.00 | X32: 20.00 | Y32: 30.00 | Z32: 30.00 | AA32: 100.00 | AB32: 60.00 | AC32: 40.00 | AD32: 0 | AF32: 81.00 | AG32: 7.41 | AH32: (81.00) | AI32: (7.41) | AJ32: (21.00) | AK32: 32.59 | AM32: 121.50 | AN32: 11.11 | AO32: (121.50) | AP32: (11.11) | AQ32: (61.50) | AR32: 28.89 | AT32: 97.20 | AU32: 8.89 | AV32: (97.20) | AW32: (8.89) | AX32: (37.20) | AY32: 31.11 | BB32: 56.70 | BC32: 5.19 | BD32: (56.70) | BE32: (5.19) | BF32: 3.30 | BG32: 34.81 | BI32: 28.35 | BJ32: 2.59 | BK32: (28.35) | BL32: (2.59) | BM32: 31.65 | BN32: 37.41 | BP32: 81.00 | BQ32: 7.41 | BR32: (81.00) | BS32: (7.41) | BT32: (21.00) | BU32: 32.59 | CD32: COSTO MARGINAL
A33: 84.00 | B33: 10.00 | C33: 29 | D33: 1.40 | E33: 2.80 | F33: 60.00 | G33: 60.00 | H33: 10.00 | I33: 60.00 | J33: 2.50 | K33: 60.00 | L33: 6.40 | M33: 60.00 | N33: 16.90 | O33: 60.00 | P33: 27.23 | Q33: 60 | R33: 10.00 | T33: 84.00 | U33: 20.00 | V33: 30.00 | W33: 56.00 | X33: 20.00 | Y33: 30.00 | Z33: 30.00 | AA33: 100.00 | AB33: 60.00 | AC33: 40.00 | AD33: 0 | AF33: 84.00 | AG33: 7.14 | AH33: (84.00) | AI33: (7.14) | AJ33: (24.00) | AK33: 32.86 | AM33: 126.00 | AN33: 10.71 | AO33: (126.00) | AP33: (10.71) | AQ33: (66.00) | AR33: 29.29 | AT33: 100.80 | AU33: 8.57 | AV33: (100.80) | AW33: (8.57) | AX33: (40.80) | AY33: 31.43 | BB33: 58.80 | BC33: 5.00 | BD33: (58.80) | BE33: (5.00) | BF33: 1.20 | BG33: 35.00 | BI33: 29.40 | BJ33: 2.50 | BK33: (29.40) | BL33: (2.50) | BM33: 30.60 | BN33: 37.50 | BP33: 84.00 | BQ33: 7.14 | BR33: (84.00) | BS33: (7.14) | BT33: (24.00) | BU33: 32.86 | CD33: p i | CE33: g 0 | CF33: g 1 | CG33: BP
A34: 87.00 | B34: 10.00 | C34: 30 | D34: 1.45 | E34: 2.90 | F34: 60.00 | G34: 60.00 | H34: 10.00 | I34: 60.00 | J34: 2.50 | K34: 60.00 | L34: 6.40 | M34: 60.00 | N34: 16.90 | O34: 60.00 | P34: 27.23 | Q34: 60 | R34: 10.00 | T34: 87.00 | U34: 20.00 | V34: 30.00 | W34: 58.00 | X34: 20.00 | Y34: 30.00 | Z34: 30.00 | AA34: 100.00 | AB34: 60.00 | AC34: 40.00 | AD34: 0 | AF34: 87.00 | AG34: 6.90 | AH34: (87.00) | AI34: (6.90) | AJ34: (27.00) | AK34: 33.10 | AM34: 130.50 | AN34: 10.34 | AO34: (130.50) | AP34: (10.34) | AQ34: (70.50) | AR34: 29.66 | AT34: 104.40 | AU34: 8.28 | AV34: (104.40) | AW34: (8.28) | AX34: (44.40) | AY34: 31.72 | BB34: 60.90 | BC34: 4.83 | BD34: (60.90) | BE34: (4.83) | BF34: (0.90) | BG34: 35.17 | BI34: 30.45 | BJ34: 2.41 | BK34: (30.45) | BL34: (2.41) | BM34: 29.55 | BN34: 37.59 | BP34: 87.00 | BQ34: 6.90 | BR34: (87.00) | BS34: (6.90) | BT34: (27.00) | BU34: 33.10 | CC34: Consumidor 1 | CD34: =CE34+CF34*CG34 -> 133.3 | CE34: =BPub!D18 -> 0.0 | CF34: =BPub!E18 -> 20.0 | CG34: =(SUM(CF26:CF30)-CE34)/((SUM(CG26:CG30)*-1)+CF34) -> 6.67
A35: 90.00 | B35: 10.00 | C35: 31 | D35: 1.50 | E35: 3.00 | F35: 60.00 | G35: 60.00 | H35: 10.00 | I35: 60.00 | J35: 2.50 | K35: 60.00 | L35: 6.40 | M35: 60.00 | N35: 16.90 | O35: 60.00 | P35: 27.23 | Q35: 60 | R35: 10.00 | T35: 90.00 | U35: 20.00 | V35: 30.00 | W35: 60.00 | X35: 20.00 | Y35: 30.00 | Z35: 30.00 | AA35: 100.00 | AB35: 60.00 | AC35: 40.00 | AD35: 0 | AF35: 90.00 | AG35: 6.67 | AH35: (90.00) | AI35: (6.67) | AJ35: (30.00) | AK35: 33.33 | AM35: 135.00 | AN35: 10.00 | AO35: (135.00) | AP35: (10.00) | AQ35: (75.00) | AR35: 30.00 | AT35: 108.00 | AU35: 8.00 | AV35: (108.00) | AW35: (8.00) | AX35: (48.00) | AY35: 32.00 | BB35: 63.00 | BC35: 4.67 | BD35: (63.00) | BE35: (4.67) | BF35: (3.00) | BG35: 35.33 | BI35: 31.50 | BJ35: 2.33 | BK35: (31.50) | BL35: (2.33) | BM35: 28.50 | BN35: 37.67 | BP35: 90.00 | BQ35: 6.67 | BR35: (90.00) | BS35: (6.67) | BT35: (30.00) | BU35: 33.33 | CE35: Inserte los datos correspondientes | CI35: DEMANDAS AGREGADAS
A36: 93.00 | B36: 10.00 | C36: 32 | D36: 1.55 | E36: 3.10 | F36: 60.00 | G36: 60.00 | H36: 10.00 | I36: 60.00 | J36: 2.50 | K36: 60.00 | L36: 6.40 | M36: 60.00 | N36: 16.90 | O36: 60.00 | P36: 27.23 | Q36: 60 | R36: 10.00 | T36: 93.00 | U36: 20.00 | V36: 30.00 | W36: 62.00 | X36: 20.00 | Y36: 30.00 | Z36: 30.00 | AA36: 100.00 | AB36: 60.00 | AC36: 40.00 | AD36: 0 | AF36: 93.00 | AG36: 6.45 | AH36: (93.00) | AI36: (6.45) | AJ36: (33.00) | AK36: 33.55 | AM36: 139.50 | AN36: 9.68 | AO36: (139.50) | AP36: (9.68) | AQ36: (79.50) | AR36: 30.32 | AT36: 111.60 | AU36: 7.74 | AV36: (111.60) | AW36: (7.74) | AX36: (51.60) | AY36: 32.26 | BB36: 65.10 | BC36: 4.52 | BD36: (65.10) | BE36: (4.52) | BF36: (5.10) | BG36: 35.48 | BI36: 32.55 | BJ36: 2.26 | BK36: (32.55) | BL36: (2.26) | BM36: 27.45 | BN36: 37.74 | BP36: 93.00 | BQ36: 6.45 | BR36: (93.00) | BS36: (6.45) | BT36: (33.00) | BU36: 33.55 | CA36: Unidades | CB36: ponderador | CC36: P | CD36: C1 | CE36: C2 | CF36: C3 | CG36: C4 | CH36: C5 | CI36: (C1+C2) | CJ36: (C1+C2)+C3 | CK36: (C1+C2+C3)+C4 | CL36: (C1+C2+C3+C4)+C5 | CM36: DEMANDA
A37: 96.00 | B37: 10.00 | C37: 33 | D37: 1.60 | E37: 3.20 | F37: 60.00 | G37: 60.00 | H37: 10.00 | I37: 60.00 | J37: 2.50 | K37: 60.00 | L37: 6.40 | M37: 60.00 | N37: 16.90 | O37: 60.00 | P37: 27.23 | Q37: 60 | R37: 10.00 | T37: 96.00 | U37: 20.00 | V37: 30.00 | W37: 64.00 | X37: 20.00 | Y37: 30.00 | Z37: 30.00 | AA37: 100.00 | AB37: 60.00 | AC37: 40.00 | AD37: 0 | AF37: 96.00 | AG37: 6.25 | AH37: (96.00) | AI37: (6.25) | AJ37: (36.00) | AK37: 33.75 | AM37: 144.00 | AN37: 9.38 | AO37: (144.00) | AP37: (9.38) | AQ37: (84.00) | AR37: 30.63 | AT37: 115.20 | AU37: 7.50 | AV37: (115.20) | AW37: (7.50) | AX37: (55.20) | AY37: 32.50 | BB37: 67.20 | BC37: 4.38 | BD37: (67.20) | BE37: (4.38) | BF37: (7.20) | BG37: 35.63 | BI37: 33.60 | BJ37: 2.19 | BK37: (33.60) | BL37: (2.19) | BM37: 26.40 | BN37: 37.81 | BP37: 96.00 | BQ37: 6.25 | BR37: (96.00) | BS37: (6.25) | BT37: (36.00) | BU37: 33.75 | CA37: 1 | CB37: 0 | CC37: =100*CB37 -> 0 | CD37: =IF(CD3>0,CD3,0) -> 80.00 | CE37: =IF(CE3>0,CE3,0) -> 70.00 | CF37: =IF(CF3>0,CF3,0) -> 60.00 | CG37: =IF(CG3>0,CG3,0) -> 50.00 | CH37: =IF(CH3>0,CH3,0) -> 40.00 | CI37: =CD37+CE37 -> 150.00 | CJ37: =CI37+CF37 -> 210.00 | CK37: =CJ37+CG37 -> 260.00 | CL37: =CK37+CH37 -> 300.00 | CM37: =MAX(CI37:CL37) -> 300.00
A38: 99.00 | B38: 10.00 | C38: 34 | D38: 1.65 | E38: 3.30 | F38: 60.00 | G38: 60.00 | H38: 10.00 | I38: 60.00 | J38: 2.50 | K38: 60.00 | L38: 6.40 | M38: 60.00 | N38: 16.90 | O38: 60.00 | P38: 27.23 | Q38: 60 | R38: 10.00 | T38: 99.00 | U38: 20.00 | V38: 30.00 | W38: 66.00 | X38: 20.00 | Y38: 30.00 | Z38: 30.00 | AA38: 100.00 | AB38: 60.00 | AC38: 40.00 | AD38: 0 | AF38: 99.00 | AG38: 6.06 | AH38: (99.00) | AI38: (6.06) | AJ38: (39.00) | AK38: 33.94 | AM38: 148.50 | AN38: 9.09 | AO38: (148.50) | AP38: (9.09) | AQ38: (88.50) | AR38: 30.91 | AT38: 118.80 | AU38: 7.27 | AV38: (118.80) | AW38: (7.27) | AX38: (58.80) | AY38: 32.73 | BB38: 69.30 | BC38: 4.24 | BD38: (69.30) | BE38: (4.24) | BF38: (9.30) | BG38: 35.76 | BI38: 34.65 | BJ38: 2.12 | BK38: (34.65) | BL38: (2.12) | BM38: 25.35 | BN38: 37.88 | BP38: 99.00 | BQ38: 6.06 | BR38: (99.00) | BS38: (6.06) | BT38: (39.00) | BU38: 33.94 | CA38: 2 | CB38: 0.05 | CC38: =100*CB38 -> 5.00 | CD38: =IF(CD4>0,CD4,0) -> 76.00 | CE38: 66.00 | CF38: 56.00 | CG38: 46.00 | CH38: 36.00 | CI38: =CD38+CE38 -> 142.00 | CJ38: =CI38+CF38 -> 198.00 | CK38: 244.00 | CL38: 280.00 | CM38: =MAX(CI38:CL38) -> 280.00
A39: 102.00 | B39: 10.00 | C39: 35 | D39: 1.70 | E39: 3.40 | F39: 60.00 | G39: 60.00 | H39: 10.00 | I39: 60.00 | J39: 2.50 | K39: 60.00 | L39: 6.40 | M39: 60.00 | N39: 16.90 | O39: 60.00 | P39: 27.23 | Q39: 60 | R39: 10.00 | T39: 102.00 | U39: 20.00 | V39: 30.00 | W39: 68.00 | X39: 20.00 | Y39: 30.00 | Z39: 30.00 | AA39: 100.00 | AB39: 60.00 | AC39: 40.00 | AD39: 0 | AF39: 102.00 | AG39: 5.88 | AH39: (102.00) | AI39: (5.88) | AJ39: (42.00) | AK39: 34.12 | AM39: 153.00 | AN39: 8.82 | AO39: (153.00) | AP39: (8.82) | AQ39: (93.00) | AR39: 31.18 | AT39: 122.40 | AU39: 7.06 | AV39: (122.40) | AW39: (7.06) | AX39: (62.40) | AY39: 32.94 | BB39: 71.40 | BC39: 4.12 | BD39: (71.40) | BE39: (4.12) | BF39: (11.40) | BG39: 35.88 | BI39: =$E39*$BC$59 -> 35.70 | BJ39: 2.06 | BK39: (35.70) | BL39: (2.06) | BM39: 24.30 | BN39: 37.94 | BP39: 102.00 | BQ39: 5.88 | BR39: (102.00) | BS39: (5.88) | BT39: (42.00) | BU39: 34.12 | CA39: 3 | CB39: 0.10 | CC39: 10.00 | CD39: 72.00 | CE39: 62.00 | CF39: 52.00 | CG39: 42.00 | CH39: 32.00 | CI39: 134.00 | CJ39: 186.00 | CK39: 228.00 | CL39: 260.00 | CM39: 260.00
A40: 60.00 | B40: =($F$58/($F40^($D$52)))^(1/$D$53) -> 10.00 | C40: 36 | D40: 1.75 | E40: =F43/D46 -> 2.00 | F40: 60.00 | G40: 60.00 | H40: 10.00 | I40: 60.00 | J40: 2.50 | K40: 60.00 | L40: 6.40 | M40: 60.00 | N40: 16.90 | O40: 60.00 | P40: 27.23 | Q40: 60 | R40: 10.00 | T40: 105.00 | U40: 20.00 | V40: 30.00 | W40: 70.00 | X40: 20.00 | Y40: 30.00 | Z40: 30.00 | AA40: 100.00 | AB40: 60.00 | AC40: 40.00 | AD40: 0 | AF40: 60.00 | AG40: 10.00 | AH40: (60.00) | AI40: (10.00) | AJ40: =IF((AH40+($AF$15*2)+($D$46-$E$46))>AJ39,AJ39-0.001,(AH40+($AF$15*2)+($D$46-$E$46))) -> (42.00) | AK40: =IF((AI40+($E$47*2)+($D$47-$E$47))<AK39,AK39+0.001,(AI40+($E$47*2)+($D$47-$E$47))) -> 34.12 | AM40: 90.00 | AN40: 15.00 | AO40: (90.00) | AP40: (15.00) | AQ40: =IF((AO40+($AM$15*2)+($AL$48-$AM$48))>AQ39,AQ39-0.001,(AO40+($AM$15*2)+($AL$48-$AM$48))) -> (93.00) | AR40: =IF((AP40+($AN$15*2)+($AL$49-$AM$49))<AR39,AR39+0.001,(AP40+($AN$15*2)+($AL$49-$AM$49))) -> 31.18 | AT40: 72.00 | AU40: 12.00 | AV40: (72.00) | AW40: (12.00) | AX40: =IF((AV40+($AT$15*2)+($AL$59-$AM$59))>AX39,AX39-0.001,(AV40+($AT$15*2)+($AL$59-$AM$59))) -> (62.40) | AY40: =IF((AW40+($AU$15*2)+($AL$60-$AM$60))<AY39,AY39+0.001,(AW40+($AU$15*2)+($AL$60-$AM$60))) -> 32.94 | BB40: 42.00 | BC40: 7.00 | BD40: (42.00) | BE40: (7.00) | BF40: =IF((BD40+($BB$15*2)+($BB$48-$BC$48))>BF39,BF39-0.001,(BD40+($BB$15*2)+($BB$48-$BC$48))) -> (11.40) | BG40: =IF((BE40+($BC$15*2)+($BB$49-$BC$49))<BG39,BG39+0.001,(BE40+($BC$15*2)+($BB$49-$BC$49))) -> 35.88 | BI40: =$E40*$BC$59 -> 21.00 | BJ40: 3.50 | BK40: (21.00) | BL40: (3.50) | BM40: =IF((BK40+($BI$15*2)+($BB$59-$BC$59))>BM39,BM39-0.001,(BK40+($BI$15*2)+($BB$59-$BC$59))) -> 24.30 | BN40: =IF((BL40+($BJ$15*2)+($BB$60-$BC$60))<BN39,BN39+0.001,(BL40+($BJ$15*2)+($BB$60-$BC$60))) -> 37.94 | BP40: 60.00 | BQ40: 10.00 | BR40: (60.00) | BS40: (10.00) | BT40: =IF((BR40+($BP$15*2)+($BK$46-$BL$46))>BT39,BT39-0.001,(BR40+($BP$15*2)+($BK$46-$BL$46))) -> (42.00) | BU40: =IF((BS40+($BQ$15*2)+($BK$47-$BL$47))<BU39,BU39+0.001,(BS40+($BQ$15*2)+($BK$47-$BL$47))) -> 34.12 | CA40: 4 | CB40: 0.15 | CC40: 15.00 | CD40: 68.00 | CE40: 58.00 | CF40: 48.00 | CG40: 38.00 | CH40: 28.00 | CI40: 126.00 | CJ40: 174.00 | CK40: 212.00 | CL40: 240.00 | CM40: 240.00
C41: original | H41: menos 2 | N41: más 1 | CA41: 5 | CB41: 0.20 | CC41: 20.00 | CD41: 64.00 | CE41: 54.00 | CF41: 44.00 | CG41: 34.00 | CH41: 24.00 | CI41: 118.00 | CJ41: 162.00 | CK41: 196.00 | CL41: 220.00 | CM41: 220.00
D42: Individuo A | E42: Individuo B | F42: Total | I42: Individuo A | J42: Individuo B | K42: Total | O42: Individuo A | P42: Individuo B | Q42: Total | CA42: 6 | CB42: 0.25 | CC42: 25.00 | CD42: 60.00 | CE42: 50.00 | CF42: 40.00 | CG42: 30.00 | CH42: 20.00 | CI42: 110.00 | CJ42: 150.00 | CK42: 180.00 | CL42: 200.00 | CM42: 200.00
C43: Dotación Bien 1 | D43: ='Caja EGC'!C10 -> 30 | E43: ='Caja EGC'!D10 -> 30 | F43: =E43+D43 -> 60 | G43: =($D$52*((D44/D43)^($D$53)))/($D$53*((D43/D44)^($D$52))) -> 0.6666666667 | H43: Dotación Bien 1 | I43: =D43*0.5 -> 15 | J43: =K43-I43 -> 45 | K43: =F43 -> 60 | N43: Dotación Bien 1 | O43: =((F43-D43)*0.2)+D43 -> 36 | P43: =Q43-O43 -> 24 | Q43: =K43 -> 60 | AK43: MENOS 2 | BA43: MÁS 1 | CA43: 7 | CB43: 0.30 | CC43: 30.00 | CD43: 56.00 | CE43: 46.00 | CF43: 36.00 | CG43: 26.00 | CH43: 16.00 | CI43: 102.00 | CJ43: 138.00 | CK43: 164.00 | CL43: 180.00 | CM43: 180.00
C44: Dotación Bien 2 | D44: ='Caja EGC'!C11 -> 20 | E44: ='Caja EGC'!D11 -> 20 | F44: =E44+D44 -> 40 | G44: =($E$54*((E44/E43)^($E$55)))/($E$55*((E43/E44)^($E$54))) -> 0.6666666667 | H44: Dotación Bien 2 | I44: =D44*0.5 -> 10 | J44: =K44-I44 -> 30 | K44: =F44 -> 40 | N44: Dotación Bien 2 | O44: =((F44-D44)*0.4)+D44 -> 28 | P44: =Q44-O44 -> 12 | Q44: =K44 -> 40 | AL44: Individuo A | AM44: Individuo B | AN44: Total | BB44: Individuo A | BC44: Individuo B | BD44: Total | BJ44: DOTACIÓN | CA44: 8 | CB44: 0.35 | CC44: 35.00 | CD44: 52.00 | CE44: 42.00 | CF44: 32.00 | CG44: 22.00 | CH44: 12.00 | CI44: 94.00 | CJ44: 126.00 | CK44: 148.00 | CL44: 160.00 | CM44: 160.00
C45: UTILIDAD | D45: =D43^($D$52)*D44^($D$53) -> 24.49489743 | E45: =E43^($E$54)*E44^($E$55) -> 24.49489743 | AK45: Dotación Bien 1 | AL45: =I43 -> 15 | AM45: 45 | AN45: 60 | BA45: Dotación Bien 1 | BB45: =O43 -> 36 | BC45: 24 | BD45: 60 | BK45: Individuo A | BL45: Individuo B | BM45: Total | CA45: 9 | CB45: 0.40 | CC45: 40.00 | CD45: 48.00 | CE45: 38.00 | CF45: 28.00 | CG45: 18.00 | CH45: 8.00 | CI45: 86.00 | CJ45: 114.00 | CK45: 132.00 | CL45: 140.00 | CM45: 140.00
C46: Demanda Bruta Bien 1 | D46: =(D52*D43)+(E57*D44*D52) -> 30 | E46: =(E54*E43)+(E54*E57*E44) -> 30 | F46: =E46+D46 -> 60 | G46: =($D$52*((D47/D46)^($D$53)))/($D$53*((D46/D47)^($D$52))) -> 0.6666666667 | H46: Demanda Bruta Bien 1 | I46: =($D$52*I43)+(J49*I44*$D$52) -> 15 | J46: =($E$54*J43)+($E$54*J49*J44) -> 45 | K46: =J46+I46 -> 60 | M46: =($D$52*((I47/I46)^($D$53)))/($D$53*((I46/I47)^($D$52))) -> 0.6666666667 | N46: Demanda Bruta Bien 1 | O46: =($D$52*O43)+(P49*O44*$D$52) -> 39 | P46: =($E$54*P43)+($E$54*P49*P44) -> 21 | Q46: =P46+O46 -> 60 | R46: =($D$52*((O47/O46)^($D$53)))/($D$53*((O46/O47)^($D$52))) -> 0.6666666667 | AK46: Dotación Bien 2 | AL46: 10 | AM46: 30 | AN46: 40 | BA46: Dotación Bien 2 | BB46: 28 | BC46: 12 | BD46: 40 | BJ46: Dotación Bien 1 | BK46: =D43 -> 30 | BL46: 30 | BM46: 60 | CA46: 10 | CB46: 0.45 | CC46: 45.00 | CD46: 44.00 | CE46: 34.00 | CF46: 24.00 | CG46: 14.00 | CH46: 4.00 | CI46: 78.00 | CJ46: 102.00 | CK46: 116.00 | CL46: 120.00 | CM46: 120.00
C47: Demanda Bruta Bien 2 | D47: =(D53*E58*D43)+(D53*D44) -> 20 | E47: =(E55*E58*E43)+(E55*E44) -> 20 | F47: =E47+D47 -> 40 | G47: =($E$54*((E47/E46)^($E$55)))/($E$55*((E46/E47)^($E$54))) -> 0.6666666667 | H47: Demanda Bruta Bien 2 | I47: =($D$53*J50*I43)+($D$53*I44) -> 10 | J47: =($E$55*J50*J43)+($E$55*J44) -> 30 | K47: =J47+I47 -> 40 | M47: =($E$54*((J47/J46)^($E$55)))/($E$55*((J46/J47)^($E$54))) -> 0.6666666667 | N47: Demanda Bruta Bien 2 | O47: =($D$53*P50*O43)+($D$53*O44) -> 26 | P47: =($E$55*P50*P43)+($E$55*P44) -> 14 | Q47: =P47+O47 -> 40 | R47: =($E$54*((P47/P46)^($E$55)))/($E$55*((P46/P47)^($E$54))) -> 0.6666666667 | AK47: UTILIDAD | AL47: =AL45^($D$52)*AL46^($D$53) -> 12.24744871 | AM47: =AM45^($E$54)*AM46^($E$55) -> 36.74234614 | BA47: UTILIDAD | BB47: =BB45^($D$52)*BB46^($D$53) -> 31.74901573 | BC47: =BC45^($E$54)*BC46^($E$55) -> 16.97056275 | BJ47: Dotación Bien 2 | BK47: 20 | BL47: 20 | BM47: 40 | CA47: 11 | CB47: 0.50 | CC47: 50.00 | CD47: 40.00 | CE47: 30.00 | CF47: 20.00 | CG47: 10.00 | CH47: 0 | CI47: 70.00 | CJ47: 90.00 | CK47: 100.00 | CL47: 100.00 | CM47: 100.00
C48: UTILIDAD | D48: =D46^($D$52)*D47^($D$53) -> 24.49489743 | E48: =E46^($E$54)*E47^($E$55) -> 24.49489743 | AK48: Demanda Bruta Bien 1 | AL48: =I46 -> 15 | AM48: 45 | AN48: 60 | BA48: Demanda Bruta Bien 1 | BB48: =O46 -> 39 | BC48: 21 | BD48: 60 | BJ48: UTILIDAD | BK48: =BK46^($D$52)*BK47^($D$53) -> 24.49489743 | BL48: =BL46^($E$54)*BL47^($E$55) -> 24.49489743 | CA48: 12 | CB48: 0.55 | CC48: 55.00 | CD48: 36.00 | CE48: 26.00 | CF48: 16.00 | CG48: 6.00 | CH48: 0 | CI48: 62.00 | CJ48: 78.00 | CK48: 84.00 | CL48: 84.00 | CM48: 84.00
C49: Demanda Neta Bien 1 | D49: =D46-D43 -> 0 | E49: =D47-D44 -> 0 | H49: P2/P1 | J49: =(($D$53*I43)+($E$55*J43))/(($D$52*I44)+($E$54*J44)) -> 1.5 | K49: k inicial | N49: P2/P1 | P49: =(($D$53*O43)+($E$55*P43))/(($D$52*O44)+($E$54*P44)) -> 1.5 | Q49: k inicial | AK49: Demanda Bruta Bien 2 | AL49: 10 | AM49: 30 | AN49: 40 | BA49: Demanda Bruta Bien 2 | BB49: 26 | BC49: 14 | BD49: 40 | CA49: 13 | CB49: 0.60 | CC49: 60.00 | CD49: 32.00 | CE49: 22.00 | CF49: 12.00 | CG49: 2.00 | CH49: 0 | CI49: 54.00 | CJ49: 66.00 | CK49: 68.00 | CL49: 68.00 | CM49: 68.00
C50: Demanda Neta Bien 2 | D50: =E46-E43 -> 0 | E50: =E47-E44 -> 0 | H50: P1/P2 | J50: =1/J49 -> 0.6666666667 | K50: =(I46^($D$52))*(I47^($D$53)) -> 12.24744871 | N50: P1/P2 | P50: =1/P49 -> 0.6666666667 | Q50: =(O46^($D$52))*(O47^($D$53)) -> 31.84336666 | AK50: UTILIDAD | AL50: =AL48^($D$52)*AL49^($D$53) -> 12.24744871 | AM50: =AM48^($E$54)*AM49^($E$55) -> 36.74234614 | BA50: UTILIDAD | BB50: =BB48^($D$52)*BB49^($D$53) -> 31.84336666 | BC50: =BC48^($E$54)*BC49^($E$55) -> 17.1464282 | CA50: 14 | CB50: 0.65 | CC50: 65.00 | CD50: 28.00 | CE50: 18.00 | CF50: 8.00 | CG50: 0 | CH50: 0 | CI50: 46.00 | CJ50: 54.00 | CK50: 54.00 | CL50: 54.00 | CM50: 54.00
AK51: P2/P1 | AM51: =J49 -> 1.5 | AN51: =K49 -> k inicial | BA51: P2/P1 | BC51: =P49 -> 1.5 | BD51: =Q49 -> k inicial | CA51: 15 | CB51: 0.70 | CC51: 70.00 | CD51: 24.00 | CE51: 14.00 | CF51: 4.00 | CG51: 0 | CH51: 0 | CI51: 38.00 | CJ51: 42.00 | CK51: 42.00 | CL51: 42.00 | CM51: 42.00
C52: a | D52: ='Caja EGC'!C24 -> 0.5 | H52: menos 1 | N52: más 2 | AK52: P1/P2 | AM52: =J50 -> 0.6666666667 | AN52: =K50 -> 12.24744871 | BA52: P1/P2 | BC52: =P50 -> 0.6666666667 | BD52: =Q50 -> 31.84336666 | CA52: 16 | CB52: 0.75 | CC52: 75.00 | CD52: 20.00 | CE52: 10.00 | CF52: 0 | CG52: 0 | CH52: 0 | CI52: 30.00 | CJ52: 30.00 | CK52: 30.00 | CL52: 30.00 | CM52: 30.00
C53: 1-a | D53: =1-D52 -> 0.5 | I53: Individuo A | J53: Individuo B | K53: Total | O53: Individuo A | P53: Individuo B | Q53: Total | CA53: 17 | CB53: 0.80 | CC53: 80.00 | CD53: 16.00 | CE53: 6.00 | CF53: 0 | CG53: 0 | CH53: 0 | CI53: 22.00 | CJ53: 22.00 | CK53: 22.00 | CL53: 22.00 | CM53: 22.00
C54: b | E54: ='Caja EGC'!D26 -> 0.5 | H54: Dotación Bien 1 | I54: =D43*0.8 -> 24 | J54: =K54-I54 -> 36 | K54: =K43 -> 60 | N54: Dotación Bien 1 | O54: =((F43-D43)*0.5)+D43 -> 45 | P54: =Q54-O54 -> 15 | Q54: =Q43 -> 60 | AK54: MENOS 1 | BA54: MÁS 2 | CA54: 18 | CB54: 0.85 | CC54: 85.00 | CD54: =IF(CD20>0,CD20,0) -> 12.00 | CE54: 2.00 | CF54: 0 | CG54: 0 | CH54: 0 | CI54: 14.00 | CJ54: 14.00 | CK54: 14.00 | CL54: 14.00 | CM54: 14.00
C55: 1-b | E55: =1-E54 -> 0.5 | H55: Dotación Bien 2 | I55: =D44*0.8 -> 16 | J55: =K55-I55 -> 24 | K55: =K44 -> 40 | N55: Dotación Bien 2 | O55: =((F44-D44)*0.8)+D44 -> 36 | P55: =Q55-O55 -> 4 | Q55: =Q44 -> 40 | AL55: Individuo A | AM55: Individuo B | AN55: Total | BB55: Individuo A | BC55: Individuo B | BD55: Total | CA55: 19 | CB55: 0.90 | CC55: 90.00 | CD55: 8.00 | CE55: 0 | CF55: 0 | CG55: 0 | CH55: 0 | CI55: 8.00 | CJ55: 8.00 | CK55: 8.00 | CL55: 8.00 | CM55: 8.00
AK56: Dotación Bien 1 | AL56: =I54 -> 24 | AM56: 36 | AN56: 60 | BA56: Dotación Bien 1 | BB56: =O54 -> 45 | BC56: 15 | BD56: 60 | CA56: 20 | CB56: 0.95 | CC56: 95.00 | CD56: 4.00 | CE56: 0 | CF56: 0 | CG56: 0 | CH56: 0 | CI56: 4.00 | CJ56: 4.00 | CK56: 4.00 | CL56: 4.00 | CM56: 4.00
C57: P2/P1 | E57: =((D53*D43)+(E55*E43))/((D52*D44)+(E54*E44)) -> 1.5 | F57: k inicial | H57: Demanda Bruta Bien 1 | I57: =($D$52*I54)+(J60*I55*$D$52) -> 24 | J57: =($E$54*J54)+($E$54*J60*J55) -> 36 | K57: =J57+I57 -> 60 | M57: =($D$52*((I58/I57)^($D$53)))/($D$53*((I57/I58)^($D$52))) -> 0.6666666667 | N57: Demanda Bruta Bien 1 | O57: =($D$52*O54)+(P60*O55*$D$52) -> 49.5 | P57: =($E$54*P54)+($E$54*P60*P55) -> 10.5 | Q57: =P57+O57 -> 60 | R57: =($D$52*((O58/O57)^($D$53)))/($D$53*((O57/O58)^($D$52))) -> 0.6666666667 | AK57: Dotación Bien 2 | AL57: 16 | AM57: 24 | AN57: 40 | BA57: Dotación Bien 2 | BB57: 36 | BC57: 4 | BD57: 40 | CA57: 21 | CB57: 1.00 | CC57: 100.00 | CD57: 0 | CE57: 0 | CF57: 0 | CG57: 0 | CH57: 0 | CI57: 0 | CJ57: 0 | CK57: 0 | CL57: 0 | CM57: 0
C58: P1/P2 | E58: =1/E57 -> 0.6666666667 | F58: =(D46^($D$52))*(D47^($D$53)) -> 24.49489743 | H58: Demanda Bruta Bien 2 | I58: =($D$53*J61*I54)+($D$53*I55) -> 16 | J58: =($E$55*J61*J54)+($E$55*J55) -> 24 | K58: =J58+I58 -> 40 | M58: =($E$54*((J58/J57)^($E$55)))/($E$55*((J57/J58)^($E$54))) -> 0.6666666667 | N58: Demanda Bruta Bien 2 | O58: =($D$53*P61*O54)+($D$53*O55) -> 33 | P58: =($E$55*P61*P54)+($E$55*P55) -> 7 | Q58: =P58+O58 -> 40 | R58: =($E$54*((P58/P57)^($E$55)))/($E$55*((P57/P58)^($E$54))) -> 0.6666666667 | AK58: UTILIDAD | AL58: =AL56^($D$52)*AL57^($D$53) -> 19.59591794 | AM58: =AM56^($E$54)*AM57^($E$55) -> 29.39387691 | BA58: UTILIDAD | BB58: =BB56^($D$52)*BB57^($D$53) -> 40.24922359 | BC58: =BC56^($E$54)*BC57^($E$55) -> 7.745966692
AK59: Demanda Bruta Bien 1 | AL59: =($D$52*AL56)+(AM62*AL57*$D$52) -> 24 | AM59: =J57 -> 36 | AN59: =K57 -> 60 | BA59: Demanda Bruta Bien 1 | BB59: =O57 -> 49.5 | BC59: 10.5 | BD59: 60
H60: P2/P1 | J60: =(($D$53*I54)+($E$55*J54))/(($D$52*I55)+($E$54*J55)) -> 1.5 | K60: k inicial | N60: P2/P1 | P60: =(($D$53*O54)+($E$55*P54))/(($D$52*O55)+($E$54*P55)) -> 1.5 | Q60: k inicial | AK60: Demanda Bruta Bien 2 | AL60: =($D$53*AM63*AL56)+($D$53*AL57) -> 16 | AM60: =J58 -> 24 | AN60: =K58 -> 40 | BA60: Demanda Bruta Bien 2 | BB60: 33 | BC60: 7 | BD60: 40
H61: P1/P2 | J61: =1/J60 -> 0.6666666667 | K61: =(I57^($D$52))*(I58^($D$53)) -> 19.59591794 | N61: P1/P2 | P61: =1/P60 -> 0.6666666667 | Q61: =(O57^($D$52))*(O58^($D$53)) -> 40.41658076 | AK61: UTILIDAD | AL61: =AL59^($D$52)*AL60^($D$53) -> 19.59591794 | AM61: =AM59^($E$54)*AM60^($E$55) -> 29.39387691 | BA61: UTILIDAD | BB61: =BB59^($D$52)*BB60^($D$53) -> 40.41658076 | BC61: =BC59^($E$54)*BC60^($E$55) -> 8.5732141
AK62: P2/P1 | AM62: =J60 -> 1.5 | AN62: =K60 -> k inicial | BA62: P2/P1 | BC62: =P60 -> 1.5 | BD62: =Q60 -> k inicial
D63: curva de tranasformación | E63: Inicio | F63: menos 2 | G63: menos 1 | H63: original | I63: más 1 | J63: más 2 | K63: final | AK63: P1/P2 | AM63: =J61 -> 0.6666666667 | AN63: =K61 -> 19.59591794 | BA63: P1/P2 | BC63: =P61 -> 0.6666666667 | BD63: =Q61 -> 40.41658076
D64: x1 | E64: 0 | F64: =I46 -> 15 | G64: =I57 -> 24 | H64: =D46 -> 30 | I64: =O46 -> 39 | J64: =O57 -> 49.5 | K64: =F43 -> 60
D65: x2 | E65: 0 | F65: =I47 -> 10 | G65: =I58 -> 16 | H65: =D47 -> 20 | I65: =O47 -> 26 | J65: =O58 -> 33 | K65: =F44 -> 40
B70: ÓPTIMO DE PARETO
F71: =POWER((F112/(F98^D107)),1/D106) -> 15 | G71: =($F$112/($F71^($D$106)))^(1/$D$107) -> 20 | AC71: DOTACIÓN | AD71: =POWER((D99/(F98^D107)),1/D106) -> 15 | AE71: =($D$99/($AD71^($D$106)))^(1/$D$107) -> 20
A72: =+A94-D84 -> 1.00 | F72: Original | G72: Original | I72: DOTACIÓN | M72: OPTIMO | Q72: CAJA | U72: ORIGINAL | V72: ORIGINAL | W72: NEGATIVO | X72: NEGATIVO | Y72: TRANSFORMADA | AC72: Original | AE72: Original | AG72: ORIGINAL | AH72: ORIGINAL | AI72: NEGATIVO | AJ72: NEGATIVO | AK72: TRANSFORMADA
A73: =+A72/10 -> 0.10 | B73: Unidades | C73: ponderador | E73: x1 | F73: x1 | G73: x2 | I73: x1linedotación | K73: x2line | M73: x1linedotación | O73: x2line | U73: x1 | V73: x2 | W73: MENOS X1 | X73: MENOS X2 | Y73: x1 | Z73: x2 | AC73: x1 | AE73: x2 | AG73: x1 | AH73: x2 | AI73: MENOS X1 | AJ73: MENOS X2 | AK73: x1 | AL73: x2
A74: =+D74 -> 0.01 | B74: 1 | C74: 0 | D74: 0.01 | E74: =$D$100*A74 -> 0.30 | F74: =IF(($F$112/($E74^($D$106)))^(1/$D$107)>$F$98,$F$71,E74) -> 15 | G74: =($F$112/($F74^($D$106)))^(1/$D$107) -> 20.00 | I74: =C74*$F$97 -> 0 | J74: =$D$98 -> 10.00 | K74: =$D$97 -> 30.00 | L74: =$F$98*C74 -> 0 | M74: =$D$101 -> 10.00 | N74: =$D$100 -> 30.00 | O74: =$D$97 -> 30.00 | P74: =C74*$F$98 -> 0 | Q74: =$F$97 -> 60.00 | R74: =$F$98 -> 20.00 | S74: 0 | U74: =$E$100*D74 -> 0.30 | V74: =(($H$101)/(U74^($E$108)))^(1/$E$109) -> 1,000.00 | W74: =U74*-1 -> (0.30) | X74: =V74*-1 -> (1,000.00) | Y74: =W74+($U$84*2)+($D$100-$E$100) -> 59.70 | Z74: =X74+($V$84*2)+($D$101-$E$101) -> (980.00) | AC74: =IF(($D$97*D74)>$F$97,$F$97,($D$97*A74)) -> 0.30 | AD74: =IF(((($D$97^($D$106))*($D$98^($D$107)))/(AC74^($D$106)))^(1/$D$107)>$F$98,$AD$71,AC74) -> 15.00 | AE74: =((($D$97^($D$106))*($D$98^($D$107)))/(AD74^($D$106)))^(1/$D$107) -> 20.00 | AG74: =$E$97*D74 -> 0.30 | AH74: =(($H$98)/(AG74^($E$108)))^(1/$E$109) -> 1,000.00 | AI74: =AG74*-1 -> (0.30) | AJ74: =AH74*-1 -> (1,000.00) | AK74: =IF((AI74+($AG$84*2)+($D$97-$E$97))>$F$97,$F$97,AI74+($AG$84*2)+($D$97-$E$97)) -> 59.70 | AL74: =AJ74+($AH$84*2)+($D$98-$F$98) -> (990.00)
A75: =+D75 -> 0.10 | B75: 2 | C75: 0.01 | D75: 0.10 | E75: =$D$100*A75 -> 3.00 | F75: =IF(($F$112/($E75^($D$106)))^(1/$D$107)>$F$98,$F$71,E75) -> 15 | G75: =($F$112/($F75^($D$106)))^(1/$D$107) -> 20.00 | I75: 0.60 | J75: 10.00 | K75: 30.00 | L75: 0.20 | M75: 10.00 | N75: 30.00 | O75: 30.00 | P75: 0.20 | Q75: 60.00 | R75: 20.00 | S75: 0 | U75: 3.00 | V75: 100.00 | W75: (3.00) | X75: (100.00) | Y75: 57.00 | Z75: (80.00) | AC75: =IF(($D$97*D75)>$F$97,$F$97,($D$97*D75)) -> 3.00 | AD75: =IF(((($D$97^($D$106))*($D$98^($D$107)))/(AC75^($D$106)))^(1/$D$107)>$F$98,$AD$71,AC75) -> 15.00 | AE75: =((($D$97^($D$106))*($D$98^($D$107)))/(AD75^($D$106)))^(1/$D$107) -> 20.00 | AG75: 3.00 | AH75: 100.00 | AI75: (3.00) | AJ75: (100.00) | AK75: 57.00 | AL75: =AJ75+($AH$84*2)+($D$98-$E$98) -> (80.00)
A76: 0.20 | B76: 3 | C76: 0.10 | D76: 0.20 | E76: 6.00 | F76: 15 | G76: 20.00 | I76: 6.00 | J76: 10.00 | K76: 30.00 | L76: 2.00 | M76: 10.00 | N76: 30.00 | O76: 30.00 | P76: 2.00 | Q76: 60.00 | R76: 20.00 | S76: 0 | U76: 6.00 | V76: 50.00 | W76: (6.00) | X76: (50.00) | Y76: 54.00 | Z76: (30.00) | AC76: 6.00 | AD76: 15.00 | AE76: 20.00 | AG76: 6.00 | AH76: 50.00 | AI76: (6.00) | AJ76: (50.00) | AK76: 54.00 | AL76: (30.00)
A77: 0.30 | B77: 4 | C77: 0.15 | D77: 0.30 | E77: 9.00 | F77: 15 | G77: 20.00 | I77: 9.00 | J77: 10.00 | K77: 30.00 | L77: 3.00 | M77: 10.00 | N77: 30.00 | O77: 30.00 | P77: 3.00 | Q77: 60.00 | R77: 20.00 | S77: 0 | U77: 9.00 | V77: 33.33 | W77: (9.00) | X77: (33.33) | Y77: 51.00 | Z77: (13.33) | AC77: 9.00 | AD77: 15.00 | AE77: 20.00 | AG77: 9.00 | AH77: 33.33 | AI77: (9.00) | AJ77: (33.33) | AK77: 51.00 | AL77: (13.33)
A78: 0.40 | B78: 5 | C78: 0.20 | D78: 0.40 | E78: 12.00 | F78: 15 | G78: 20.00 | I78: 12.00 | J78: 10.00 | K78: 30.00 | L78: 4.00 | M78: 10.00 | N78: 30.00 | O78: 30.00 | P78: 4.00 | Q78: 60.00 | R78: 20.00 | S78: 0 | U78: 12.00 | V78: 25.00 | W78: (12.00) | X78: (25.00) | Y78: 48.00 | Z78: (5.00) | AC78: 12.00 | AD78: 15.00 | AE78: 20.00 | AG78: 12.00 | AH78: 25.00 | AI78: (12.00) | AJ78: (25.00) | AK78: 48.00 | AL78: (5.00)
A79: 0.50 | B79: 6 | C79: 0.25 | D79: 0.50 | E79: 15.00 | F79: 15 | G79: 20.00 | I79: 15.00 | J79: 10.00 | K79: 30.00 | L79: 5.00 | M79: 10.00 | N79: 30.00 | O79: 30.00 | P79: 5.00 | Q79: 60.00 | R79: 20.00 | S79: 0 | U79: 15.00 | V79: 20.00 | W79: (15.00) | X79: (20.00) | Y79: 45.00 | Z79: 0 | AC79: 15.00 | AD79: 15.00 | AE79: 20.00 | AG79: 15.00 | AH79: 20.00 | AI79: (15.00) | AJ79: (20.00) | AK79: 45.00 | AL79: 0
A80: 0.60 | B80: 7 | C80: 0.30 | D80: 0.60 | E80: 18.00 | F80: 18 | G80: 16.67 | I80: 18.00 | J80: 10.00 | K80: 30.00 | L80: 6.00 | M80: 10.00 | N80: 30.00 | O80: 30.00 | P80: 6.00 | Q80: 60.00 | R80: 20.00 | S80: 0 | U80: 18.00 | V80: 16.67 | W80: (18.00) | X80: (16.67) | Y80: 42.00 | Z80: 3.33 | AC80: 18.00 | AD80: 18.00 | AE80: 16.67 | AG80: 18.00 | AH80: 16.67 | AI80: (18.00) | AJ80: (16.67) | AK80: 42.00 | AL80: 3.33
A81: 0.70 | B81: 8 | C81: 0.35 | D81: 0.70 | E81: 21.00 | F81: 21 | G81: 14.29 | I81: 21.00 | J81: 10.00 | K81: 30.00 | L81: 7.00 | M81: 10.00 | N81: 30.00 | O81: 30.00 | P81: 7.00 | Q81: 60.00 | R81: 20.00 | S81: 0 | U81: 21.00 | V81: 14.29 | W81: (21.00) | X81: (14.29) | Y81: 39.00 | Z81: 5.71 | AC81: 21.00 | AD81: 21.00 | AE81: 14.29 | AG81: 21.00 | AH81: 14.29 | AI81: (21.00) | AJ81: (14.29) | AK81: 39.00 | AL81: 5.71
A82: 0.80 | B82: 9 | C82: 0.40 | D82: 0.80 | E82: 24.00 | F82: 24 | G82: 12.50 | I82: 24.00 | J82: 10.00 | K82: 30.00 | L82: 8.00 | M82: 10.00 | N82: 30.00 | O82: 30.00 | P82: 8.00 | Q82: 60.00 | R82: 20.00 | S82: 0 | U82: 24.00 | V82: 12.50 | W82: (24.00) | X82: (12.50) | Y82: 36.00 | Z82: 7.50 | AC82: 24.00 | AD82: 24.00 | AE82: 12.50 | AG82: 24.00 | AH82: 12.50 | AI82: (24.00) | AJ82: (12.50) | AK82: 36.00 | AL82: 7.50
A83: 0.90 | B83: 10 | C83: 0.45 | D83: 0.90 | E83: 27.00 | F83: 27 | G83: 11.11 | I83: 27.00 | J83: 10.00 | K83: 30.00 | L83: 9.00 | M83: 10.00 | N83: 30.00 | O83: 30.00 | P83: 9.00 | Q83: 60.00 | R83: 20.00 | S83: 0 | U83: 27.00 | V83: 11.11 | W83: (27.00) | X83: (11.11) | Y83: 33.00 | Z83: 8.89 | AC83: 27.00 | AD83: 27.00 | AE83: 11.11 | AG83: 27.00 | AH83: 11.11 | AI83: (27.00) | AJ83: (11.11) | AK83: 33.00 | AL83: 8.89
A84: =+A85-$A$73 -> 1.00 | B84: 11 | C84: 0.50 | D84: 1.00 | E84: 30.00 | F84: 30 | G84: 10.00 | I84: 30.00 | J84: 10.00 | K84: 30.00 | L84: 10.00 | M84: 10.00 | N84: 30.00 | O84: 30.00 | P84: 10.00 | Q84: 60.00 | R84: 20.00 | S84: 0 | U84: 30.00 | V84: 10.00 | W84: =U84*-1 -> (30.00) | X84: =V84*-1 -> (10.00) | Y84: 30.00 | Z84: 10.00 | AC84: 30.00 | AD84: 30.00 | AE84: 10.00 | AG84: =$E$97*D84 -> 30.00 | AH84: 10.00 | AI84: =AG84*-1 -> (30.00) | AJ84: =AH84*-1 -> (10.00) | AK84: =IF((AI84+($AG$84*2)+($D$97-$E$97))>$F$97,$F$97,AI84+($AG$84*2)+($D$97-$E$97)) -> 30.00 | AL84: 10.00
A85: 1.10 | B85: 12 | C85: 0.55 | D85: 1.10 | E85: 33.00 | F85: 33 | G85: 9.09 | I85: 33.00 | J85: 10.00 | K85: 30.00 | L85: 11.00 | M85: 10.00 | N85: 30.00 | O85: 30.00 | P85: 11.00 | Q85: 60.00 | R85: 20.00 | S85: 0 | U85: 33.00 | V85: 9.09 | W85: =U85*-1 -> (33.00) | X85: =V85*-1 -> (9.09) | Y85: 27.00 | Z85: 10.91 | AC85: =IF(($D$97*D85)>$F$97,$F$97,($D$97*A85)) -> 33.00 | AD85: 33.00 | AE85: 9.09 | AG85: =$E$97*D85 -> 33.00 | AH85: 9.09 | AI85: =AG85*-1 -> (33.00) | AJ85: =AH85*-1 -> (9.09) | AK85: =IF((AI85+($AG$84*2)+($D$97-$E$97))>$F$97,$F$97,AI85+($AG$84*2)+($D$97-$E$97)) -> 27.00 | AL85: 10.91
A86: 1.20 | B86: 13 | C86: 0.60 | D86: 1.20 | E86: 36.00 | F86: 36 | G86: 8.33 | I86: 36.00 | J86: 10.00 | K86: 30.00 | L86: 12.00 | M86: 10.00 | N86: 30.00 | O86: 30.00 | P86: 12.00 | Q86: 60.00 | R86: 20.00 | S86: 0 | U86: 36.00 | V86: 8.33 | W86: (36.00) | X86: (8.33) | Y86: 24.00 | Z86: 11.67 | AC86: 36.00 | AD86: 36.00 | AE86: 8.33 | AG86: 36.00 | AH86: 8.33 | AI86: (36.00) | AJ86: (8.33) | AK86: 24.00 | AL86: 11.67
A87: 1.30 | B87: 14 | C87: 0.65 | D87: 1.30 | E87: 39.00 | F87: 39 | G87: 7.69 | I87: 39.00 | J87: 10.00 | K87: 30.00 | L87: 13.00 | M87: 10.00 | N87: 30.00 | O87: 30.00 | P87: 13.00 | Q87: 60.00 | R87: 20.00 | S87: 0 | U87: 39.00 | V87: 7.69 | W87: (39.00) | X87: (7.69) | Y87: 21.00 | Z87: 12.31 | AC87: 39.00 | AD87: 39.00 | AE87: 7.69 | AG87: 39.00 | AH87: 7.69 | AI87: (39.00) | AJ87: (7.69) | AK87: 21.00 | AL87: 12.31
A88: 1.40 | B88: 15 | C88: 0.70 | D88: 1.40 | E88: 42.00 | F88: 42 | G88: 7.14 | I88: 42.00 | J88: 10.00 | K88: 30.00 | L88: 14.00 | M88: 10.00 | N88: 30.00 | O88: 30.00 | P88: 14.00 | Q88: 60.00 | R88: 20.00 | S88: 0 | U88: 42.00 | V88: 7.14 | W88: (42.00) | X88: (7.14) | Y88: 18.00 | Z88: 12.86 | AC88: 42.00 | AD88: 42.00 | AE88: 7.14 | AG88: 42.00 | AH88: 7.14 | AI88: (42.00) | AJ88: (7.14) | AK88: 18.00 | AL88: 12.86
A89: 1.50 | B89: 16 | C89: 0.75 | D89: 1.50 | E89: 45.00 | F89: 45 | G89: 6.67 | I89: 45.00 | J89: 10.00 | K89: 30.00 | L89: 15.00 | M89: 10.00 | N89: 30.00 | O89: 30.00 | P89: 15.00 | Q89: 60.00 | R89: 20.00 | S89: 0 | U89: 45.00 | V89: 6.67 | W89: (45.00) | X89: (6.67) | Y89: 15.00 | Z89: 13.33 | AC89: 45.00 | AD89: 45.00 | AE89: 6.67 | AG89: 45.00 | AH89: 6.67 | AI89: (45.00) | AJ89: (6.67) | AK89: 15.00 | AL89: 13.33
A90: 1.60 | B90: 17 | C90: 0.80 | D90: 1.60 | E90: 48.00 | F90: 48 | G90: 6.25 | I90: 48.00 | J90: 10.00 | K90: 30.00 | L90: 16.00 | M90: 10.00 | N90: 30.00 | O90: 30.00 | P90: 16.00 | Q90: 60.00 | R90: 20.00 | S90: 0 | U90: 48.00 | V90: 6.25 | W90: (48.00) | X90: (6.25) | Y90: 12.00 | Z90: 13.75 | AC90: 48.00 | AD90: 48.00 | AE90: 6.25 | AG90: 48.00 | AH90: 6.25 | AI90: (48.00) | AJ90: (6.25) | AK90: 12.00 | AL90: 13.75
A91: 1.70 | B91: 18 | C91: 0.85 | D91: 1.70 | E91: 51.00 | F91: 51 | G91: 5.88 | I91: 51.00 | J91: 10.00 | K91: 30.00 | L91: 17.00 | M91: 10.00 | N91: 30.00 | O91: 30.00 | P91: 17.00 | Q91: 60.00 | R91: 20.00 | S91: 0 | U91: 51.00 | V91: 5.88 | W91: (51.00) | X91: (5.88) | Y91: 9.00 | Z91: 14.12 | AC91: 51.00 | AD91: 51.00 | AE91: 5.88 | AG91: 51.00 | AH91: 5.88 | AI91: (51.00) | AJ91: (5.88) | AK91: 9.00 | AL91: 14.12
A92: 1.80 | B92: 19 | C92: 0.90 | D92: 1.80 | E92: 54.00 | F92: 54 | G92: 5.56 | I92: 54.00 | J92: 10.00 | K92: 30.00 | L92: 18.00 | M92: 10.00 | N92: 30.00 | O92: 30.00 | P92: 18.00 | Q92: 60.00 | R92: 20.00 | S92: 0 | U92: 54.00 | V92: 5.56 | W92: (54.00) | X92: (5.56) | Y92: 6.00 | Z92: 14.44 | AC92: 54.00 | AD92: 54.00 | AE92: 5.56 | AG92: 54.00 | AH92: 5.56 | AI92: (54.00) | AJ92: (5.56) | AK92: 6.00 | AL92: 14.44
A93: =+A94-$A$73 -> 1.90 | B93: 20 | C93: 0.95 | D93: 1.90 | E93: 57.00 | F93: 57 | G93: 5.26 | I93: 57.00 | J93: 10.00 | K93: 30.00 | L93: 19.00 | M93: 10.00 | N93: 30.00 | O93: 30.00 | P93: 19.00 | Q93: 60.00 | R93: 20.00 | S93: 0 | U93: 57.00 | V93: 5.26 | W93: (57.00) | X93: (5.26) | Y93: 3.00 | Z93: 14.74 | AC93: 57.00 | AD93: 57.00 | AE93: 5.26 | AG93: 57.00 | AH93: 5.26 | AI93: (57.00) | AJ93: (5.26) | AK93: 3.00 | AL93: 14.74
A94: =+D94 -> 2.00 | B94: 21 | C94: 1.00 | D94: =F97/D100 -> 2.00 | E94: =$D$100*D94 -> 60.00 | F94: 60 | G94: 5.00 | I94: 60.00 | J94: 10.00 | K94: 30.00 | L94: 20.00 | M94: 10.00 | N94: 30.00 | O94: 30.00 | P94: 20.00 | Q94: 60.00 | R94: 20.00 | S94: 0 | U94: 60.00 | V94: 5.00 | W94: (60.00) | X94: (5.00) | AG94: 60.00 | AH94: 5.00 | AI94: (60.00) | AJ94: (5.00) | AK94: =IF((AI94+($AG$84*2)+($D$97-$E$97))>$F$97,$F$97,AI94+($AG$84*2)+($D$97-$E$97)) -> 0 | AL94: =AJ94+($AH$84*2)+($D$98-$E$98) -> 15.00
C95: original | I95: original | N95: original | S95: original
D96: Individuo A | E96: Individuo B | F96: Total | J96: Individuo A | K96: Individuo B | L96: Total | O96: Individuo A | P96: Individuo B | Q96: Total | T96: Individuo A | U96: Individuo B | V96: Total | Y96: Individuo A | Z96: Individuo B | AA96: Total
C97: Dotación Bien 1 | D97: ='Optimo Pareto EGC'!C10 -> 30 | E97: ='Optimo Pareto EGC'!D10 -> 30 | F97: =E97+D97 -> 60 | G97: =(D106*((D98/D97)^(D107)))/(D107*((D97/D98)^(D106))) -> 0.3333333333 | H97: =D97^(D106)*D98^(D107) -> 17.32050808 | I97: Dotación Bien 1 | J97: =D97*0.3 -> 9 | K97: =L97-J97 -> 51 | L97: =F97 -> 60 | M97: =(J106*((J98/J97)^(J107)))/(J107*((J97/J98)^(J106))) -> 0.3333333333 | N97: Dotación Bien 1 | O97: =D97*0.7 -> 21 | P97: =Q97-O97 -> 39 | Q97: =L97 -> 60 | R97: =(O106*((O98/O97)^(O107)))/(O107*((O97/O98)^(O106))) -> 0.3333333333 | S97: Dotación Bien 1 | T97: =D97+(E97*0.3) -> 39 | U97: =V97-T97 -> 21 | V97: =Q97 -> 60 | W97: =(T106*((T98/T97)^(T107)))/(T107*((T97/T98)^(T106))) -> 0.3333333333 | X97: Dotación Bien 1 | Y97: =D97+(E97*0.7) -> 51 | Z97: =AA97-Y97 -> 9 | AA97: =V97 -> 60 | AB97: =(Y106*((Y98/Y97)^(Y107)))/(Y107*((Y97/Y98)^(Y106))) -> 0.3333333333
C98: Dotación Bien 2 | D98: ='Optimo Pareto EGC'!C11 -> 10 | E98: ='Optimo Pareto EGC'!D11 -> 10 | F98: =E98+D98 -> 20 | G98: =(E108*((E98/E97)^(E109)))/(E109*((E97/E98)^(E108))) -> 0.3333333333 | H98: =E97^(E108)*E98^(E109) -> 17.32050808 | I98: Dotación Bien 2 | J98: =D98*0.3 -> 3 | K98: =L98-J98 -> 17 | L98: =F98 -> 20 | M98: =(K108*((K98/K97)^(K109)))/(K109*((K97/K98)^(K108))) -> 0.3333333333 | N98: Dotación Bien 2 | O98: =D98*0.7 -> 7.00 | P98: =Q98-O98 -> 13 | Q98: =L98 -> 20 | R98: =(P108*((P98/P97)^(P109)))/(P109*((P97/P98)^(P108))) -> 0.3333333333 | S98: Dotación Bien 2 | T98: =D98+(E98*0.3) -> 13 | U98: =V98-T98 -> 7 | V98: =Q98 -> 20 | W98: =(U108*((U98/U97)^(U109)))/(U109*((U97/U98)^(U108))) -> 0.3333333333 | X98: Dotación Bien 2 | Y98: =D98+(E98*0.7) -> 17 | Z98: =AA98-Y98 -> 3 | AA98: =V98 -> 20 | AB98: =(Z108*((Z98/Z97)^(Z109)))/(Z109*((Z97/Z98)^(Z108))) -> 0.3333333333
D99: =D97^($D$106)*D98^($D$107) -> 17.32050808 | E99: =E97^($E$108)*E98^($E$109) -> 17.32050808
C100: Demanda Bruta Bien 1 | D100: =(D106*D97)+(E111*D98*D106) -> 30 | E100: =(E108*E97)+(E108*E111*E98) -> 30 | F100: =E100+D100 -> 60 | G100: =(D106*((D101/D100)^(D107)))/(D107*((D100/D101)^(D106))) -> 0.3333333333 | H100: =D100^(D106)*D101^(D107) -> 17.32050808 | I100: Demanda Bruta Bien 1 | J100: =(J106*J97)+(K111*J98*J106) -> 9 | K100: =(K108*K97)+(K108*K111*K98) -> 51 | L100: =K100+J100 -> 60 | M100: =(J106*((J101/J100)^(J107)))/(J107*((J100/J101)^(J106))) -> 0.3333333333 | N100: Demanda Bruta Bien 1 | O100: =(O106*O97)+(P111*O98*O106) -> 21 | P100: =(P108*P97)+(P108*P111*P98) -> 39 | Q100: =P100+O100 -> 60 | R100: =(O106*((O101/O100)^(O107)))/(O107*((O100/O101)^(O106))) -> 0.3333333333 | S100: Demanda Bruta Bien 1 | T100: =(T106*T97)+(U111*T98*T106) -> 39 | U100: =(U108*U97)+(U108*U111*U98) -> 21 | V100: =U100+T100 -> 60 | W100: =(T106*((T101/T100)^(T107)))/(T107*((T100/T101)^(T106))) -> 0.3333333333 | X100: Demanda Bruta Bien 1 | Y100: =(Y106*Y97)+(Z111*Y98*Y106) -> 51 | Z100: =(Z108*Z97)+(Z108*Z111*Z98) -> 9 | AA100: =Z100+Y100 -> 60 | AB100: =(Y106*((Y101/Y100)^(Y107)))/(Y107*((Y100/Y101)^(Y106))) -> 0.3333333333
C101: Demanda Bruta Bien 2 | D101: =(D107*E112*D97)+(D107*D98) -> 10 | E101: =(E109*E112*E97)+(E109*E98) -> 10 | F101: =E101+D101 -> 20 | G101: =(E108*((E101/E100)^(E109)))/(E109*((E100/E101)^(E108))) -> 0.3333333333 | H101: =E100^(E108)*E101^(E109) -> 17.32050808 | I101: Demanda Bruta Bien 2 | J101: =(J107*K112*J97)+(J107*J98) -> 3 | K101: =(K109*K112*K97)+(K109*K98) -> 17 | L101: =K101+J101 -> 20 | M101: =(K108*((K101/K100)^(K109)))/(K109*((K100/K101)^(K108))) -> 0.3333333333 | N101: Demanda Bruta Bien 2 | O101: =(O107*P112*O97)+(O107*O98) -> 7 | P101: =(P109*P112*P97)+(P109*P98) -> 13 | Q101: =P101+O101 -> 20 | R101: =(P108*((P101/P100)^(P109)))/(P109*((P100/P101)^(P108))) -> 0.3333333333 | S101: Demanda Bruta Bien 2 | T101: =(T107*U112*T97)+(T107*T98) -> 13 | U101: =(U109*U112*U97)+(U109*U98) -> 7 | V101: =U101+T101 -> 20 | W101: =(U108*((U101/U100)^(U109)))/(U109*((U100/U101)^(U108))) -> 0.3333333333 | X101: Demanda Bruta Bien 2 | Y101: =(Y107*Z112*Y97)+(Y107*Y98) -> 17 | Z101: =(Z109*Z112*Z97)+(Z109*Z98) -> 3 | AA101: =Z101+Y101 -> 20 | AB101: =(Z108*((Z101/Z100)^(Z109)))/(Z109*((Z100/Z101)^(Z108))) -> 0.3333333333
D102: =D100^($D$106)*D101^($D$107) -> 17.32050808 | E102: =E100^($E$108)*E101^($E$109) -> 17.32050808
C103: Demanda Neta Bien 1 | D103: =D100-D97 -> 0 | E103: =D101-D98 -> 0 | G103: 35 | H103: 50 | I103: Demanda Neta Bien 1 | J103: =J100-J97 -> 0 | K103: =J101-J98 -> 0 | N103: Demanda Neta Bien 1 | O103: =O100-O97 -> 0 | P103: =O101-O98 -> 0 | S103: Demanda Neta Bien 1 | T103: =T100-T97 -> 0 | U103: =T101-T98 -> 0 | X103: Demanda Neta Bien 1 | Y103: =Y100-Y97 -> 0 | Z103: =Y101-Y98 -> 0
C104: Demanda Neta Bien 2 | D104: =E100-E97 -> 0 | E104: =E101-E98 -> 0 | G104: 15 | H104: 40 | I104: Demanda Neta Bien 2 | J104: =K100-K97 -> 0 | K104: =K101-K98 -> 0 | N104: Demanda Neta Bien 2 | O104: =P100-P97 -> 0 | P104: =P101-P98 -> 0 | S104: Demanda Neta Bien 2 | T104: =U100-U97 -> 0 | U104: =U101-U98 -> 0 | X104: Demanda Neta Bien 2 | Y104: =Z100-Z97 -> 0 | Z104: =Z101-Z98 -> 0
C106: a | D106: ='Optimo Pareto EGC'!C24 -> 0.5 | I106: a | J106: =D106 -> 0.5 | N106: a | O106: =J106 -> 0.5 | S106: a | T106: =O106 -> 0.5 | X106: a | Y106: =T106 -> 0.5
C107: 1-a | D107: =1-D106 -> 0.5 | I107: 1-a | J107: =1-J106 -> 0.5 | N107: 1-a | O107: =1-O106 -> 0.5 | S107: 1-a | T107: =1-T106 -> 0.5 | X107: 1-a | Y107: =1-Y106 -> 0.5
C108: b | E108: ='Optimo Pareto EGC'!D26 -> 0.5 | I108: b | K108: =E108 -> 0.5 | N108: b | P108: =K108 -> 0.5 | S108: b | U108: =P108 -> 0.5 | X108: b | Z108: =U108 -> 0.5
C109: 1-b | E109: =1-E108 -> 0.5 | I109: 1-b | K109: =1-K108 -> 0.5 | N109: 1-b | P109: =1-P108 -> 0.5 | S109: 1-b | U109: =1-U108 -> 0.5 | X109: 1-b | Z109: =1-Z108 -> 0.5
C111: P2/P1 | E111: =((D107*D97)+(E109*E97))/((D106*D98)+(E108*E98)) -> 3 | F111: k inicial | I111: P2/P1 | K111: =((J107*J97)+(K109*K97))/((J106*J98)+(K108*K98)) -> 3 | L111: k inicial | N111: P2/P1 | P111: =((O107*O97)+(P109*P97))/((O106*O98)+(P108*P98)) -> 3 | Q111: k inicial | S111: P2/P1 | U111: =((T107*T97)+(U109*U97))/((T106*T98)+(U108*U98)) -> 3 | V111: k inicial | X111: P2/P1 | Z111: =((Y107*Y97)+(Z109*Z97))/((Y106*Y98)+(Z108*Z98)) -> 3 | AA111: k inicial
C112: P1/P2 | E112: =1/E111 -> 0.3333333333 | F112: =(D100^(D106))*(D101^(D107)) -> 17.32050808 | I112: P1/P2 | K112: =1/K111 -> 0.3333333333 | L112: =(J100^(J106))*(J101^(J107)) -> 5.196152423 | N112: P1/P2 | P112: =1/P111 -> 0.3333333333 | Q112: =(O100^(O106))*(O101^(O107)) -> 12.12435565 | S112: P1/P2 | U112: =1/U111 -> 0.3333333333 | V112: =(T100^(T106))*(T101^(T107)) -> 22.5166605 | X112: P1/P2 | Z112: =1/Z111 -> 0.3333333333 | AA112: =(Y100^(Y106))*(Y101^(Y107)) -> 29.44486373
D117: curva de tranasformación | E117: Inicio | F117: menos 2 | G117: menos 1 | H117: original | I117: más 1 | J117: más 2 | K117: final
D118: x1 | E118: 0 | F118: =J100 -> 9 | G118: =O100 -> 21 | H118: =D100 -> 30 | I118: =T100 -> 39 | J118: =Y100 -> 51 | K118: =F97 -> 60
D119: x2 | E119: 0 | F119: =J101 -> 3 | G119: =O101 -> 7 | H119: =D101 -> 10 | I119: =T101 -> 13 | J119: =Y101 -> 17 | K119: =F98 -> 20
C124: DEMANDAS NETAS
G125: =POWER((F166/(F152^D161)),1/D160) -> 30 | H125: =($F$166/($G125^($D$160)))^(1/$D$161) -> 100
F126: Original | G126: Original | H126: Original | J126: DOTACIÓN | N126: OPTIMO | R126: CAJA | V126: ORIGINAL | W126: ORIGINAL | X126: NEGATIVO | Y126: NEGATIVO | Z126: TRANSFORMADA
C127: Unidades | D127: ponderador | F127: x1 | G127: x1 | H127: x2 | J127: x1linedotación | L127: x2line | N127: x1linedotación | P127: x2line | V127: x1 | W127: x2 | X127: MENOS X1 | Y127: MENOS X2 | Z127: x1 | AA127: x2
C128: 1 | D128: 0 | E128: 0.01 | F128: =IF(($D$154*E128)>$F$151,$F$151,$D$154*E128) -> 0.60 | G128: =IF(($F$166/($F128^($D$160)))^(1/$D$161)>$F$152,$G$125,F128) -> 30.00 | H128: =($F$166/($G128^($D$160)))^(1/$D$161) -> 100.00 | J128: =D128*$F$151 -> 0 | K128: =$D$152 -> 50.00 | L128: =$D$151 -> 60.00 | M128: =$F$152*D128 -> 0 | N128: =$D$155 -> 50.00 | O128: =$D$154 -> 60.00 | P128: =$D$151 -> 60.00 | Q128: =D128*$F$152 -> 0 | R128: =$F$151 -> 120.00 | S128: =$F$152 -> 100.00 | T128: 0 | V128: =$E$154*E128 -> 0.60 | W128: =(($G$162)/((V128^($E$162))))^(1/$E$163) -> 5,000.00 | X128: =V128*-1 -> (0.60) | Y128: =W128*-1 -> (5,000.00) | Z128: =X128+($V$138*2)+($D$154-$E$154) -> 119.40 | AA128: =Y128+($W$138*2)+($D$155-$E$155) -> (4,900.00)
C129: 2 | D129: 0.01 | E129: 0.10 | F129: =IF(($D$154*E129)>$F$151,$F$151,$D$154*E129) -> 6.00 | G129: =IF(($F$166/($F129^($D$160)))^(1/$D$161)>$F$152,$G$125,F129) -> 30.00 | H129: =($F$166/($G129^($D$160)))^(1/$D$161) -> 100.00 | J129: =D129*$F$151 -> 1.20 | K129: =$D$152 -> 50.00 | L129: =$D$151 -> 60.00 | M129: =$F$152*D129 -> 1.00 | N129: =$D$155 -> 50.00 | O129: =$D$154 -> 60.00 | P129: =$D$151 -> 60.00 | Q129: =D129*$F$152 -> 1.00 | R129: =$F$151 -> 120.00 | S129: =$F$152 -> 100.00 | T129: 0 | V129: 6.00 | W129: 500.00 | X129: =V129*-1 -> (6.00) | Y129: =W129*-1 -> (500.00) | Z129: 114.00 | AA129: (400.00)
C130: 3 | D130: 0.10 | E130: 0.20 | F130: 12.00 | G130: 30.00 | H130: 100.00 | J130: 12.00 | K130: 50.00 | L130: 60.00 | M130: 10.00 | N130: 50.00 | O130: 60.00 | P130: 60.00 | Q130: 10.00 | R130: 120.00 | S130: 100.00 | T130: 0 | V130: 12.00 | W130: 250.00 | X130: (12.00) | Y130: (250.00) | Z130: 108.00 | AA130: (150.00)
C131: 4 | D131: 0.15 | E131: 0.30 | F131: 18.00 | G131: 30.00 | H131: 100.00 | J131: 18.00 | K131: 50.00 | L131: 60.00 | M131: 15.00 | N131: 50.00 | O131: 60.00 | P131: 60.00 | Q131: 15.00 | R131: 120.00 | S131: 100.00 | T131: 0 | V131: 18.00 | W131: 166.67 | X131: (18.00) | Y131: (166.67) | Z131: 102.00 | AA131: (66.67)
C132: 5 | D132: 0.20 | E132: 0.40 | F132: 24.00 | G132: 30.00 | H132: 100.00 | J132: 24.00 | K132: 50.00 | L132: 60.00 | M132: 20.00 | N132: 50.00 | O132: 60.00 | P132: 60.00 | Q132: 20.00 | R132: 120.00 | S132: 100.00 | T132: 0 | V132: 24.00 | W132: 125.00 | X132: (24.00) | Y132: (125.00) | Z132: 96.00 | AA132: (25.00)
C133: 6 | D133: 0.25 | E133: 0.50 | F133: 30.00 | G133: 30.00 | H133: 100.00 | J133: 30.00 | K133: 50.00 | L133: 60.00 | M133: 25.00 | N133: 50.00 | O133: 60.00 | P133: 60.00 | Q133: 25.00 | R133: 120.00 | S133: 100.00 | T133: 0 | V133: 30.00 | W133: 100.00 | X133: (30.00) | Y133: (100.00) | Z133: 90.00 | AA133: 0.00
C134: 7 | D134: 0.30 | E134: 0.60 | F134: 36.00 | G134: 36.00 | H134: 83.33 | J134: 36.00 | K134: 50.00 | L134: 60.00 | M134: 30.00 | N134: 50.00 | O134: 60.00 | P134: 60.00 | Q134: 30.00 | R134: 120.00 | S134: 100.00 | T134: 0 | V134: 36.00 | W134: 83.33 | X134: (36.00) | Y134: (83.33) | Z134: 84.00 | AA134: 16.67
C135: 8 | D135: 0.35 | E135: 0.70 | F135: 42.00 | G135: 42.00 | H135: 71.43 | J135: 42.00 | K135: 50.00 | L135: 60.00 | M135: 35.00 | N135: 50.00 | O135: 60.00 | P135: 60.00 | Q135: 35.00 | R135: 120.00 | S135: 100.00 | T135: 0 | V135: 42.00 | W135: 71.43 | X135: (42.00) | Y135: (71.43) | Z135: 78.00 | AA135: 28.57
C136: 9 | D136: 0.40 | E136: 0.80 | F136: 48.00 | G136: 48.00 | H136: 62.50 | J136: 48.00 | K136: 50.00 | L136: 60.00 | M136: 40.00 | N136: 50.00 | O136: 60.00 | P136: 60.00 | Q136: 40.00 | R136: 120.00 | S136: 100.00 | T136: 0 | V136: 48.00 | W136: 62.50 | X136: (48.00) | Y136: (62.50) | Z136: 72.00 | AA136: 37.50
C137: 10 | D137: 0.45 | E137: 0.90 | F137: 54.00 | G137: 54.00 | H137: 55.56 | J137: 54.00 | K137: 50.00 | L137: 60.00 | M137: 45.00 | N137: 50.00 | O137: 60.00 | P137: 60.00 | Q137: 45.00 | R137: 120.00 | S137: 100.00 | T137: 0 | V137: 54.00 | W137: 55.56 | X137: (54.00) | Y137: (55.56) | Z137: 66.00 | AA137: 44.44
C138: 11 | D138: 0.50 | E138: 1.00 | F138: 60.00 | G138: 60.00 | H138: 50.00 | J138: 60.00 | K138: 50.00 | L138: 60.00 | M138: 50.00 | N138: 50.00 | O138: 60.00 | P138: 60.00 | Q138: 50.00 | R138: 120.00 | S138: 100.00 | T138: 0 | V138: =$E$154*E138 -> 60.00 | W138: =(($G$162)/((V138^($E$162))))^(1/$E$163) -> 50.00 | X138: (60.00) | Y138: (50.00) | Z138: 60.00 | AA138: 50.00
C139: 12 | D139: 0.55 | E139: 1.10 | F139: 66.00 | G139: 66.00 | H139: 45.45 | J139: 66.00 | K139: 50.00 | L139: 60.00 | M139: 55.00 | N139: 50.00 | O139: 60.00 | P139: 60.00 | Q139: 55.00 | R139: 120.00 | S139: 100.00 | T139: 0 | V139: =$E$154*E139 -> 66.00 | W139: =(($G$162)/((V139^($E$162))))^(1/$E$163) -> 45.45 | X139: (66.00) | Y139: (45.45) | Z139: 54.00 | AA139: 54.55
C140: 13 | D140: 0.60 | E140: 1.20 | F140: 72.00 | G140: 72.00 | H140: 41.67 | J140: 72.00 | K140: 50.00 | L140: 60.00 | M140: 60.00 | N140: 50.00 | O140: 60.00 | P140: 60.00 | Q140: 60.00 | R140: 120.00 | S140: 100.00 | T140: 0 | V140: 72.00 | W140: 41.67 | X140: (72.00) | Y140: (41.67) | Z140: 48.00 | AA140: 58.33
C141: 14 | D141: 0.65 | E141: 1.30 | F141: 78.00 | G141: 78.00 | H141: 38.46 | J141: 78.00 | K141: 50.00 | L141: 60.00 | M141: 65.00 | N141: 50.00 | O141: 60.00 | P141: 60.00 | Q141: 65.00 | R141: 120.00 | S141: 100.00 | T141: 0 | V141: 78.00 | W141: 38.46 | X141: (78.00) | Y141: (38.46) | Z141: 42.00 | AA141: 61.54
C142: 15 | D142: 0.70 | E142: 1.40 | F142: 84.00 | G142: 84.00 | H142: 35.71 | J142: 84.00 | K142: 50.00 | L142: 60.00 | M142: 70.00 | N142: 50.00 | O142: 60.00 | P142: 60.00 | Q142: 70.00 | R142: 120.00 | S142: 100.00 | T142: 0 | V142: 84.00 | W142: 35.71 | X142: (84.00) | Y142: (35.71) | Z142: 36.00 | AA142: 64.29
C143: 16 | D143: 0.75 | E143: 1.50 | F143: 90.00 | G143: 90.00 | H143: 33.33 | J143: 90.00 | K143: 50.00 | L143: 60.00 | M143: 75.00 | N143: 50.00 | O143: 60.00 | P143: 60.00 | Q143: 75.00 | R143: 120.00 | S143: 100.00 | T143: 0 | V143: 90.00 | W143: 33.33 | X143: (90.00) | Y143: (33.33) | Z143: 30.00 | AA143: 66.67
C144: 17 | D144: 0.80 | E144: 1.60 | F144: 96.00 | G144: 96.00 | H144: 31.25 | J144: 96.00 | K144: 50.00 | L144: 60.00 | M144: 80.00 | N144: 50.00 | O144: 60.00 | P144: 60.00 | Q144: 80.00 | R144: 120.00 | S144: 100.00 | T144: 0 | V144: 96.00 | W144: 31.25 | X144: (96.00) | Y144: (31.25) | Z144: 24.00 | AA144: 68.75
C145: 18 | D145: 0.85 | E145: 1.70 | F145: 102.00 | G145: 102.00 | H145: 29.41 | J145: 102.00 | K145: 50.00 | L145: 60.00 | M145: 85.00 | N145: 50.00 | O145: 60.00 | P145: 60.00 | Q145: 85.00 | R145: 120.00 | S145: 100.00 | T145: 0 | V145: 102.00 | W145: 29.41 | X145: (102.00) | Y145: (29.41) | Z145: 18.00 | AA145: 70.59
C146: 19 | D146: 0.90 | E146: 1.80 | F146: 108.00 | G146: 108.00 | H146: 27.78 | J146: 108.00 | K146: 50.00 | L146: 60.00 | M146: 90.00 | N146: 50.00 | O146: 60.00 | P146: 60.00 | Q146: 90.00 | R146: 120.00 | S146: 100.00 | T146: 0 | V146: 108.00 | W146: 27.78 | X146: (108.00) | Y146: (27.78) | Z146: 12.00 | AA146: 72.22
C147: 20 | D147: 0.95 | E147: 1.90 | F147: 114.00 | G147: 114.00 | H147: 26.32 | J147: 114.00 | K147: 50.00 | L147: 60.00 | M147: 95.00 | N147: 50.00 | O147: 60.00 | P147: 60.00 | Q147: 95.00 | R147: 120.00 | S147: 100.00 | T147: 0 | V147: 114.00 | W147: 26.32 | X147: (114.00) | Y147: (26.32) | Z147: 6.00 | AA147: 73.68
C148: 21 | D148: 1.00 | E148: 3.33 | F148: 120.00 | G148: 120.00 | H148: 25.00 | J148: 120.00 | K148: 50.00 | L148: 60.00 | M148: 100.00 | N148: 50.00 | O148: 60.00 | P148: 60.00 | Q148: 100.00 | R148: 120.00 | S148: 100.00 | T148: 0 | V148: 200.00 | W148: 15.00 | X148: (200.00) | Y148: (15.00) | Z148: (80.00) | AA148: 85.00
C149: original | I149: original | N149: original | S149: original | W149: =E155+(E154*E165) -> 122.00 | X149: original | Y149: =D155+(D154*E166) -> 100.00
D150: Individuo A | E150: Individuo B | F150: Total | J150: Individuo A | K150: Individuo B | L150: Total | O150: Individuo A | P150: Individuo B | Q150: Total | T150: Individuo A | U150: Individuo B | V150: Total | Y150: Individuo A | Z150: Individuo B | AA150: Total
C151: Dotación Bien 1 | D151: ='Demandas Netas EGC'!C10 -> 60 | E151: ='Demandas Netas EGC'!D10 -> 60 | F151: =E151+D151 -> 120 | G151: =(D160*((D152/D151)^(D161)))/(D161*((D151/D152)^(D160))) -> 0.8333333333 | I151: Dotación Bien 1 | J151: =D151*0.3 -> 18 | K151: =L151-J151 -> 102 | L151: =F151 -> 120 | M151: =(J160*((J152/J151)^(J161)))/(J161*((J151/J152)^(J160))) -> 0.8333333333 | N151: Dotación Bien 1 | O151: =D151*0.7 -> 42 | P151: =Q151-O151 -> 78 | Q151: =L151 -> 120 | R151: =(O160*((O152/O151)^(O161)))/(O161*((O151/O152)^(O160))) -> 0.8333333333 | S151: Dotación Bien 1 | T151: =D151+(E151*0.3) -> 78 | U151: =V151-T151 -> 42 | V151: =Q151 -> 120 | W151: =(T160*((T152/T151)^(T161)))/(T161*((T151/T152)^(T160))) -> 0.8333333333 | X151: Dotación Bien 1 | Y151: =D151+(E151*0.7) -> 102 | Z151: =AA151-Y151 -> 18 | AA151: =V151 -> 120 | AB151: =(Y160*((Y152/Y151)^(Y161)))/(Y161*((Y151/Y152)^(Y160))) -> 0.8333333333
C152: Dotación Bien 2 | D152: ='Demandas Netas EGC'!C11 -> 50 | E152: ='Demandas Netas EGC'!D11 -> 50 | F152: =E152+D152 -> 100 | G152: =(E162*((E152/E151)^(E163)))/(E163*((E151/E152)^(E162))) -> 0.8333333333 | I152: Dotación Bien 2 | J152: =D152*0.3 -> 15 | K152: =L152-J152 -> 85 | L152: =F152 -> 100 | M152: =(K162*((K152/K151)^(K163)))/(K163*((K151/K152)^(K162))) -> 0.8333333333 | N152: Dotación Bien 2 | O152: =D152*0.7 -> 35.00 | P152: =Q152-O152 -> 65 | Q152: =L152 -> 100 | R152: =(P162*((P152/P151)^(P163)))/(P163*((P151/P152)^(P162))) -> 0.8333333333 | S152: Dotación Bien 2 | T152: =D152+(E152*0.3) -> 65 | U152: =V152-T152 -> 35 | V152: =Q152 -> 100 | W152: =(U162*((U152/U151)^(U163)))/(U163*((U151/U152)^(U162))) -> 0.8333333333 | X152: Dotación Bien 2 | Y152: =D152+(E152*0.7) -> 85 | Z152: =AA152-Y152 -> 15 | AA152: =V152 -> 100 | AB152: =(Z162*((Z152/Z151)^(Z163)))/(Z163*((Z151/Z152)^(Z162))) -> 0.8333333333
D153: =D151^(D160)*D152^(D161) -> 54.77225575 | E153: =E151^(E162)*E152^(E163) -> 54.77225575
C154: Demanda Bruta Bien 1 | D154: =(D160*D151)+(E165*D152*D160) -> 60 | E154: =(E162*E151)+(E162*E165*E152) -> 60 | F154: =E154+D154 -> 120 | G154: =(D160*((D155/D154)^(D161)))/(D161*((D154/D155)^(D160))) -> 0.8333333333 | I154: Demanda Bruta Bien 1 | J154: =(J160*J151)+(K165*J152*J160) -> 18 | K154: =(K162*K151)+(K162*K165*K152) -> 102 | L154: =K154+J154 -> 120 | M154: =(J160*((J155/J154)^(J161)))/(J161*((J154/J155)^(J160))) -> 0.8333333333 | N154: Demanda Bruta Bien 1 | O154: =(O160*O151)+(P165*O152*O160) -> 42 | P154: =(P162*P151)+(P162*P165*P152) -> 78 | Q154: =P154+O154 -> 120 | R154: =(O160*((O155/O154)^(O161)))/(O161*((O154/O155)^(O160))) -> 0.8333333333 | S154: Demanda Bruta Bien 1 | T154: =(T160*T151)+(U165*T152*T160) -> 78 | U154: =(U162*U151)+(U162*U165*U152) -> 42 | V154: =U154+T154 -> 120 | W154: =(T160*((T155/T154)^(T161)))/(T161*((T154/T155)^(T160))) -> 0.8333333333 | X154: Demanda Bruta Bien 1 | Y154: =(Y160*Y151)+(Z165*Y152*Y160) -> 102 | Z154: =(Z162*Z151)+(Z162*Z165*Z152) -> 18 | AA154: =Z154+Y154 -> 120 | AB154: =(Y160*((Y155/Y154)^(Y161)))/(Y161*((Y154/Y155)^(Y160))) -> 0.8333333333
C155: Demanda Bruta Bien 2 | D155: =(D161*E166*D151)+(D161*D152) -> 50 | E155: =(E163*E166*E151)+(E163*E152) -> 50 | F155: =E155+D155 -> 100 | G155: =(E162*((E155/E154)^(E163)))/(E163*((E154/E155)^(E162))) -> 0.8333333333 | I155: Demanda Bruta Bien 2 | J155: =(J161*K166*J151)+(J161*J152) -> 15 | K155: =(K163*K166*K151)+(K163*K152) -> 85 | L155: =K155+J155 -> 100 | M155: =(K162*((K155/K154)^(K163)))/(K163*((K154/K155)^(K162))) -> 0.8333333333 | N155: Demanda Bruta Bien 2 | O155: =(O161*P166*O151)+(O161*O152) -> 35 | P155: =(P163*P166*P151)+(P163*P152) -> 65 | Q155: =P155+O155 -> 100 | R155: =(P162*((P155/P154)^(P163)))/(P163*((P154/P155)^(P162))) -> 0.8333333333 | S155: Demanda Bruta Bien 2 | T155: =(T161*U166*T151)+(T161*T152) -> 65 | U155: =(U163*U166*U151)+(U163*U152) -> 35 | V155: =U155+T155 -> 100 | W155: =(U162*((U155/U154)^(U163)))/(U163*((U154/U155)^(U162))) -> 0.8333333333 | X155: Demanda Bruta Bien 2 | Y155: =(Y161*Z166*Y151)+(Y161*Y152) -> 85 | Z155: =(Z163*Z166*Z151)+(Z163*Z152) -> 15 | AA155: =Z155+Y155 -> 100 | AB155: =(Z162*((Z155/Z154)^(Z163)))/(Z163*((Z154/Z155)^(Z162))) -> 0.8333333333
D156: =D154^(D160)*D155^(D161) -> 54.77225575 | E156: =E154^(E162)*E155^(E163) -> 54.77225575
C157: Demanda Neta Bien 1 | D157: =D154-D151 -> 0 | E157: =E154-E151 -> 0 | I157: Demanda Neta Bien 1 | J157: =J154-J151 -> 0 | K157: =J155-J152 -> 0 | N157: Demanda Neta Bien 1 | O157: =O154-O151 -> 0 | P157: =O155-O152 -> 0 | S157: Demanda Neta Bien 1 | T157: =T154-T151 -> 0 | U157: =T155-T152 -> 0 | X157: Demanda Neta Bien 1 | Y157: =Y154-Y151 -> 0 | Z157: =Y155-Y152 -> 0
C158: Demanda Neta Bien 2 | D158: =D155-D152 -> 0 | E158: =E155-E152 -> 0 | I158: Demanda Neta Bien 2 | J158: =K154-K151 -> 0 | K158: =K155-K152 -> 0 | N158: Demanda Neta Bien 2 | O158: =P154-P151 -> 0 | P158: =P155-P152 -> 0 | S158: Demanda Neta Bien 2 | T158: =U154-U151 -> 0 | U158: =U155-U152 -> 0 | X158: Demanda Neta Bien 2 | Y158: =Z154-Z151 -> 0 | Z158: =Z155-Z152 -> 0
C160: a | D160: ='Demandas Netas EGC'!C24 -> 0.5 | I160: a | J160: =D160 -> 0.5 | N160: a | O160: =J160 -> 0.5 | S160: a | T160: =O160 -> 0.5 | X160: a | Y160: =T160 -> 0.5
C161: 1-a | D161: =1-D160 -> 0.5 | G161: =D154^(D160)*D155^(D161) -> 54.77225575 | I161: 1-a | J161: =1-J160 -> 0.5 | N161: 1-a | O161: =1-O160 -> 0.5 | S161: 1-a | T161: =1-T160 -> 0.5 | X161: 1-a | Y161: =1-Y160 -> 0.5
C162: b | E162: ='Demandas Netas EGC'!D26 -> 0.5 | G162: =E154^(E162)*E155^(E163) -> 54.77225575 | I162: b | K162: =E162 -> 0.5 | N162: b | P162: =K162 -> 0.5 | S162: b | U162: =P162 -> 0.5 | X162: b | Z162: =U162 -> 0.5
C163: 1-b | E163: =1-E162 -> 0.5 | I163: 1-b | K163: =1-K162 -> 0.5 | N163: 1-b | P163: =1-P162 -> 0.5 | S163: 1-b | U163: =1-U162 -> 0.5 | X163: 1-b | Z163: =1-Z162 -> 0.5
C165: P2/P1 | E165: =((D161*D151)+(E163*E151))/((D160*D152)+(E162*E152)) -> 1.2 | F165: k inicial | I165: P2/P1 | K165: =((J161*J151)+(K163*K151))/((J160*J152)+(K162*K152)) -> 1.2 | L165: k inicial | N165: P2/P1 | P165: =((O161*O151)+(P163*P151))/((O160*O152)+(P162*P152)) -> 1.2 | Q165: k inicial | S165: P2/P1 | U165: =((T161*T151)+(U163*U151))/((T160*T152)+(U162*U152)) -> 1.2 | V165: k inicial | X165: P2/P1 | Z165: =((Y161*Y151)+(Z163*Z151))/((Y160*Y152)+(Z162*Z152)) -> 1.2 | AA165: k inicial
C166: P1/P2 | E166: =1/E165 -> 0.8333333333 | F166: =(D154^(D160))*(D155^(D161)) -> 54.77225575 | I166: P1/P2 | K166: =1/K165 -> 0.8333333333 | L166: =(J154^(J160))*(J155^(J161)) -> 16.43167673 | N166: P1/P2 | P166: =1/P165 -> 0.8333333333 | Q166: =(O154^(O160))*(O155^(O161)) -> 38.34057903 | S166: P1/P2 | U166: =1/U165 -> 0.8333333333 | V166: =(T154^(T160))*(T155^(T161)) -> 71.20393248 | X166: P1/P2 | Z166: =1/Z165 -> 0.8333333333 | AA166: =(Y154^(Y160))*(Y155^(Y161)) -> 93.11283478
D171: curva de tranasformación | E171: Inicio | F171: menos 2 | G171: menos 1 | H171: original | I171: más 1 | J171: más 2 | K171: final
D172: x1 | E172: 0 | F172: =J154 -> 18 | G172: =O154 -> 42 | H172: =D154 -> 60 | I172: =T154 -> 78 | J172: =Y154 -> 102 | K172: =F151 -> 120
D173: x2 | E173: 0 | F173: =J155 -> 15 | G173: =O155 -> 35 | H173: =D155 -> 50 | I173: =T155 -> 65 | J173: =Y155 -> 85 | K173: =F152 -> 100
D175: DEMANDAS NETAS DE LOS BIENES 1 Y 2, CORRESPONDIENTES A LOS AGENTES A Y B
D176: 0 | E176: =$D$151+($D$157*D176) -> 60 | F176: =$D$152 -> 50 | G176: =$D$154 -> 60 | H176: =$D$152+($D$158*D176) -> 50 | I176: =$D$155 -> 50 | J176: =$D$151 -> 60
D177: 0.2 | E177: 60 | F177: 50 | G177: 60 | H177: 50 | I177: 50 | J177: 60
D178: 0.4 | E178: 60 | F178: 50 | G178: 60 | H178: 50 | I178: 50 | J178: 60
D179: 0.6 | E179: 60 | F179: 50 | G179: 60 | H179: 50 | I179: 50 | J179: 60
D180: 0.8 | E180: 60 | F180: 50 | G180: 60 | H180: 50 | I180: 50 | J180: 60
D181: 1 | E181: 60 | F181: 50 | G181: 60 | H181: 50 | I181: 50 | J181: 60
C185: FRONTERA DE POSIBILIDADES DE UTILIDAD
G186: =POWER((F242/(F228^D237)),1/D236) -> 12.5 | H186: =($F$242/($G186^($D$236)))^(1/$D$237) -> 150 | I186: =POWER((K234/(K228^D237)),1/D236) -> 3.125 | J186: =($K$234/($I186^($D$236)))^(1/$D$237) -> 150 | K186: =POWER((K245/(K239^D237)),1/D236) -> 8 | L186: =($K$245/($K186^($D$236)))^(1/$D$237) -> 150 | M186: =POWER((Q234/(Q228^D237)),1/D236) -> 21.125 | N186: =($Q$234/($M186^($D$236)))^(1/$D$237) -> 150 | O186: =POWER((Q245/(Q239^D237)),1/D236) -> 34.03125 | P186: =($Q$245/($O186^($D$236)))^(1/$D$237) -> 150 | Q186: =POWER((D229/(F228^D237)),1/D236) -> 12.5 | R186: =($D$229/($Q186^($D$236)))^(1/$D$237) -> 150 | AA186: ORIGINAL | AH186: MENOS 2 | AO186: MENOS 1 | AW186: MAS 1 | BD186: MAS 2 | BK186: DOTACIÓN
A187: Original | B187: Original | F187: Original | H187: Original | I187: menos 2 | J187: menos 2 | K187: menos 1 | L187: menos 1 | M187: mas 1 | N187: mas 1 | O187: masn2 | P187: masn2 | T187: DOTACIÓN | X187: OPTIMO | AB187: CAJA | AF187: ORIGINAL | AG187: ORIGINAL | AH187: NEGATIVO | AI187: NEGATIVO | AJ187: TRANSFORMADA | AM187: ORIGINAL | AN187: ORIGINAL | AO187: NEGATIVO | AP187: NEGATIVO | AQ187: TRANSFORMADA | AT187: ORIGINAL | AU187: ORIGINAL | AV187: NEGATIVO | AW187: NEGATIVO | AX187: TRANSFORMADA | BB187: ORIGINAL | BC187: ORIGINAL | BD187: NEGATIVO | BE187: NEGATIVO | BF187: TRANSFORMADA | BI187: ORIGINAL | BJ187: ORIGINAL | BK187: NEGATIVO | BL187: NEGATIVO | BM187: TRANSFORMADA | BP187: ORIGINAL | BQ187: ORIGINAL | BR187: NEGATIVO | BS187: NEGATIVO | BT187: TRANSFORMADA
A188: x1 | B188: x2 | C188: Unidades | D188: ponderador | F188: x1 | G188: x1 | H188: x2 | I188: x1 | J188: x2 | K188: x1 | L188: x2 | M188: x1 | N188: x2 | O188: x1 | P188: x2 | Q188: DOTA | R188: DOTA | T188: < | V188: x2line | X188: x1linedotación | Z188: x2line | AF188: x1 | AG188: x2 | AH188: MENOS X1 | AI188: MENOS X2 | AJ188: x1 | AK188: x2 | AM188: x1 | AN188: x2 | AO188: MENOS X1 | AP188: MENOS X2 | AQ188: x1 | AR188: x2 | AT188: x1 | AU188: x2 | AV188: MENOS X1 | AW188: MENOS X2 | AX188: x1 | AY188: x2 | BB188: x1 | BC188: x2 | BD188: MENOS X1 | BE188: MENOS X2 | BF188: x1 | BG188: x2 | BI188: x1 | BJ188: x2 | BK188: MENOS X1 | BL188: MENOS X2 | BM188: x1 | BN188: x2 | BP188: x1 | BQ188: x2 | BR188: MENOS X1 | BS188: MENOS X2 | BT188: x1 | BU188: x2
A189: =$D$230*E189 -> 0.25 | B189: =($F$242/($A189^($D$236)))^(1/$D$237) -> 7,500.00 | C189: 1 | D189: 0 | E189: 0.01 | F189: =IF($D$230*E189>$F$227,$F$227,$D$230*E189) -> 0.25 | G189: =IF(($F$242/($F189^($D$236)))^(1/$D$237)>$F$228,$G$186,$F189) -> 12.50 | H189: =($F$242/($G189^($D$236)))^(1/$D$237) -> 150.00 | I189: =IF(($K$234/($F189^($D$236)))^(1/$D$237)>$F$228,$I$186,F189) -> 3.13 | J189: =($K$234/($I189^($D$236)))^(1/$D$237) -> 150.00 | K189: =IF(($K$245/($F189^($D$236)))^(1/$D$237)>$F$228,$K$186,F189) -> 8.00 | L189: =($K$245/($K189^($D$236)))^(1/$D$237) -> 150.00 | M189: =IF(($Q$234/($F189^($D$236)))^(1/$D$237)>$F$228,$M$186,F189) -> 21.13 | N189: =($Q$234/($M189^($D$236)))^(1/$D$237) -> 150.00 | O189: =IF(($Q$245/($F189^($D$236)))^(1/$D$237)>$F$228,$O$186,F189) -> 34.03 | P189: =($Q$245/($O189^($D$236)))^(1/$D$237) -> 150.00 | Q189: =IF(($D$229/($F189^($D$236)))^(1/$D$237)>$F$228,$Q$186,F189) -> 12.5 | R189: =($D$229/($Q189^($D$236)))^(1/$D$237) -> 150.00 | S189: =IF(B189>$F$228,1,0) -> 1 | T189: =D189*$F$227 -> 0 | U189: =$D$228 -> 75.00 | V189: =$D$227 -> 25.00 | W189: =$F$228*D189 -> 0 | X189: =$D$231 -> 75.00 | Y189: =$D$230 -> 25.00 | Z189: =$D$227 -> 25.00 | AA189: =$F$228*J189 -> 22,500.00 | AB189: =$F$227 -> 50.00 | AC189: =$F$228 -> 150.00 | AD189: 0 | AF189: =$E189*$E$230 -> 0.25 | AG189: =(($E$232)/(AF189^($E$238)))^(1/$E$239) -> 7,500.00 | AH189: =AF189*-1 -> (0.25) | AI189: =AG189*-1 -> (7,500.00) | AJ189: =AH189+($AF$199*2)+($D$230-$E$230) -> 49.75 | AK189: =AI189+($E$231*2)+($D$231-$E$231) -> (7,350.00) | AM189: =$E189*$AM$232 -> 0.38 | AN189: =(($AM$234)/(AM189^($E$238)))^(1/$E$239) -> 11,250.00 | AO189: =AM189*-1 -> (0.38) | AP189: =AN189*-1 -> (11,250.00) | AQ189: =AO189+($AM$199*2)+($AL$232-$AM$232) -> 49.63 | AR189: =AP189+($AN$199*2)+($AL$233-$AM$233) -> (11,100.00) | AT189: =$E189*$AM$243 -> 0.30 | AU189: =(($AM$245)/(AT189^($E$238)))^(1/$E$239) -> 9,000.00 | AV189: =AT189*-1 -> (0.30) | AW189: =AU189*-1 -> (9,000.00) | AX189: =AV189+($AT$199*2)+($AL$243-$AM$243) -> 49.70 | AY189: =AW189+($AU$199*2)+($AL$244-$AM$244) -> (8,850.00) | BB189: =$E189*$BC$232 -> 0.18 | BC189: =(($BC$234)/(BB189^($E$238)))^(1/$E$239) -> 5,250.00 | BD189: =BB189*-1 -> (0.18) | BE189: =BC189*-1 -> (5,250.00) | BF189: =BD189+($BB$199*2)+($BB$232-$BC$232) -> 49.83 | BG189: =BE189+($BC$199*2)+($BB$233-$BC$233) -> (5,100.00) | BI189: =$E189*$BC$243 -> 0.09 | BJ189: =(($BC$245)/(BI189^($E$238)))^(1/$E$239) -> 2,625.00 | BK189: =BI189*-1 -> (0.09) | BL189: =BJ189*-1 -> (2,625.00) | BM189: =BK189+($BI$199*2)+($BB$243-$BC$243) -> 49.91 | BN189: =BL189+($BJ$199*2)+($BB$244-$BC$244) -> (2,475.00) | BP189: =$E189*$BL$230 -> 0.25 | BQ189: =(($BL$232)/(BP189^($E$238)))^(1/$E$239) -> 7,500.00 | BR189: =BP189*-1 -> (0.25) | BS189: =BQ189*-1 -> (7,500.00) | BT189: =BR189+($BP$199*2)+($BK$230-$BL$230) -> 49.75 | BU189: =BS189+($BQ$199*2)+($BK$231-$BL$231) -> (7,350.00)
A190: =$D$230*E190 -> 2.50 | B190: =($F$242/($A190^($D$236)))^(1/$D$237) -> 750.00 | C190: 2 | D190: 0.01 | E190: 0.10 | F190: =IF($D$230*E190>$F$227,$F$227,$D$230*E190) -> 2.50 | G190: =IF(($F$242/($F190^($D$236)))^(1/$D$237)>$F$228,$G$186,$F190) -> 12.50 | H190: =($F$242/($G190^($D$236)))^(1/$D$237) -> 150.00 | I190: =IF(($K$234/($F190^($D$236)))^(1/$D$237)>$F$228,$I$186,F190) -> 3.13 | J190: =($K$234/($I190^($D$236)))^(1/$D$237) -> 150.00 | K190: =IF(($K$245/($F190^($D$236)))^(1/$D$237)>$F$228,$K$186,F190) -> 8.00 | L190: =($K$245/($K190^($D$236)))^(1/$D$237) -> 150.00 | M190: =IF(($Q$234/($F190^($D$236)))^(1/$D$237)>$F$228,$M$186,F190) -> 21.13 | N190: =($Q$234/($M190^($D$236)))^(1/$D$237) -> 150.00 | O190: =IF(($Q$245/($F190^($D$236)))^(1/$D$237)>$F$228,$O$186,F190) -> 34.03 | P190: =($Q$245/($O190^($D$236)))^(1/$D$237) -> 150.00 | Q190: =IF(($D$229/($F190^($D$236)))^(1/$D$237)>$F$228,$Q$186,F190) -> 12.5 | R190: =($D$229/($Q190^($D$236)))^(1/$D$237) -> 150.00 | S190: =IF(B190>$F$228,1,0) -> 1 | T190: =D190*$F$227 -> 0.50 | U190: =$D$228 -> 75.00 | V190: =$D$227 -> 25.00 | W190: =$F$228*D190 -> 1.50 | X190: =$D$231 -> 75.00 | Y190: =$D$230 -> 25.00 | Z190: =$D$227 -> 25.00 | AA190: =$F$228*J190 -> 22,500.00 | AB190: =$F$227 -> 50.00 | AC190: =$F$228 -> 150.00 | AD190: 0 | AF190: =$E190*$E$230 -> 2.50 | AG190: =(($E$232)/(AF190^($E$238)))^(1/$E$239) -> 750.00 | AH190: =AF190*-1 -> (2.50) | AI190: =AG190*-1 -> (750.00) | AJ190: =AH190+($AF$199*2)+($D$230-$E$230) -> 47.50 | AK190: =AI190+($E$231*2)+($D$231-$E$231) -> (600.00) | AM190: =$E190*$AM$232 -> 3.75 | AN190: =(($AM$234)/(AM190^($E$238)))^(1/$E$239) -> 1,125.00 | AO190: =AM190*-1 -> (3.75) | AP190: =AN190*-1 -> (1,125.00) | AQ190: =AO190+($AM$199*2)+($AL$232-$AM$232) -> 46.25 | AR190: =AP190+($AN$199*2)+($AL$233-$AM$233) -> (975.00) | AT190: =$E190*$AM$243 -> 3.00 | AU190: =(($AM$245)/(AT190^($E$238)))^(1/$E$239) -> 900.00 | AV190: =AT190*-1 -> (3.00) | AW190: =AU190*-1 -> (900.00) | AX190: =AV190+($AT$199*2)+($AL$243-$AM$243) -> 47.00 | AY190: =AW190+($AU$199*2)+($AL$244-$AM$244) -> (750.00) | BB190: =$E190*$BC$232 -> 1.75 | BC190: =(($BC$234)/(BB190^($E$238)))^(1/$E$239) -> 525.00 | BD190: =BB190*-1 -> (1.75) | BE190: =BC190*-1 -> (525.00) | BF190: =BD190+($BB$199*2)+($BB$232-$BC$232) -> 48.25 | BG190: =BE190+($BC$199*2)+($BB$233-$BC$233) -> (375.00) | BI190: =$E190*$BC$243 -> 0.88 | BJ190: =(($BC$245)/(BI190^($E$238)))^(1/$E$239) -> 262.50 | BK190: =BI190*-1 -> (0.88) | BL190: =BJ190*-1 -> (262.50) | BM190: =BK190+($BI$199*2)+($BB$243-$BC$243) -> 49.13 | BN190: =BL190+($BJ$199*2)+($BB$244-$BC$244) -> (112.50) | BP190: =$E190*$BL$230 -> 2.50 | BQ190: =(($BL$232)/(BP190^($E$238)))^(1/$E$239) -> 750.00 | BR190: =BP190*-1 -> (2.50) | BS190: =BQ190*-1 -> (750.00) | BT190: =BR190+($BP$199*2)+($BK$230-$BL$230) -> 47.50 | BU190: =BS190+($BQ$199*2)+($BK$231-$BL$231) -> (600.00)
A191: 5.00 | B191: 375.00 | C191: 3 | D191: 0.10 | E191: 0.20 | F191: 5.00 | G191: 12.50 | H191: 150.00 | I191: 5.00 | J191: 93.75 | K191: 8.00 | L191: 150.00 | M191: 21.13 | N191: 150.00 | O191: 34.03 | P191: 150.00 | Q191: 12.5 | R191: 150.00 | S191: 1 | T191: 5.00 | U191: 75.00 | V191: 25.00 | W191: 15.00 | X191: 75.00 | Y191: 25.00 | Z191: 25.00 | AA191: 14,062.50 | AB191: 50.00 | AC191: 150.00 | AD191: 0 | AF191: 5.00 | AG191: 375.00 | AH191: (5.00) | AI191: (375.00) | AJ191: 45.00 | AK191: (225.00) | AM191: 7.50 | AN191: 562.50 | AO191: (7.50) | AP191: (562.50) | AQ191: 42.50 | AR191: (412.50) | AT191: 6.00 | AU191: 450.00 | AV191: (6.00) | AW191: (450.00) | AX191: 44.00 | AY191: (300.00) | BB191: 3.50 | BC191: 262.50 | BD191: (3.50) | BE191: (262.50) | BF191: 46.50 | BG191: (112.50) | BI191: 1.75 | BJ191: 131.25 | BK191: (1.75) | BL191: (131.25) | BM191: 48.25 | BN191: 18.75 | BP191: 5.00 | BQ191: 375.00 | BR191: (5.00) | BS191: (375.00) | BT191: 45.00 | BU191: (225.00)
A192: 7.50 | B192: 250.00 | C192: 4 | D192: 0.15 | E192: 0.30 | F192: 7.50 | G192: 12.50 | H192: 150.00 | I192: 7.50 | J192: 62.50 | K192: 8.00 | L192: 150.00 | M192: 21.13 | N192: 150.00 | O192: 34.03 | P192: 150.00 | Q192: 12.5 | R192: 150.00 | S192: 1 | T192: 7.50 | U192: 75.00 | V192: 25.00 | W192: 22.50 | X192: 75.00 | Y192: 25.00 | Z192: 25.00 | AA192: 9,375.00 | AB192: 50.00 | AC192: 150.00 | AD192: 0 | AF192: 7.50 | AG192: 250.00 | AH192: (7.50) | AI192: (250.00) | AJ192: 42.50 | AK192: (100.00) | AM192: 11.25 | AN192: 375.00 | AO192: (11.25) | AP192: (375.00) | AQ192: 38.75 | AR192: (225.00) | AT192: 9.00 | AU192: 300.00 | AV192: (9.00) | AW192: (300.00) | AX192: 41.00 | AY192: (150.00) | BB192: 5.25 | BC192: 175.00 | BD192: (5.25) | BE192: (175.00) | BF192: 44.75 | BG192: (25.00) | BI192: 2.63 | BJ192: 87.50 | BK192: (2.63) | BL192: (87.50) | BM192: 47.38 | BN192: 62.50 | BP192: 7.50 | BQ192: 250.00 | BR192: (7.50) | BS192: (250.00) | BT192: 42.50 | BU192: (100.00)
A193: 10.00 | B193: 187.50 | C193: 5 | D193: 0.20 | E193: 0.40 | F193: 10.00 | G193: 12.50 | H193: 150.00 | I193: 10.00 | J193: 46.88 | K193: 10.00 | L193: 120.00 | M193: 21.13 | N193: 150.00 | O193: 34.03 | P193: 150.00 | Q193: 12.5 | R193: 150.00 | S193: 1 | T193: 10.00 | U193: 75.00 | V193: 25.00 | W193: 30.00 | X193: 75.00 | Y193: 25.00 | Z193: 25.00 | AA193: 7,031.25 | AB193: 50.00 | AC193: 150.00 | AD193: 0 | AF193: 10.00 | AG193: 187.50 | AH193: (10.00) | AI193: (187.50) | AJ193: 40.00 | AK193: (37.50) | AM193: 15.00 | AN193: 281.25 | AO193: (15.00) | AP193: (281.25) | AQ193: 35.00 | AR193: (131.25) | AT193: 12.00 | AU193: 225.00 | AV193: (12.00) | AW193: (225.00) | AX193: 38.00 | AY193: (75.00) | BB193: 7.00 | BC193: 131.25 | BD193: (7.00) | BE193: (131.25) | BF193: 43.00 | BG193: 18.75 | BI193: 3.50 | BJ193: 65.63 | BK193: (3.50) | BL193: (65.63) | BM193: 46.50 | BN193: 84.38 | BP193: 10.00 | BQ193: 187.50 | BR193: (10.00) | BS193: (187.50) | BT193: 40.00 | BU193: (37.50)
A194: 12.50 | B194: 150.00 | C194: 6 | D194: 0.25 | E194: 0.50 | F194: 12.50 | G194: 12.50 | H194: 150.00 | I194: 12.50 | J194: 37.50 | K194: 12.50 | L194: 96.00 | M194: 21.13 | N194: 150.00 | O194: 34.03 | P194: 150.00 | Q194: 12.5 | R194: 150.00 | S194: =IF(B194>$F$228,1,0) -> 0 | T194: 12.50 | U194: 75.00 | V194: 25.00 | W194: 37.50 | X194: 75.00 | Y194: 25.00 | Z194: 25.00 | AA194: 5,625.00 | AB194: 50.00 | AC194: 150.00 | AD194: 0 | AF194: 12.50 | AG194: 150.00 | AH194: (12.50) | AI194: (150.00) | AJ194: 37.50 | AK194: (0.00) | AM194: 18.75 | AN194: 225.00 | AO194: (18.75) | AP194: (225.00) | AQ194: 31.25 | AR194: (75.00) | AT194: 15.00 | AU194: 180.00 | AV194: (15.00) | AW194: (180.00) | AX194: 35.00 | AY194: (30.00) | BB194: 8.75 | BC194: 105.00 | BD194: (8.75) | BE194: (105.00) | BF194: 41.25 | BG194: 45.00 | BI194: 4.38 | BJ194: 52.50 | BK194: (4.38) | BL194: (52.50) | BM194: 45.63 | BN194: 97.50 | BP194: 12.50 | BQ194: 150.00 | BR194: (12.50) | BS194: (150.00) | BT194: 37.50 | BU194: 0
A195: 15.00 | B195: 125.00 | C195: 7 | D195: 0.30 | E195: 0.60 | F195: 15.00 | G195: 15.00 | H195: 125.00 | I195: 15.00 | J195: 31.25 | K195: 15.00 | L195: 80.00 | M195: 21.13 | N195: 150.00 | O195: 34.03 | P195: 150.00 | Q195: 15 | R195: 125.00 | S195: 0 | T195: 15.00 | U195: 75.00 | V195: 25.00 | W195: 45.00 | X195: 75.00 | Y195: 25.00 | Z195: 25.00 | AA195: 4,687.50 | AB195: 50.00 | AC195: 150.00 | AD195: 0 | AF195: 15.00 | AG195: 125.00 | AH195: (15.00) | AI195: (125.00) | AJ195: 35.00 | AK195: 25.00 | AM195: 22.50 | AN195: 187.50 | AO195: (22.50) | AP195: (187.50) | AQ195: 27.50 | AR195: (37.50) | AT195: 18.00 | AU195: 150.00 | AV195: (18.00) | AW195: (150.00) | AX195: 32.00 | AY195: (0.00) | BB195: 10.50 | BC195: 87.50 | BD195: (10.50) | BE195: (87.50) | BF195: 39.50 | BG195: 62.50 | BI195: 5.25 | BJ195: 43.75 | BK195: (5.25) | BL195: (43.75) | BM195: 44.75 | BN195: 106.25 | BP195: 15.00 | BQ195: 125.00 | BR195: (15.00) | BS195: (125.00) | BT195: 35.00 | BU195: 25.00
A196: 17.50 | B196: 107.14 | C196: 8 | D196: 0.35 | E196: 0.70 | F196: 17.50 | G196: 17.50 | H196: 107.14 | I196: 17.50 | J196: 26.79 | K196: 17.50 | L196: 68.57 | M196: 21.13 | N196: 150.00 | O196: 34.03 | P196: 150.00 | Q196: 17.5 | R196: 107.14 | S196: 0 | T196: 17.50 | U196: 75.00 | V196: 25.00 | W196: 52.50 | X196: 75.00 | Y196: 25.00 | Z196: 25.00 | AA196: 4,017.86 | AB196: 50.00 | AC196: 150.00 | AD196: 0 | AF196: 17.50 | AG196: 107.14 | AH196: (17.50) | AI196: (107.14) | AJ196: 32.50 | AK196: 42.86 | AM196: 26.25 | AN196: 160.71 | AO196: (26.25) | AP196: (160.71) | AQ196: 23.75 | AR196: (10.71) | AT196: 21.00 | AU196: 128.57 | AV196: (21.00) | AW196: (128.57) | AX196: 29.00 | AY196: 21.43 | BB196: 12.25 | BC196: 75.00 | BD196: (12.25) | BE196: (75.00) | BF196: 37.75 | BG196: 75.00 | BI196: 6.13 | BJ196: 37.50 | BK196: (6.13) | BL196: (37.50) | BM196: 43.88 | BN196: 112.50 | BP196: 17.50 | BQ196: 107.14 | BR196: (17.50) | BS196: (107.14) | BT196: 32.50 | BU196: 42.86
A197: 20.00 | B197: 93.75 | C197: 9 | D197: 0.40 | E197: 0.80 | F197: 20.00 | G197: 20.00 | H197: 93.75 | I197: 20.00 | J197: 23.44 | K197: 20.00 | L197: 60.00 | M197: 21.13 | N197: 150.00 | O197: 34.03 | P197: 150.00 | Q197: 20 | R197: 93.75 | S197: 0 | T197: 20.00 | U197: 75.00 | V197: 25.00 | W197: 60.00 | X197: 75.00 | Y197: 25.00 | Z197: 25.00 | AA197: 3,515.63 | AB197: 50.00 | AC197: 150.00 | AD197: 0 | AF197: 20.00 | AG197: 93.75 | AH197: (20.00) | AI197: (93.75) | AJ197: 30.00 | AK197: 56.25 | AM197: 30.00 | AN197: 140.63 | AO197: (30.00) | AP197: (140.63) | AQ197: 20.00 | AR197: 9.38 | AT197: 24.00 | AU197: 112.50 | AV197: (24.00) | AW197: (112.50) | AX197: 26.00 | AY197: 37.50 | BB197: 14.00 | BC197: 65.63 | BD197: (14.00) | BE197: (65.63) | BF197: 36.00 | BG197: 84.38 | BI197: 7.00 | BJ197: 32.81 | BK197: (7.00) | BL197: (32.81) | BM197: 43.00 | BN197: 117.19 | BP197: 20.00 | BQ197: 93.75 | BR197: (20.00) | BS197: (93.75) | BT197: 30.00 | BU197: 56.25
A198: 22.50 | B198: 83.33 | C198: 10 | D198: 0.45 | E198: 0.90 | F198: 22.50 | G198: 22.50 | H198: 83.33 | I198: 22.50 | J198: 20.83 | K198: 22.50 | L198: 53.33 | M198: 22.50 | N198: 140.83 | O198: 34.03 | P198: 150.00 | Q198: 22.5 | R198: 83.33 | S198: 0 | T198: 22.50 | U198: 75.00 | V198: 25.00 | W198: 67.50 | X198: 75.00 | Y198: 25.00 | Z198: 25.00 | AA198: 3,125.00 | AB198: 50.00 | AC198: 150.00 | AD198: 0 | AF198: 22.50 | AG198: 83.33 | AH198: (22.50) | AI198: (83.33) | AJ198: 27.50 | AK198: 66.67 | AM198: 33.75 | AN198: 125.00 | AO198: (33.75) | AP198: (125.00) | AQ198: 16.25 | AR198: 25.00 | AT198: 27.00 | AU198: 100.00 | AV198: (27.00) | AW198: (100.00) | AX198: 23.00 | AY198: 50.00 | BB198: 15.75 | BC198: 58.33 | BD198: (15.75) | BE198: (58.33) | BF198: 34.25 | BG198: 91.67 | BI198: 7.88 | BJ198: 29.17 | BK198: (7.88) | BL198: (29.17) | BM198: 42.13 | BN198: 120.83 | BP198: 22.50 | BQ198: 83.33 | BR198: (22.50) | BS198: (83.33) | BT198: 27.50 | BU198: 66.67
A199: 25.00 | B199: =($F$242/($F199^($D$236)))^(1/$D$237) -> 75.00 | C199: 11 | D199: 0.50 | E199: 1.00 | F199: 25.00 | G199: 25.00 | H199: 75.00 | I199: 25.00 | J199: 18.75 | K199: 25.00 | L199: 48.00 | M199: 25.00 | N199: 126.75 | O199: 34.03 | P199: 150.00 | Q199: 25 | R199: 75.00 | T199: 25.00 | U199: 75.00 | V199: 25.00 | W199: 75.00 | X199: 75.00 | Y199: 25.00 | Z199: 25.00 | AA199: 2,812.50 | AB199: 50.00 | AC199: 150.00 | AD199: 0 | AF199: 25.00 | AG199: 75.00 | AH199: (25.00) | AI199: (75.00) | AJ199: 25.00 | AK199: 75.00 | AM199: 37.50 | AN199: 112.50 | AO199: (37.50) | AP199: (112.50) | AQ199: 12.50 | AR199: 37.50 | AT199: 30.00 | AU199: 90.00 | AV199: (30.00) | AW199: (90.00) | AX199: 20.00 | AY199: 60.00 | BB199: 17.50 | BC199: 52.50 | BD199: (17.50) | BE199: (52.50) | BF199: 32.50 | BG199: 97.50 | BI199: 8.75 | BJ199: 26.25 | BK199: (8.75) | BL199: (26.25) | BM199: 41.25 | BN199: 123.75 | BP199: 25.00 | BQ199: 75.00 | BR199: (25.00) | BS199: (75.00) | BT199: 25.00 | BU199: 75.00
A200: 27.50 | B200: 68.18 | C200: 12 | D200: 0.55 | E200: 1.10 | F200: 27.50 | G200: 27.50 | H200: 68.18 | I200: 27.50 | J200: 17.05 | K200: 27.50 | L200: 43.64 | M200: 27.50 | N200: 115.23 | O200: 34.03 | P200: 150.00 | Q200: 27.5 | R200: 68.18 | T200: 27.50 | U200: 75.00 | V200: 25.00 | W200: 82.50 | X200: 75.00 | Y200: 25.00 | Z200: 25.00 | AA200: 2,556.82 | AB200: 50.00 | AC200: 150.00 | AD200: 0 | AF200: 27.50 | AG200: 68.18 | AH200: (27.50) | AI200: (68.18) | AJ200: 22.50 | AK200: 81.82 | AM200: 41.25 | AN200: 102.27 | AO200: (41.25) | AP200: (102.27) | AQ200: 8.75 | AR200: 47.73 | AT200: 33.00 | AU200: 81.82 | AV200: (33.00) | AW200: (81.82) | AX200: 17.00 | AY200: 68.18 | BB200: 19.25 | BC200: 47.73 | BD200: (19.25) | BE200: (47.73) | BF200: 30.75 | BG200: 102.27 | BI200: 9.63 | BJ200: 23.86 | BK200: (9.63) | BL200: (23.86) | BM200: 40.38 | BN200: 126.14 | BP200: 27.50 | BQ200: 68.18 | BR200: (27.50) | BS200: (68.18) | BT200: 22.50 | BU200: 81.82
A201: 30.00 | B201: 62.50 | C201: 13 | D201: 0.60 | E201: 1.20 | F201: 30.00 | G201: 30.00 | H201: 62.50 | I201: 30.00 | J201: 15.63 | K201: 30.00 | L201: 40.00 | M201: 30.00 | N201: 105.63 | O201: 34.03 | P201: 150.00 | Q201: 30 | R201: 62.50 | T201: 30.00 | U201: 75.00 | V201: 25.00 | W201: 90.00 | X201: 75.00 | Y201: 25.00 | Z201: 25.00 | AA201: 2,343.75 | AB201: 50.00 | AC201: 150.00 | AD201: 0 | AF201: 30.00 | AG201: 62.50 | AH201: (30.00) | AI201: (62.50) | AJ201: 20.00 | AK201: 87.50 | AM201: 45.00 | AN201: 93.75 | AO201: (45.00) | AP201: (93.75) | AQ201: 5.00 | AR201: 56.25 | AT201: 36.00 | AU201: 75.00 | AV201: (36.00) | AW201: (75.00) | AX201: 14.00 | AY201: 75.00 | BB201: 21.00 | BC201: 43.75 | BD201: (21.00) | BE201: (43.75) | BF201: 29.00 | BG201: 106.25 | BI201: 10.50 | BJ201: 21.88 | BK201: (10.50) | BL201: (21.88) | BM201: 39.50 | BN201: 128.13 | BP201: 30.00 | BQ201: 62.50 | BR201: (30.00) | BS201: (62.50) | BT201: 20.00 | BU201: 87.50
A202: 32.50 | B202: 57.69 | C202: 14 | D202: 0.65 | E202: 1.30 | F202: 32.50 | G202: 32.50 | H202: 57.69 | I202: 32.50 | J202: 14.42 | K202: 32.50 | L202: 36.92 | M202: 32.50 | N202: 97.50 | O202: 34.03 | P202: 150.00 | Q202: 32.5 | R202: 57.69 | T202: 32.50 | U202: 75.00 | V202: 25.00 | W202: 97.50 | X202: 75.00 | Y202: 25.00 | Z202: 25.00 | AA202: 2,163.46 | AB202: 50.00 | AC202: 150.00 | AD202: 0 | AF202: 32.50 | AG202: 57.69 | AH202: (32.50) | AI202: (57.69) | AJ202: 17.50 | AK202: 92.31 | AM202: 48.75 | AN202: 86.54 | AO202: (48.75) | AP202: (86.54) | AQ202: 1.25 | AR202: 63.46 | AT202: 39.00 | AU202: 69.23 | AV202: (39.00) | AW202: (69.23) | AX202: 11.00 | AY202: 80.77 | BB202: 22.75 | BC202: 40.38 | BD202: (22.75) | BE202: (40.38) | BF202: 27.25 | BG202: 109.62 | BI202: 11.38 | BJ202: 20.19 | BK202: (11.38) | BL202: (20.19) | BM202: 38.63 | BN202: 129.81 | BP202: 32.50 | BQ202: 57.69 | BR202: (32.50) | BS202: (57.69) | BT202: 17.50 | BU202: 92.31
A203: 35.00 | B203: 53.57 | C203: 15 | D203: 0.70 | E203: 1.40 | F203: 35.00 | G203: 35.00 | H203: 53.57 | I203: 35.00 | J203: 13.39 | K203: 35.00 | L203: 34.29 | M203: 35.00 | N203: 90.54 | O203: 35.00 | P203: 145.85 | Q203: 35 | R203: 53.57 | T203: 35.00 | U203: 75.00 | V203: 25.00 | W203: 105.00 | X203: 75.00 | Y203: 25.00 | Z203: 25.00 | AA203: 2,008.93 | AB203: 50.00 | AC203: 150.00 | AD203: 0 | AF203: 35.00 | AG203: 53.57 | AH203: (35.00) | AI203: (53.57) | AJ203: 15.00 | AK203: 96.43 | AM203: 52.50 | AN203: 80.36 | AO203: (52.50) | AP203: (80.36) | AQ203: (2.50) | AR203: 69.64 | AT203: 42.00 | AU203: 64.29 | AV203: (42.00) | AW203: (64.29) | AX203: 8.00 | AY203: 85.71 | BB203: 24.50 | BC203: 37.50 | BD203: (24.50) | BE203: (37.50) | BF203: 25.50 | BG203: 112.50 | BI203: 12.25 | BJ203: 18.75 | BK203: (12.25) | BL203: (18.75) | BM203: 37.75 | BN203: 131.25 | BP203: 35.00 | BQ203: 53.57 | BR203: (35.00) | BS203: (53.57) | BT203: 15.00 | BU203: 96.43
A204: 37.50 | B204: 50.00 | C204: 16 | D204: 0.75 | E204: 1.50 | F204: 37.50 | G204: 37.50 | H204: 50.00 | I204: 37.50 | J204: 12.50 | K204: 37.50 | L204: 32.00 | M204: 37.50 | N204: 84.50 | O204: 37.50 | P204: 136.13 | Q204: 37.5 | R204: 50.00 | T204: 37.50 | U204: 75.00 | V204: 25.00 | W204: 112.50 | X204: 75.00 | Y204: 25.00 | Z204: 25.00 | AA204: 1,875.00 | AB204: 50.00 | AC204: 150.00 | AD204: 0 | AF204: 37.50 | AG204: 50.00 | AH204: (37.50) | AI204: (50.00) | AJ204: 12.50 | AK204: 100.00 | AM204: 56.25 | AN204: 75.00 | AO204: (56.25) | AP204: (75.00) | AQ204: (6.25) | AR204: 75.00 | AT204: 45.00 | AU204: 60.00 | AV204: (45.00) | AW204: (60.00) | AX204: 5.00 | AY204: 90.00 | BB204: 26.25 | BC204: 35.00 | BD204: (26.25) | BE204: (35.00) | BF204: 23.75 | BG204: 115.00 | BI204: 13.13 | BJ204: 17.50 | BK204: (13.13) | BL204: (17.50) | BM204: 36.88 | BN204: 132.50 | BP204: 37.50 | BQ204: 50.00 | BR204: (37.50) | BS204: (50.00) | BT204: 12.50 | BU204: 100.00
A205: 40.00 | B205: 46.88 | C205: 17 | D205: 0.80 | E205: 1.60 | F205: 40.00 | G205: 40.00 | H205: 46.88 | I205: 40.00 | J205: 11.72 | K205: 40.00 | L205: 30.00 | M205: 40.00 | N205: 79.22 | O205: 40.00 | P205: 127.62 | Q205: 40 | R205: 46.88 | T205: 40.00 | U205: 75.00 | V205: 25.00 | W205: 120.00 | X205: 75.00 | Y205: 25.00 | Z205: 25.00 | AA205: 1,757.81 | AB205: 50.00 | AC205: 150.00 | AD205: 0 | AF205: 40.00 | AG205: 46.88 | AH205: (40.00) | AI205: (46.88) | AJ205: 10.00 | AK205: 103.13 | AM205: 60.00 | AN205: 70.31 | AO205: (60.00) | AP205: (70.31) | AQ205: (10.00) | AR205: 79.69 | AT205: 48.00 | AU205: 56.25 | AV205: (48.00) | AW205: (56.25) | AX205: 2.00 | AY205: 93.75 | BB205: 28.00 | BC205: 32.81 | BD205: (28.00) | BE205: (32.81) | BF205: 22.00 | BG205: 117.19 | BI205: 14.00 | BJ205: 16.41 | BK205: (14.00) | BL205: (16.41) | BM205: 36.00 | BN205: 133.59 | BP205: 40.00 | BQ205: 46.88 | BR205: (40.00) | BS205: (46.88) | BT205: 10.00 | BU205: 103.13
A206: 42.50 | B206: 44.12 | C206: 18 | D206: 0.85 | E206: 1.70 | F206: 42.50 | G206: 42.50 | H206: 44.12 | I206: 42.50 | J206: 11.03 | K206: 42.50 | L206: 28.24 | M206: 42.50 | N206: 74.56 | O206: 42.50 | P206: 120.11 | Q206: 42.5 | R206: 44.12 | T206: 42.50 | U206: 75.00 | V206: 25.00 | W206: 127.50 | X206: 75.00 | Y206: 25.00 | Z206: 25.00 | AA206: 1,654.41 | AB206: 50.00 | AC206: 150.00 | AD206: 0 | AF206: 42.50 | AG206: 44.12 | AH206: (42.50) | AI206: (44.12) | AJ206: 7.50 | AK206: 105.88 | AM206: 63.75 | AN206: 66.18 | AO206: (63.75) | AP206: (66.18) | AQ206: (13.75) | AR206: 83.82 | AT206: 51.00 | AU206: 52.94 | AV206: (51.00) | AW206: (52.94) | AX206: (1.00) | AY206: 97.06 | BB206: 29.75 | BC206: 30.88 | BD206: (29.75) | BE206: (30.88) | BF206: 20.25 | BG206: 119.12 | BI206: 14.88 | BJ206: 15.44 | BK206: (14.88) | BL206: (15.44) | BM206: 35.13 | BN206: 134.56 | BP206: 42.50 | BQ206: 44.12 | BR206: (42.50) | BS206: (44.12) | BT206: 7.50 | BU206: 105.88
A207: 45.00 | B207: 41.67 | C207: 19 | D207: 0.90 | E207: 1.80 | F207: 45.00 | G207: 45.00 | H207: 41.67 | I207: 45.00 | J207: 10.42 | K207: 45.00 | L207: 26.67 | M207: 45.00 | N207: 70.42 | O207: 45.00 | P207: 113.44 | Q207: 45 | R207: 41.67 | T207: 45.00 | U207: 75.00 | V207: 25.00 | W207: 135.00 | X207: 75.00 | Y207: 25.00 | Z207: 25.00 | AA207: 1,562.50 | AB207: 50.00 | AC207: 150.00 | AD207: 0 | AF207: 45.00 | AG207: 41.67 | AH207: (45.00) | AI207: (41.67) | AJ207: 5.00 | AK207: 108.33 | AM207: 67.50 | AN207: 62.50 | AO207: (67.50) | AP207: (62.50) | AQ207: (17.50) | AR207: 87.50 | AT207: 54.00 | AU207: 50.00 | AV207: (54.00) | AW207: (50.00) | AX207: (4.00) | AY207: 100.00 | BB207: 31.50 | BC207: 29.17 | BD207: (31.50) | BE207: (29.17) | BF207: 18.50 | BG207: 120.83 | BI207: 15.75 | BJ207: 14.58 | BK207: (15.75) | BL207: (14.58) | BM207: 34.25 | BN207: 135.42 | BP207: 45.00 | BQ207: 41.67 | BR207: (45.00) | BS207: (41.67) | BT207: 5.00 | BU207: 108.33
A208: 47.50 | B208: 39.47 | C208: 20 | D208: 0.95 | E208: 1.90 | F208: 47.50 | G208: 47.50 | H208: 39.47 | I208: 47.50 | J208: 9.87 | K208: 47.50 | L208: 25.26 | M208: 47.50 | N208: 66.71 | O208: 47.50 | P208: 107.47 | Q208: 47.5 | R208: 39.47 | T208: 47.50 | U208: 75.00 | V208: 25.00 | W208: 142.50 | X208: 75.00 | Y208: 25.00 | Z208: 25.00 | AA208: 1,480.26 | AB208: 50.00 | AC208: 150.00 | AD208: 0 | AF208: 47.50 | AG208: 39.47 | AH208: (47.50) | AI208: (39.47) | AJ208: 2.50 | AK208: 110.53 | AM208: 71.25 | AN208: 59.21 | AO208: (71.25) | AP208: (59.21) | AQ208: (21.25) | AR208: 90.79 | AT208: 57.00 | AU208: 47.37 | AV208: (57.00) | AW208: (47.37) | AX208: (7.00) | AY208: 102.63 | BB208: 33.25 | BC208: 27.63 | BD208: (33.25) | BE208: (27.63) | BF208: 16.75 | BG208: 122.37 | BI208: 16.63 | BJ208: 13.82 | BK208: (16.63) | BL208: (13.82) | BM208: 33.38 | BN208: 136.18 | BP208: 47.50 | BQ208: 39.47 | BR208: (47.50) | BS208: (39.47) | BT208: 2.50 | BU208: 110.53
A209: 50.00 | B209: 37.50 | C209: 21 | D209: 1.00 | E209: 2.00 | F209: 50.00 | G209: 50.00 | H209: 37.50 | I209: 50.00 | J209: 9.38 | K209: 50.00 | L209: 24.00 | M209: 50.00 | N209: 63.38 | O209: 50.00 | P209: 102.09 | Q209: 50 | R209: 37.50 | T209: 50.00 | U209: 75.00 | V209: 25.00 | W209: 150.00 | X209: 75.00 | Y209: 25.00 | Z209: 25.00 | AA209: 1,406.25 | AB209: 50.00 | AC209: 150.00 | AD209: 0 | AF209: 50.00 | AG209: 37.50 | AH209: (50.00) | AI209: (37.50) | AJ209: 0 | AK209: 112.50 | AM209: 75.00 | AN209: 56.25 | AO209: (75.00) | AP209: (56.25) | AQ209: (25.00) | AR209: 93.75 | AT209: 60.00 | AU209: 45.00 | AV209: (60.00) | AW209: (45.00) | AX209: (10.00) | AY209: 105.00 | BB209: 35.00 | BC209: 26.25 | BD209: (35.00) | BE209: (26.25) | BF209: 15.00 | BG209: 123.75 | BI209: 17.50 | BJ209: 13.13 | BK209: (17.50) | BL209: (13.13) | BM209: 32.50 | BN209: 136.88 | BP209: 50.00 | BQ209: 37.50 | BR209: (50.00) | BS209: (37.50) | BT209: 0 | BU209: 112.50
A210: 52.50 | B210: 37.50 | C210: 22 | D210: 1.05 | E210: 2.10 | F210: 50.00 | G210: 50.00 | H210: 37.50 | I210: 50.00 | J210: 9.38 | K210: 50.00 | L210: 24.00 | M210: 50.00 | N210: 63.38 | O210: 50.00 | P210: 102.09 | Q210: 50 | R210: 37.50 | T210: 52.50 | U210: 75.00 | V210: 25.00 | W210: 157.50 | X210: 75.00 | Y210: 25.00 | Z210: 25.00 | AA210: 1,406.25 | AB210: 50.00 | AC210: 150.00 | AD210: 0 | AF210: 52.50 | AG210: 35.71 | AH210: (52.50) | AI210: (35.71) | AJ210: (2.50) | AK210: 114.29 | AM210: 78.75 | AN210: 53.57 | AO210: (78.75) | AP210: (53.57) | AQ210: (28.75) | AR210: 96.43 | AT210: 63.00 | AU210: 42.86 | AV210: (63.00) | AW210: (42.86) | AX210: (13.00) | AY210: 107.14 | BB210: 36.75 | BC210: 25.00 | BD210: (36.75) | BE210: (25.00) | BF210: 13.25 | BG210: 125.00 | BI210: 18.38 | BJ210: 12.50 | BK210: (18.38) | BL210: (12.50) | BM210: 31.63 | BN210: 137.50 | BP210: 52.50 | BQ210: 35.71 | BR210: (52.50) | BS210: (35.71) | BT210: (2.50) | BU210: 114.29
A211: 55.00 | B211: 37.50 | C211: 23 | D211: 1.10 | E211: 2.20 | F211: 50.00 | G211: 50.00 | H211: 37.50 | I211: 50.00 | J211: 9.38 | K211: 50.00 | L211: 24.00 | M211: 50.00 | N211: 63.38 | O211: 50.00 | P211: 102.09 | Q211: 50 | R211: 37.50 | T211: 55.00 | U211: 75.00 | V211: 25.00 | W211: 165.00 | X211: 75.00 | Y211: 25.00 | Z211: 25.00 | AA211: 1,406.25 | AB211: 50.00 | AC211: 150.00 | AD211: 0 | AF211: 55.00 | AG211: 34.09 | AH211: (55.00) | AI211: (34.09) | AJ211: (5.00) | AK211: 115.91 | AM211: 82.50 | AN211: 51.14 | AO211: (82.50) | AP211: (51.14) | AQ211: (32.50) | AR211: 98.86 | AT211: 66.00 | AU211: 40.91 | AV211: (66.00) | AW211: (40.91) | AX211: (16.00) | AY211: 109.09 | BB211: 38.50 | BC211: 23.86 | BD211: (38.50) | BE211: (23.86) | BF211: 11.50 | BG211: 126.14 | BI211: 19.25 | BJ211: 11.93 | BK211: (19.25) | BL211: (11.93) | BM211: 30.75 | BN211: 138.07 | BP211: 55.00 | BQ211: 34.09 | BR211: (55.00) | BS211: (34.09) | BT211: (5.00) | BU211: 115.91
A212: 57.50 | B212: 37.50 | C212: 24 | D212: 1.15 | E212: 2.30 | F212: 50.00 | G212: 50.00 | H212: 37.50 | I212: 50.00 | J212: 9.38 | K212: 50.00 | L212: 24.00 | M212: 50.00 | N212: 63.38 | O212: 50.00 | P212: 102.09 | Q212: 50 | R212: 37.50 | T212: 57.50 | U212: 75.00 | V212: 25.00 | W212: 172.50 | X212: 75.00 | Y212: 25.00 | Z212: 25.00 | AA212: 1,406.25 | AB212: 50.00 | AC212: 150.00 | AD212: 0 | AF212: 57.50 | AG212: 32.61 | AH212: (57.50) | AI212: (32.61) | AJ212: (7.50) | AK212: 117.39 | AM212: 86.25 | AN212: 48.91 | AO212: (86.25) | AP212: (48.91) | AQ212: (36.25) | AR212: 101.09 | AT212: 69.00 | AU212: 39.13 | AV212: (69.00) | AW212: (39.13) | AX212: (19.00) | AY212: 110.87 | BB212: 40.25 | BC212: 22.83 | BD212: (40.25) | BE212: (22.83) | BF212: 9.75 | BG212: 127.17 | BI212: 20.13 | BJ212: 11.41 | BK212: (20.13) | BL212: (11.41) | BM212: 29.88 | BN212: 138.59 | BP212: 57.50 | BQ212: 32.61 | BR212: (57.50) | BS212: (32.61) | BT212: (7.50) | BU212: 117.39
A213: 60.00 | B213: 37.50 | C213: 25 | D213: 1.20 | E213: 2.40 | F213: 50.00 | G213: 50.00 | H213: 37.50 | I213: 50.00 | J213: 9.38 | K213: 50.00 | L213: 24.00 | M213: 50.00 | N213: 63.38 | O213: 50.00 | P213: 102.09 | Q213: 50 | R213: 37.50 | T213: 60.00 | U213: 75.00 | V213: 25.00 | W213: 180.00 | X213: 75.00 | Y213: 25.00 | Z213: 25.00 | AA213: 1,406.25 | AB213: 50.00 | AC213: 150.00 | AD213: 0 | AF213: 60.00 | AG213: 31.25 | AH213: (60.00) | AI213: (31.25) | AJ213: (10.00) | AK213: 118.75 | AM213: 90.00 | AN213: 46.88 | AO213: (90.00) | AP213: (46.88) | AQ213: (40.00) | AR213: 103.13 | AT213: 72.00 | AU213: 37.50 | AV213: (72.00) | AW213: (37.50) | AX213: (22.00) | AY213: 112.50 | BB213: 42.00 | BC213: 21.88 | BD213: (42.00) | BE213: (21.88) | BF213: 8.00 | BG213: 128.13 | BI213: 21.00 | BJ213: 10.94 | BK213: (21.00) | BL213: (10.94) | BM213: 29.00 | BN213: 139.06 | BP213: 60.00 | BQ213: 31.25 | BR213: (60.00) | BS213: (31.25) | BT213: (10.00) | BU213: 118.75
A214: 62.50 | B214: 37.50 | C214: 26 | D214: 1.25 | E214: 2.50 | F214: 50.00 | G214: 50.00 | H214: 37.50 | I214: 50.00 | J214: 9.38 | K214: 50.00 | L214: 24.00 | M214: 50.00 | N214: 63.38 | O214: 50.00 | P214: 102.09 | Q214: 50 | R214: 37.50 | T214: 62.50 | U214: 75.00 | V214: 25.00 | W214: 187.50 | X214: 75.00 | Y214: 25.00 | Z214: 25.00 | AA214: 1,406.25 | AB214: 50.00 | AC214: 150.00 | AD214: 0 | AF214: 62.50 | AG214: 30.00 | AH214: (62.50) | AI214: (30.00) | AJ214: (12.50) | AK214: 120.00 | AM214: 93.75 | AN214: 45.00 | AO214: (93.75) | AP214: (45.00) | AQ214: (43.75) | AR214: 105.00 | AT214: 75.00 | AU214: 36.00 | AV214: (75.00) | AW214: (36.00) | AX214: (25.00) | AY214: 114.00 | BB214: 43.75 | BC214: 21.00 | BD214: (43.75) | BE214: (21.00) | BF214: 6.25 | BG214: 129.00 | BI214: 21.88 | BJ214: 10.50 | BK214: (21.88) | BL214: (10.50) | BM214: 28.13 | BN214: 139.50 | BP214: 62.50 | BQ214: 30.00 | BR214: (62.50) | BS214: (30.00) | BT214: (12.50) | BU214: 120.00
A215: 65.00 | B215: 37.50 | C215: 27 | D215: 1.30 | E215: 2.60 | F215: 50.00 | G215: 50.00 | H215: 37.50 | I215: 50.00 | J215: 9.38 | K215: 50.00 | L215: 24.00 | M215: 50.00 | N215: 63.38 | O215: 50.00 | P215: 102.09 | Q215: 50 | R215: 37.50 | T215: 65.00 | U215: 75.00 | V215: 25.00 | W215: 195.00 | X215: 75.00 | Y215: 25.00 | Z215: 25.00 | AA215: 1,406.25 | AB215: 50.00 | AC215: 150.00 | AD215: 0 | AF215: 65.00 | AG215: 28.85 | AH215: (65.00) | AI215: (28.85) | AJ215: (15.00) | AK215: 121.15 | AM215: 97.50 | AN215: 43.27 | AO215: (97.50) | AP215: (43.27) | AQ215: (47.50) | AR215: 106.73 | AT215: 78.00 | AU215: 34.62 | AV215: (78.00) | AW215: (34.62) | AX215: (28.00) | AY215: 115.38 | BB215: 45.50 | BC215: 20.19 | BD215: (45.50) | BE215: (20.19) | BF215: 4.50 | BG215: 129.81 | BI215: 22.75 | BJ215: 10.10 | BK215: (22.75) | BL215: (10.10) | BM215: 27.25 | BN215: 139.90 | BP215: 65.00 | BQ215: 28.85 | BR215: (65.00) | BS215: (28.85) | BT215: (15.00) | BU215: 121.15
A216: 67.50 | B216: 37.50 | C216: 28 | D216: 1.35 | E216: 2.70 | F216: 50.00 | G216: 50.00 | H216: 37.50 | I216: 50.00 | J216: 9.38 | K216: 50.00 | L216: 24.00 | M216: 50.00 | N216: 63.38 | O216: 50.00 | P216: 102.09 | Q216: 50 | R216: 37.50 | T216: 67.50 | U216: 75.00 | V216: 25.00 | W216: 202.50 | X216: 75.00 | Y216: 25.00 | Z216: 25.00 | AA216: 1,406.25 | AB216: 50.00 | AC216: 150.00 | AD216: 0 | AF216: 67.50 | AG216: 27.78 | AH216: (67.50) | AI216: (27.78) | AJ216: (17.50) | AK216: 122.22 | AM216: 101.25 | AN216: 41.67 | AO216: (101.25) | AP216: (41.67) | AQ216: (51.25) | AR216: 108.33 | AT216: 81.00 | AU216: 33.33 | AV216: (81.00) | AW216: (33.33) | AX216: (31.00) | AY216: 116.67 | BB216: 47.25 | BC216: 19.44 | BD216: (47.25) | BE216: (19.44) | BF216: 2.75 | BG216: 130.56 | BI216: 23.63 | BJ216: 9.72 | BK216: (23.63) | BL216: (9.72) | BM216: 26.38 | BN216: 140.28 | BP216: 67.50 | BQ216: 27.78 | BR216: (67.50) | BS216: (27.78) | BT216: (17.50) | BU216: 122.22
A217: 70.00 | B217: 37.50 | C217: 29 | D217: 1.40 | E217: 2.80 | F217: 50.00 | G217: 50.00 | H217: 37.50 | I217: 50.00 | J217: 9.38 | K217: 50.00 | L217: 24.00 | M217: 50.00 | N217: 63.38 | O217: 50.00 | P217: 102.09 | Q217: 50 | R217: 37.50 | T217: 70.00 | U217: 75.00 | V217: 25.00 | W217: 210.00 | X217: 75.00 | Y217: 25.00 | Z217: 25.00 | AA217: 1,406.25 | AB217: 50.00 | AC217: 150.00 | AD217: 0 | AF217: 70.00 | AG217: 26.79 | AH217: (70.00) | AI217: (26.79) | AJ217: (20.00) | AK217: 123.21 | AM217: 105.00 | AN217: 40.18 | AO217: (105.00) | AP217: (40.18) | AQ217: (55.00) | AR217: 109.82 | AT217: 84.00 | AU217: 32.14 | AV217: (84.00) | AW217: (32.14) | AX217: (34.00) | AY217: 117.86 | BB217: 49.00 | BC217: 18.75 | BD217: (49.00) | BE217: (18.75) | BF217: 1.00 | BG217: 131.25 | BI217: 24.50 | BJ217: 9.38 | BK217: (24.50) | BL217: (9.38) | BM217: 25.50 | BN217: 140.63 | BP217: 70.00 | BQ217: 26.79 | BR217: (70.00) | BS217: (26.79) | BT217: (20.00) | BU217: 123.21
A218: 72.50 | B218: 37.50 | C218: 30 | D218: 1.45 | E218: 2.90 | F218: 50.00 | G218: 50.00 | H218: 37.50 | I218: 50.00 | J218: 9.38 | K218: 50.00 | L218: 24.00 | M218: 50.00 | N218: 63.38 | O218: 50.00 | P218: 102.09 | Q218: 50 | R218: 37.50 | T218: 72.50 | U218: 75.00 | V218: 25.00 | W218: 217.50 | X218: 75.00 | Y218: 25.00 | Z218: 25.00 | AA218: 1,406.25 | AB218: 50.00 | AC218: 150.00 | AD218: 0 | AF218: 72.50 | AG218: 25.86 | AH218: (72.50) | AI218: (25.86) | AJ218: (22.50) | AK218: 124.14 | AM218: 108.75 | AN218: 38.79 | AO218: (108.75) | AP218: (38.79) | AQ218: (58.75) | AR218: 111.21 | AT218: 87.00 | AU218: 31.03 | AV218: (87.00) | AW218: (31.03) | AX218: (37.00) | AY218: 118.97 | BB218: 50.75 | BC218: 18.10 | BD218: (50.75) | BE218: (18.10) | BF218: (0.75) | BG218: 131.90 | BI218: 25.38 | BJ218: 9.05 | BK218: (25.38) | BL218: (9.05) | BM218: 24.63 | BN218: 140.95 | BP218: 72.50 | BQ218: 25.86 | BR218: (72.50) | BS218: (25.86) | BT218: (22.50) | BU218: 124.14
A219: 75.00 | B219: 37.50 | C219: 31 | D219: 1.50 | E219: 3.00 | F219: 50.00 | G219: 50.00 | H219: 37.50 | I219: 50.00 | J219: 9.38 | K219: 50.00 | L219: 24.00 | M219: 50.00 | N219: 63.38 | O219: 50.00 | P219: 102.09 | Q219: 50 | R219: 37.50 | T219: 75.00 | U219: 75.00 | V219: 25.00 | W219: 225.00 | X219: 75.00 | Y219: 25.00 | Z219: 25.00 | AA219: 1,406.25 | AB219: 50.00 | AC219: 150.00 | AD219: 0 | AF219: 75.00 | AG219: 25.00 | AH219: (75.00) | AI219: (25.00) | AJ219: (25.00) | AK219: 125.00 | AM219: 112.50 | AN219: 37.50 | AO219: (112.50) | AP219: (37.50) | AQ219: (62.50) | AR219: 112.50 | AT219: 90.00 | AU219: 30.00 | AV219: (90.00) | AW219: (30.00) | AX219: (40.00) | AY219: 120.00 | BB219: 52.50 | BC219: 17.50 | BD219: (52.50) | BE219: (17.50) | BF219: (2.50) | BG219: 132.50 | BI219: 26.25 | BJ219: 8.75 | BK219: (26.25) | BL219: (8.75) | BM219: 23.75 | BN219: 141.25 | BP219: 75.00 | BQ219: 25.00 | BR219: (75.00) | BS219: (25.00) | BT219: (25.00) | BU219: 125.00
A220: 77.50 | B220: 37.50 | C220: 32 | D220: 1.55 | E220: 3.10 | F220: 50.00 | G220: 50.00 | H220: 37.50 | I220: 50.00 | J220: 9.38 | K220: 50.00 | L220: 24.00 | M220: 50.00 | N220: 63.38 | O220: 50.00 | P220: 102.09 | Q220: 50 | R220: 37.50 | T220: 77.50 | U220: 75.00 | V220: 25.00 | W220: 232.50 | X220: 75.00 | Y220: 25.00 | Z220: 25.00 | AA220: 1,406.25 | AB220: 50.00 | AC220: 150.00 | AD220: 0 | AF220: 77.50 | AG220: 24.19 | AH220: (77.50) | AI220: (24.19) | AJ220: (27.50) | AK220: 125.81 | AM220: 116.25 | AN220: 36.29 | AO220: (116.25) | AP220: (36.29) | AQ220: (66.25) | AR220: 113.71 | AT220: 93.00 | AU220: 29.03 | AV220: (93.00) | AW220: (29.03) | AX220: (43.00) | AY220: 120.97 | BB220: 54.25 | BC220: 16.94 | BD220: (54.25) | BE220: (16.94) | BF220: (4.25) | BG220: 133.06 | BI220: 27.13 | BJ220: 8.47 | BK220: (27.13) | BL220: (8.47) | BM220: 22.88 | BN220: 141.53 | BP220: 77.50 | BQ220: 24.19 | BR220: (77.50) | BS220: (24.19) | BT220: (27.50) | BU220: 125.81
A221: 80.00 | B221: 37.50 | C221: 33 | D221: 1.60 | E221: 3.20 | F221: 50.00 | G221: 50.00 | H221: 37.50 | I221: 50.00 | J221: 9.38 | K221: 50.00 | L221: 24.00 | M221: 50.00 | N221: 63.38 | O221: 50.00 | P221: 102.09 | Q221: 50 | R221: 37.50 | T221: 80.00 | U221: 75.00 | V221: 25.00 | W221: 240.00 | X221: 75.00 | Y221: 25.00 | Z221: 25.00 | AA221: 1,406.25 | AB221: 50.00 | AC221: 150.00 | AD221: 0 | AF221: 80.00 | AG221: 23.44 | AH221: (80.00) | AI221: (23.44) | AJ221: (30.00) | AK221: 126.56 | AM221: 120.00 | AN221: 35.16 | AO221: (120.00) | AP221: (35.16) | AQ221: (70.00) | AR221: 114.84 | AT221: 96.00 | AU221: 28.13 | AV221: (96.00) | AW221: (28.13) | AX221: (46.00) | AY221: 121.88 | BB221: 56.00 | BC221: 16.41 | BD221: (56.00) | BE221: (16.41) | BF221: (6.00) | BG221: 133.59 | BI221: 28.00 | BJ221: 8.20 | BK221: (28.00) | BL221: (8.20) | BM221: 22.00 | BN221: 141.80 | BP221: 80.00 | BQ221: 23.44 | BR221: (80.00) | BS221: (23.44) | BT221: (30.00) | BU221: 126.56
A222: 82.50 | B222: 37.50 | C222: 34 | D222: 1.65 | E222: 3.30 | F222: 50.00 | G222: 50.00 | H222: 37.50 | I222: 50.00 | J222: 9.38 | K222: 50.00 | L222: 24.00 | M222: 50.00 | N222: 63.38 | O222: 50.00 | P222: 102.09 | Q222: 50 | R222: 37.50 | T222: 82.50 | U222: 75.00 | V222: 25.00 | W222: 247.50 | X222: 75.00 | Y222: 25.00 | Z222: 25.00 | AA222: 1,406.25 | AB222: 50.00 | AC222: 150.00 | AD222: 0 | AF222: 82.50 | AG222: 22.73 | AH222: (82.50) | AI222: (22.73) | AJ222: (32.50) | AK222: 127.27 | AM222: 123.75 | AN222: 34.09 | AO222: (123.75) | AP222: (34.09) | AQ222: (73.75) | AR222: 115.91 | AT222: 99.00 | AU222: 27.27 | AV222: (99.00) | AW222: (27.27) | AX222: (49.00) | AY222: 122.73 | BB222: 57.75 | BC222: 15.91 | BD222: (57.75) | BE222: (15.91) | BF222: (7.75) | BG222: 134.09 | BI222: 28.88 | BJ222: 7.95 | BK222: (28.88) | BL222: (7.95) | BM222: 21.13 | BN222: 142.05 | BP222: 82.50 | BQ222: 22.73 | BR222: (82.50) | BS222: (22.73) | BT222: (32.50) | BU222: 127.27
A223: 85.00 | B223: 37.50 | C223: 35 | D223: 1.70 | E223: 3.40 | F223: 50.00 | G223: 50.00 | H223: 37.50 | I223: 50.00 | J223: 9.38 | K223: 50.00 | L223: 24.00 | M223: 50.00 | N223: 63.38 | O223: 50.00 | P223: 102.09 | Q223: 50 | R223: 37.50 | T223: 85.00 | U223: 75.00 | V223: 25.00 | W223: 255.00 | X223: 75.00 | Y223: 25.00 | Z223: 25.00 | AA223: 1,406.25 | AB223: 50.00 | AC223: 150.00 | AD223: 0 | AF223: 85.00 | AG223: 22.06 | AH223: (85.00) | AI223: (22.06) | AJ223: (35.00) | AK223: 127.94 | AM223: 127.50 | AN223: 33.09 | AO223: (127.50) | AP223: (33.09) | AQ223: (77.50) | AR223: 116.91 | AT223: 102.00 | AU223: 26.47 | AV223: (102.00) | AW223: (26.47) | AX223: (52.00) | AY223: 123.53 | BB223: 59.50 | BC223: 15.44 | BD223: (59.50) | BE223: (15.44) | BF223: (9.50) | BG223: 134.56 | BI223: 29.75 | BJ223: 7.72 | BK223: (29.75) | BL223: (7.72) | BM223: 20.25 | BN223: 142.28 | BP223: 85.00 | BQ223: 22.06 | BR223: (85.00) | BS223: (22.06) | BT223: (35.00) | BU223: 127.94
A224: 50.00 | B224: 37.50 | C224: 36 | D224: 1.75 | E224: =F227/D230 -> 2.00 | F224: 50.00 | G224: 50.00 | H224: 37.50 | I224: 50.00 | J224: 9.38 | K224: 50.00 | L224: 24.00 | M224: 50.00 | N224: 63.38 | O224: 50.00 | P224: 102.09 | Q224: 50 | R224: 37.50 | T224: 87.50 | U224: 75.00 | V224: 25.00 | W224: 262.50 | X224: 75.00 | Y224: 25.00 | Z224: 25.00 | AA224: 1,406.25 | AB224: 50.00 | AC224: 150.00 | AD224: 0 | AF224: 50.00 | AG224: 37.50 | AH224: (50.00) | AI224: (37.50) | AJ224: =IF((AH224+($AF$199*2)+($D$230-$E$230))>AJ223,AJ223-0.001,(AH224+($AF$199*2)+($D$230-$E$230))) -> (35.00) | AK224: =IF((AI224+($E$231*2)+($D$231-$E$231))<AK223,AK223+0.001,(AI224+($E$231*2)+($D$231-$E$231))) -> 127.94 | AM224: 75.00 | AN224: 56.25 | AO224: (75.00) | AP224: (56.25) | AQ224: =IF((AO224+($AM$199*2)+($AL$232-$AM$232))>AQ223,AQ223-0.001,(AO224+($AM$199*2)+($AL$232-$AM$232))) -> (77.50) | AR224: =IF((AP224+($AN$199*2)+($AL$233-$AM$233))<AR223,AR223+0.001,(AP224+($AN$199*2)+($AL$233-$AM$233))) -> 116.91 | AT224: 60.00 | AU224: 45.00 | AV224: (60.00) | AW224: (45.00) | AX224: =IF((AV224+($AT$199*2)+($AL$243-$AM$243))>AX223,AX223-0.001,(AV224+($AT$199*2)+($AL$243-$AM$243))) -> (52.00) | AY224: =IF((AW224+($AU$199*2)+($AL$244-$AM$244))<AY223,AY223+0.001,(AW224+($AU$199*2)+($AL$244-$AM$244))) -> 123.53 | BB224: 35.00 | BC224: 26.25 | BD224: (35.00) | BE224: (26.25) | BF224: =IF((BD224+($BB$199*2)+($BB$232-$BC$232))>BF223,BF223-0.001,(BD224+($BB$199*2)+($BB$232-$BC$232))) -> (9.50) | BG224: =IF((BE224+($BC$199*2)+($BB$233-$BC$233))<BG223,BG223+0.001,(BE224+($BC$199*2)+($BB$233-$BC$233))) -> 134.56 | BI224: 17.50 | BJ224: 13.13 | BK224: (17.50) | BL224: (13.13) | BM224: =IF((BK224+($BI$199*2)+($BB$243-$BC$243))>BM223,BM223-0.001,(BK224+($BI$199*2)+($BB$243-$BC$243))) -> 20.25 | BN224: =IF((BL224+($BJ$199*2)+($BB$244-$BC$244))<BN223,BN223+0.001,(BL224+($BJ$199*2)+($BB$244-$BC$244))) -> 142.28 | BP224: 50.00 | BQ224: 37.50 | BR224: (50.00) | BS224: (37.50) | BT224: =IF((BR224+($BP$199*2)+($BK$230-$BL$230))>BT223,BT223-0.001,(BR224+($BP$199*2)+($BK$230-$BL$230))) -> (35.00) | BU224: =IF((BS224+($BQ$199*2)+($BK$231-$BL$231))<BU223,BU223+0.001,(BS224+($BQ$199*2)+($BK$231-$BL$231))) -> 127.94
... 61 more rows

Sheet perdidavotos (hidden)
A2: FUNCIÓN DE PERDIDA DE VOTOS
C5: CASO 1 | D5: CASO 2
B6: b0 | C6: 2.0 | D6: =C6 -> 2.0
B7: b1 | C7: 0.3 | D7: ='Oculto EG'!E284 -> 0.3
B8: U | C8: 5.0 | D8: =C8 -> 5.0
B9: U* | C9: 5.0 | D9: =C9 -> 5.0
B10: b2 | C10: 0.3 | D10: ='Oculto EG'!E287 -> 0.3
B11: P | C11: 3.0 | D11: =C11 -> 3.0
B12: P* | C12: 3.0 | D12: =C12 -> 3.0
B13: b3 | C13: ='Oculto EG'!D290 -> 0.3 | D13: ='Oculto EG'!E290 -> 0.3
B14: Y | C14: 2.0 | D14: =C14 -> 2.0
B15: Y* | C15: 2.0 | D15: =C15 -> 2.0
B17: b0 | C17: ='Oculto EG'!D294 -> 2.0 | D17: ='Oculto EG'!E294 -> 2.0
B18: b1*((U-U*)^2) | C18: ='Oculto EG'!D295 -> 0 | D18: ='Oculto EG'!E295 -> 0
B19: b2*((P-P*)^2) | C19: ='Oculto EG'!D296 -> 0 | D19: ='Oculto EG'!E296 -> 0
B20: b3*((Y-Y*)^2) | C20: ='Oculto EG'!D297 -> 0 | D20: ='Oculto EG'!E297 -> 0
B22: V | C22: ='Oculto EG'!D299 -> 2.0 | D22: ='Oculto EG'!E299 -> 2.0
B29: Títulos
B30: Resultados
B31: Insertar datos

Sheet perdidabienestar (hidden)
B2: FUNCIÓN DE PERDIDA DE BIENESTAR
C5: CASO 1 | D5: CASO 2
B6: a1 | C6: 0.3 | D6: ='Oculto EG'!E261 -> 0.3
B7: U | C7: 5.0 | D7: =C7 -> 5.0
B8: U* | C8: 5.0 | D8: 5.0
B9: a2 | C9: 0.3 | D9: 0.3
B10: P | C10: 3.0 | D10: 3.0
B11: P* | C11: 3.0 | D11: 3.0
B12: a3 | C12: 3.0 | D12: 3.0
B13: Y | C13: 2.0 | D13: 2.0
B14: Y* | C14: 2.0 | D14: 2.0
B16: a1*(U-U*)^2 | C16: ='Oculto EG'!D271 -> 0 | D16: ='Oculto EG'!E271 -> 0
B17: a2*(P-P*)^2 | C17: ='Oculto EG'!D272 -> 0 | D17: ='Oculto EG'!E272 -> 0
B18: a3*(P-P*)^2 | C18: ='Oculto EG'!D273 -> 0 | D18: ='Oculto EG'!E273 -> 0
B20: L | C20: ='Oculto EG'!D275 -> 0 | D20: ='Oculto EG'!E275 -> 0
B27: Títulos
B28: Resultados
B29: Insertar datos

Sheet BPub (hidden)
B1: ELECCIÓN DE LA CANTIDAD DE UN BIEN PÚBLICO
C8: DEMANDAS INDIVIDUALES
C9: p i | D9: a i | E9: b i | F9: BP
B10: Consumidor 1 | C10: ='Oculto EG'!CD26 -> 46.7 | D10: 80.0 | E10: -5.0 | F10: =F9 -> BP
B11: Consumidor 2 | C11: ='Oculto EG'!CD27 -> 36.7 | D11: 70.0 | E11: -5.0 | F11: =F10 -> BP
B12: Consumidor 3 | C12: ='Oculto EG'!CD28 -> 26.7 | D12: 60.0 | E12: -5.0 | F12: =F11 -> BP
B13: Consumidor 4 | C13: ='Oculto EG'!CD29 -> 16.7 | D13: 50.0 | E13: -5.0 | F13: =F12 -> BP
B14: Consumidor 5 | C14: ='Oculto EG'!CD30 -> 6.7 | D14: 40.0 | E14: -5.0 | F14: =F13 -> BP
D15: Inserte los datos correspondientes
C16: COSTO MARGINAL
C17: p i | D17: g 0 | E17: g 1 | F17: BP
B18: Costo marginal | C18: ='Oculto EG'!CD34 -> 133.3 | D18: 0.0 | E18: 20.0 | F18: ='Oculto EG'!CG34 -> 6.7
B22: Títulos
B23: Resultados
B24: Insertar datos
